Workbook

Sheet _disclaimer

Sheet CSU Summary
B2: Campus: | E2: Building Type: | H2: Assumed Construction Area: | L2: California Climate Zone: | M2: =IFERROR(VLOOKUP($B$4,CSU_campus_data[[#All],[Campus]:[Solar kWh/kW Estimate]],3,FALSE),"-") -> 3
B4: San Francisco | E4: University Union | H4: 100000 | L4: Nearest TMY3 Weather Data: | M4: =IFERROR(VLOOKUP($B$4,CSU_campus_data[[#All],[Campus]:[Solar kWh/kW Estimate]],6,FALSE),"-") -> San Francisco Intl AP
L6: Assumed Solar Production: | M6: =IFERROR(VLOOKUP($B$4,CSU_campus_data[[#All],[Campus]:[Solar kWh/kW Estimate]],7,FALSE),"-") -> 1418.018188
B8: Energy Performance | C8: Energy Use Intensity [kBtu/sf-yr] | K8: Investing 5% of Construction Costs in PV Yields: | M8: To Achieve Zero Net Energy:
C9: Heating | D9: Water Heating | E9: Ventilation | F9: Cooling | G9: Lighting | H9: Equipment | I9: EUI Reduction | J9: Total EUI | K9: Estimated Energy Offset | L9: Remaining Energy to Offset | M9: Construction Cost to Invest in PV | N9: Size of Required PV Array
B10: Current | C10: =IFERROR(VLOOKUP(CONCATENATE($B10,"-",$B$4,"-",$E$4),CSU_data_summary[#All],MATCH(C$9,CSU_data_summary[#Headers],0),FALSE),"-") -> 12.73665505 | D10: =IFERROR(VLOOKUP(CONCATENATE($B10,"-",$B$4,"-",$E$4),CSU_data_summary[#All],MATCH(D$9,CSU_data_summary[#Headers],0),FALSE),"-") -> 4.996857801 | E10: =IFERROR(VLOOKUP(CONCATENATE($B10,"-",$B$4,"-",$E$4),CSU_data_summary[#All],MATCH(E$9,CSU_data_summary[#Headers],0),FALSE),"-") -> 3.52800426 | F10: =IFERROR(VLOOKUP(CONCATENATE($B10,"-",$B$4,"-",$E$4),CSU_data_summary[#All],MATCH(F$9,CSU_data_summary[#Headers],0),FALSE),"-") -> 1.753357171 | G10: =IFERROR(VLOOKUP(CONCATENATE($B10,"-",$B$4,"-",$E$4),CSU_data_summary[#All],MATCH(G$9,CSU_data_summary[#Headers],0),FALSE),"-") -> 8.836311699 | H10: =IFERROR(VLOOKUP(CONCATENATE($B10,"-",$B$4,"-",$E$4),CSU_data_summary[#All],MATCH(H$9,CSU_data_summary[#Headers],0),FALSE),"-") -> 5.918925816 | I10: - | J10: =IFERROR(SUM(C10:H10),"-") -> 37.7701118 | K10: =IFERROR(CONVERT(const_area*const_cost_per_SF*PV_percent_of_cost/dollars_per_W/1000*kWh_per_kW,"Wh","BTU")/(SUM(C10:H10)*const_area),"-") -> 0.6405168885 | L10: =IFERROR(IF((1-K10)<0,"-",1-K10),"-") -> 0.3594831115 | M10: =IFERROR(SUM(C10:H10)*const_area/CONVERT(kWh_per_kW,"Wh","BTU")*1000*dollars_per_W/(const_area*const_cost_per_SF),"-") -> 0.07806195418 | N10: =IFERROR(ROUND(CONVERT(SUM(C10:H10)*const_area,"BTU","Wh")/kWh_per_kW,-1),"-") -> 780 | AB10: =IFERROR(CONCATENATE(B10," EUI: ",TEXT(SUM(C10:H10),"#0.0")," kBtu/sf-yr"),"-") -> Current EUI: 37.8 kBtu/sf-yr | AC10: -
B11: Percent End-Use | C11: =IFERROR(C10/SUM($C10:$H10),"-") -> 0.3372151801 | D11: 0.1322966113 | E11: 0.09340730255 | F11: 0.04642181576 | G11: 0.2339498423 | H11: 0.156709248 | I11: - | K11: - | L11: - | M11: - | N11: =IFERROR(CONVERT(SUM(C11:H11)*const_area,"BTU","Wh")/kWh_per_kW,"-") -> 20.6676524
B12: Title 24 | C12: =IFERROR(VLOOKUP(CONCATENATE($B12,"-",$B$4,"-",$E$4),CSU_data_summary[#All],MATCH(C$9,CSU_data_summary[#Headers],0),FALSE),"-") -> 9.884497677 | D12: =IFERROR(VLOOKUP(CONCATENATE($B12,"-",$B$4,"-",$E$4),CSU_data_summary[#All],MATCH(D$9,CSU_data_summary[#Headers],0),FALSE),"-") -> 3.877896443 | E12: =IFERROR(VLOOKUP(CONCATENATE($B12,"-",$B$4,"-",$E$4),CSU_data_summary[#All],MATCH(E$9,CSU_data_summary[#Headers],0),FALSE),"-") -> 2.737967682 | F12: =IFERROR(VLOOKUP(CONCATENATE($B12,"-",$B$4,"-",$E$4),CSU_data_summary[#All],MATCH(F$9,CSU_data_summary[#Headers],0),FALSE),"-") -> 1.36072264 | G12: =IFERROR(VLOOKUP(CONCATENATE($B12,"-",$B$4,"-",$E$4),CSU_data_summary[#All],MATCH(G$9,CSU_data_summary[#Headers],0),FALSE),"-") -> 6.857569911 | H12: =IFERROR(VLOOKUP(CONCATENATE($B12,"-",$B$4,"-",$E$4),CSU_data_summary[#All],MATCH(H$9,CSU_data_summary[#Headers],0),FALSE),"-") -> 5.918925816 | I12: =IFERROR(IF((J$10-J12)<0,"-",J$10-J12),"-") -> 7.132531631 | J12: =IFERROR(SUM(C12:H12),"-") -> 30.63758017 | K12: =IFERROR(CONVERT(const_area*const_cost_per_SF*PV_percent_of_cost/dollars_per_W/1000*kWh_per_kW,"Wh","BTU")/(SUM(C12:H12)*const_area),"-") -> 0.7896313728 | L12: =IFERROR(IF((1-K12)<0,"-",1-K12),"-") -> 0.2103686272 | M12: =IFERROR(SUM(C12:H12)*const_area/CONVERT(kWh_per_kW,"Wh","BTU")*1000*dollars_per_W/(const_area*const_cost_per_SF),"-") -> 0.06332068573 | N12: =IFERROR(ROUND(CONVERT(SUM(C12:H12)*const_area,"BTU","Wh")/kWh_per_kW,-1),"-") -> 630 | AB12: =IFERROR(CONCATENATE(B12," EUI: ",TEXT(SUM(C12:H12),"#0.0")," kBtu/sf-yr"),"-") -> Title 24 EUI: 30.6 kBtu/sf-yr | AC12: =IFERROR(IF((1-J12/$J$10)<0,CONCATENATE(TEXT(ROUND(ABS(1-J12/$J$10),2),"#%")," Higher than Current"),CONCATENATE(TEXT(ROUND(1-J12/$J$10,2),"#%")," Reduction")),"-") -> 19% Reduction
B13: Percent End-Use | C13: =IFERROR(C12/SUM($C12:$H12),"-") -> 0.3226265789 | D13: 0.1265731961 | E13: 0.08936631637 | F13: 0.04441351544 | G13: 0.2238287056 | H13: 0.1931916876 | I13: - | K13: - | L13: - | M13: - | N13: =IFERROR(CONVERT(SUM(C13:H13)*const_area,"BTU","Wh")/kWh_per_kW,"-") -> 20.6676524
B14: 10% Better Than Title 24 | C14: =IFERROR(VLOOKUP(CONCATENATE($B14,"-",$B$4,"-",$E$4),CSU_data_summary[#All],MATCH(C$9,CSU_data_summary[#Headers],0),FALSE),"-") -> 8.659361851 | D14: =IFERROR(VLOOKUP(CONCATENATE($B14,"-",$B$4,"-",$E$4),CSU_data_summary[#All],MATCH(D$9,CSU_data_summary[#Headers],0),FALSE),"-") -> 3.397249878 | E14: =IFERROR(VLOOKUP(CONCATENATE($B14,"-",$B$4,"-",$E$4),CSU_data_summary[#All],MATCH(E$9,CSU_data_summary[#Headers],0),FALSE),"-") -> 2.39860979 | F14: =IFERROR(VLOOKUP(CONCATENATE($B14,"-",$B$4,"-",$E$4),CSU_data_summary[#All],MATCH(F$9,CSU_data_summary[#Headers],0),FALSE),"-") -> 1.19206763 | G14: =IFERROR(VLOOKUP(CONCATENATE($B14,"-",$B$4,"-",$E$4),CSU_data_summary[#All],MATCH(G$9,CSU_data_summary[#Headers],0),FALSE),"-") -> 6.007607187 | H14: =IFERROR(VLOOKUP(CONCATENATE($B14,"-",$B$4,"-",$E$4),CSU_data_summary[#All],MATCH(H$9,CSU_data_summary[#Headers],0),FALSE),"-") -> 5.918925816 | I14: =IFERROR(IF((J$10-J14)<0,"-",J$10-J14),"-") -> 10.19628965 | J14: =IFERROR(SUM(C14:H14),"-") -> 27.57382215 | K14: =IFERROR(CONVERT(const_area*const_cost_per_SF*PV_percent_of_cost/dollars_per_W/1000*kWh_per_kW,"Wh","BTU")/(SUM(C14:H14)*const_area),"-") -> 0.877368192 | L14: =IFERROR(IF((1-K14)<0,"-",1-K14),"-") -> 0.122631808 | M14: =IFERROR(SUM(C14:H14)*const_area/CONVERT(kWh_per_kW,"Wh","BTU")*1000*dollars_per_W/(const_area*const_cost_per_SF),"-") -> 0.05698861716 | N14: =IFERROR(ROUND(CONVERT(SUM(C14:H14)*const_area,"BTU","Wh")/kWh_per_kW,-1),"-") -> 570 | AB14: =IFERROR(CONCATENATE(B14," EUI: ",TEXT(SUM(C14:H14),"#0.0")," kBtu/sf-yr"),"-") -> 10% Better Than Title 24 EUI: 27.6 kBtu/sf-yr | AC14: =IFERROR(IF((1-J14/$J$10)<0,CONCATENATE(TEXT(ROUND(ABS(1-J14/$J$10),2),"#%")," Higher than Current"),CONCATENATE(TEXT(ROUND(1-J14/$J$10,2),"#%")," Reduction")),"-") -> 27% Reduction
B15: Percent End-Use | C15: =IFERROR(C14/SUM($C14:$H14),"-") -> 0.3140428557 | D15: 0.1232056209 | E15: 0.08698865818 | F15: 0.04323186039 | G15: 0.2178735742 | H15: 0.2146574306 | I15: - | K15: - | L15: - | M15: - | N15: =IFERROR(CONVERT(SUM(C15:H15)*const_area,"BTU","Wh")/kWh_per_kW,"-") -> 20.6676524
B16: ZNE-Ready | C16: =IFERROR(VLOOKUP(CONCATENATE($B16,"-",$B$4,"-",$E$4),CSU_data_summary[#All],MATCH(C$9,CSU_data_summary[#Headers],0),FALSE),"-") -> 6.434563034 | D16: =IFERROR(VLOOKUP(CONCATENATE($B16,"-",$B$4,"-",$E$4),CSU_data_summary[#All],MATCH(D$9,CSU_data_summary[#Headers],0),FALSE),"-") -> 2.524414484 | E16: =IFERROR(VLOOKUP(CONCATENATE($B16,"-",$B$4,"-",$E$4),CSU_data_summary[#All],MATCH(E$9,CSU_data_summary[#Headers],0),FALSE),"-") -> 1.78234911 | F16: =IFERROR(VLOOKUP(CONCATENATE($B16,"-",$B$4,"-",$E$4),CSU_data_summary[#All],MATCH(F$9,CSU_data_summary[#Headers],0),FALSE),"-") -> 0.8857967176 | G16: =IFERROR(VLOOKUP(CONCATENATE($B16,"-",$B$4,"-",$E$4),CSU_data_summary[#All],MATCH(G$9,CSU_data_summary[#Headers],0),FALSE),"-") -> 4.464108071 | H16: =IFERROR(VLOOKUP(CONCATENATE($B16,"-",$B$4,"-",$E$4),CSU_data_summary[#All],MATCH(H$9,CSU_data_summary[#Headers],0),FALSE),"-") -> 5.918925816 | I16: =IFERROR(IF((J$10-J16)<0,"-",J$10-J16),"-") -> 15.75995457 | J16: =IFERROR(SUM(C16:H16),"-") -> 22.01015723 | K16: =IFERROR(CONVERT(const_area*const_cost_per_SF*PV_percent_of_cost/dollars_per_W/1000*kWh_per_kW,"Wh","BTU")/(SUM(C16:H16)*const_area),"-") -> 1.099146827 | L16: =IFERROR(IF((1-K16)<0,"-",1-K16),"-") -> - | M16: =IFERROR(SUM(C16:H16)*const_area/CONVERT(kWh_per_kW,"Wh","BTU")*1000*dollars_per_W/(const_area*const_cost_per_SF),"-") -> 0.0454898279 | N16: =IFERROR(ROUND(CONVERT(SUM(C16:H16)*const_area,"BTU","Wh")/kWh_per_kW,-1),"-") -> 450 | AB16: =IFERROR(CONCATENATE(B16," EUI: ",TEXT(SUM(C16:H16),"#0.0")," kBtu/sf-yr"),"-") -> ZNE-Ready EUI: 22.0 kBtu/sf-yr | AC16: =IFERROR(IF((1-J16/$J$10)<0,CONCATENATE(TEXT(ROUND(ABS(1-J16/$J$10),2),"#%")," Higher than Current"),CONCATENATE(TEXT(ROUND(1-J16/$J$10,2),"#%")," Reduction")),"-") -> 42% Reduction
B17: Percent End-Use | C17: =IFERROR(C16/SUM($C16:$H16),"-") -> 0.2923451644 | D17: 0.11469316 | E17: 0.08097848148 | F17: 0.0402449064 | G17: 0.2028203626 | H17: 0.2689179252 | I17: - | K17: - | M17: -
C23: =CONCATENATE("Estimated End-Use Breakdown for ",IF(OR(LEFT(E4,1)="A",LEFT(E4,1)="E",LEFT(E4,1)="I",LEFT(E4,1)="O"),"an ","a "),E4," Building in CSU ",$B$4) -> Estimated End-Use Breakdown for a University Union Building in CSU San Francisco
AB50: Energy Performance | AC50: Estimated Energy Offset | AD50: Remaining Energy to Offset | AE50: Construction Cost to Invest in PV | AF50: Required PV Array Size
AB51: ZNE-Ready | AC51: =IFERROR(K16,"-") -> 1.099146827 | AD51: =IFERROR(L16,"-") -> - | AE51: =IFERROR(M16,"-") -> 0.0454898279 | AF51: =IFERROR(TEXT(ROUND(N16,-1),"#,##0")&" kW","-") -> 450 kW
AB52: 10% Better Than Title 24 | AC52: =IFERROR(K14,"-") -> 0.877368192 | AD52: =IFERROR(L14,"-") -> 0.122631808 | AE52: =IFERROR(M14,"-") -> 0.05698861716 | AF52: =IFERROR(TEXT(ROUND(N14,-1),"#,##0")&" kW","-") -> 570 kW
AB53: Title 24 | AC53: =IFERROR(K12,"-") -> 0.7896313728 | AD53: =IFERROR(L12,"-") -> 0.2103686272 | AE53: =IFERROR(M12,"-") -> 0.06332068573 | AF53: =IFERROR(TEXT(ROUND(N12,-1),"#,##0")&" kW","-") -> 630 kW
AB54: Current | AC54: =IFERROR(K10,"-") -> 0.6405168885 | AD54: =IFERROR(L10,"-") -> 0.3594831115 | AE54: =IFERROR(M10,"-") -> 0.07806195418 | AF54: =IFERROR(TEXT(ROUND(N10,-1),"#,##0")&" kW","-") -> 780 kW
AB56: =IFERROR(CONCATENATE("[",TEXT(const_area,"#,#00,000")," sf ",E4," Building in CSU ",B4,"]"),"-") -> [100,000 sf University Union Building in CSU San Francisco]
AB57: =IFERROR(CONCATENATE("[Percentage of Construction Costs for a ",TEXT(const_area,"#,#00,000")," sf ",E4," Building in CSU ",B4,"]"),"-") -> [Percentage of Construction Costs for a 100,000 sf University Union Building in CSU San Francisco]
B98: List to Generate
A99: Indirect List Lookup | B99: Campus | C99: Building Type | D99: Area | F99: Building Types
A100: Bakersfield | B100: Bakersfield | C100: Administration | D100: 30000 | F100: Administration
A101: Bakersfield | B101: Bakersfield | C101: Business Administration | D101: 40000 | F101: Apartments
A102: Bakersfield | B102: Bakersfield | C102: Classroom | D102: 80000 | F102: Business Administration
A103: Bakersfield | B103: Bakersfield | C103: Education | D103: 30000 | F103: Classroom
A104: Bakersfield | B104: Bakersfield | C104: Library | D104: 150000 | F104: Commercial Office Building
A105: Bakersfield | B105: Bakersfield | C105: Recreation Center | D105: 80000 | F105: Education
A106: Bakersfield | B106: Bakersfield | C106: Residence Hall | D106: 210000 | F106: Engineering
A107: Bakersfield | B107: Bakersfield | C107: Science | D107: 140000 | F107: Faculty Office
A108: Bakersfield | B108: Bakersfield | C108: Student Services | D108: 30000 | F108: Food Sales-Vendor
A109: Bakersfield | B109: Bakersfield | C109: Theater Arts | D109: 30000 | F109: Food Service
A110: Channel_Islands | B110: Channel Islands | C110: Administration | D110: 70000 | F110: Humanities
A111: Channel_Islands | B111: Channel Islands | C111: Business Administration | D111: 30000 | F111: Industrial Arts
A112: Channel_Islands | B112: Channel Islands | C112: Classroom | D112: 130000 | F112: Liberal Arts
A113: Channel_Islands | B113: Channel Islands | C113: Faculty Office | D113: 130000 | F113: Library
A114: Channel_Islands | B114: Channel Islands | C114: Library | D114: 150000 | F114: Little Theater
A115: Channel_Islands | B115: Channel Islands | C115: Residence Hall | D115: 420000 | F115: Military Science
A116: Channel_Islands | B116: Channel Islands | C116: Science | D116: 130000 | F116: Multi-Use Facility
A117: Channel_Islands | B117: Channel Islands | C117: Student Services | D117: 70000 | F117: Music
A118: Channel_Islands | B118: Channel Islands | C118: Theater Arts | D118: 20000 | F118: Performing Arts
A119: Channel_Islands | B119: Channel Islands | C119: University Union | D119: 20000 | F119: Psychology
A120: Chico | B120: Chico | C120: Administration | D120: 200000 | F120: Recreation Center
A121: Chico | B121: Chico | C121: Apartments | D121: 140000 | F121: Residence Hall
A122: Chico | B122: Chico | C122: Classroom | D122: 290000 | F122: Science
A123: Chico | B123: Chico | C123: Engineering | D123: 130000 | F123: Social Science
A124: Chico | B124: Chico | C124: Library | D124: 270000 | F124: Student Health Center
A125: Chico | B125: Chico | C125: Recreation Center | D125: 110000 | F125: Student Services
A126: Chico | B126: Chico | C126: Residence Hall | D126: 400000 | F126: Theater Arts
A127: Chico | B127: Chico | C127: Science | D127: 230000 | F127: University Union
A128: Chico | B128: Chico | C128: Theater Arts | D128: 140000
A129: Chico | B129: Chico | C129: University Union | D129: 130000
A130: Dominguez_Hills | B130: Dominguez Hills | C130: Administration | D130: 50000
A131: Dominguez_Hills | B131: Dominguez Hills | C131: Classroom | D131: 70000
A132: Dominguez_Hills | B132: Dominguez Hills | C132: Education | D132: 30000
A133: Dominguez_Hills | B133: Dominguez Hills | C133: Humanities | D133: 70000
A134: Dominguez_Hills | B134: Dominguez Hills | C134: Library | D134: 290000
A135: Dominguez_Hills | B135: Dominguez Hills | C135: Multi-Use Facility | D135: 180000
A136: Dominguez_Hills | B136: Dominguez Hills | C136: Residence Hall | D136: 170000
A137: Dominguez_Hills | B137: Dominguez Hills | C137: Science | D137: 90000
A138: Dominguez_Hills | B138: Dominguez Hills | C138: Social Science | D138: 80000
A139: Dominguez_Hills | B139: Dominguez Hills | C139: University Union | D139: 120000
A140: East_Bay | B140: East Bay | C140: Administration | D140: 170000
A141: East_Bay | B141: East Bay | C141: Business Administration | D141: 80000
A142: East_Bay | B142: East Bay | C142: Classroom | D142: 180000
A143: East_Bay | B143: East Bay | C143: Education | D143: 110000
A144: East_Bay | B144: East Bay | C144: Library | D144: 230000
A145: East_Bay | B145: East Bay | C145: Recreation Center | D145: 50000
A146: East_Bay | B146: East Bay | C146: Residence Hall | D146: 370000
A147: East_Bay | B147: East Bay | C147: Science | D147: 210000
A148: East_Bay | B148: East Bay | C148: Theater Arts | D148: 60000
A149: East_Bay | B149: East Bay | C149: University Union | D149: 70000
A150: Fresno | B150: Fresno | C150: Business Administration | D150: 90000
A151: Fresno | B151: Fresno | C151: Classroom | D151: 290000
A152: Fresno | B152: Fresno | C152: Education | D152: 120000
A153: Fresno | B153: Fresno | C153: Engineering | D153: 130000
A154: Fresno | B154: Fresno | C154: Industrial Arts | D154: 100000
A155: Fresno | B155: Fresno | C155: Library | D155: 340000
A156: Fresno | B156: Fresno | C156: Music | D156: 90000
A157: Fresno | B157: Fresno | C157: Recreation Center | D157: 90000
A158: Fresno | B158: Fresno | C158: Residence Hall | D158: 230000
A159: Fresno | B159: Fresno | C159: Science | D159: 210000
A160: Fullerton | B160: Fullerton | C160: Administration | D160: 380000
A161: Fullerton | B161: Fullerton | C161: Apartments | D161: 320000
A162: Fullerton | B162: Fullerton | C162: Business Administration | D162: 200000
A163: Fullerton | B163: Fullerton | C163: Classroom | D163: 230000
A164: Fullerton | B164: Fullerton | C164: Humanities | D164: 150000
A165: Fullerton | B165: Fullerton | C165: Library | D165: 410000
A166: Fullerton | B166: Fullerton | C166: Performing Arts | D166: 260000
A167: Fullerton | B167: Fullerton | C167: Residence Hall | D167: 260000
A168: Fullerton | B168: Fullerton | C168: Science | D168: 420000
A169: Fullerton | B169: Fullerton | C169: University Union | D169: 170000
A170: Humboldt | B170: Humboldt | C170: Apartments | D170: 110000
A171: Humboldt | B171: Humboldt | C171: Classroom | D171: 70000
A172: Humboldt | B172: Humboldt | C172: Food Service | D172: 50000
A173: Humboldt | B173: Humboldt | C173: Humanities | D173: 90000
A174: Humboldt | B174: Humboldt | C174: Library | D174: 160000
A175: Humboldt | B175: Humboldt | C175: Residence Hall | D175: 350000
A176: Humboldt | B176: Humboldt | C176: Science | D176: 310000
A177: Humboldt | B177: Humboldt | C177: Social Science | D177: 100000
A178: Humboldt | B178: Humboldt | C178: Theater Arts | D178: 60000
A179: Humboldt | B179: Humboldt | C179: University Union | D179: 60000
A180: Long_Beach | B180: Long Beach | C180: Administration | D180: 180000
A181: Long_Beach | B181: Long Beach | C181: Engineering | D181: 250000
A182: Long_Beach | B182: Long Beach | C182: Industrial Arts | D182: 140000
A183: Long_Beach | B183: Long Beach | C183: Liberal Arts | D183: 150000
A184: Long_Beach | B184: Long Beach | C184: Library | D184: 410000
A185: Long_Beach | B185: Long Beach | C185: Recreation Center | D185: 110000
A186: Long_Beach | B186: Long Beach | C186: Residence Hall | D186: 570000
A187: Long_Beach | B187: Long Beach | C187: Science | D187: 450000
A188: Long_Beach | B188: Long Beach | C188: Theater Arts | D188: 220000
A189: Long_Beach | B189: Long Beach | C189: University Union | D189: 160000
A190: Los_Angeles | B190: Los Angeles | C190: Administration | D190: 130000
A191: Los_Angeles | B191: Los Angeles | C191: Business Administration | D191: 180000
A192: Los_Angeles | B192: Los Angeles | C192: Classroom | D192: 300000
A193: Los_Angeles | B193: Los Angeles | C193: Engineering | D193: 200000
A194: Los_Angeles | B194: Los Angeles | C194: Food Service | D194: 120000
A195: Los_Angeles | B195: Los Angeles | C195: Library | D195: 350000
A196: Los_Angeles | B196: Los Angeles | C196: Music | D196: 80000
A197: Los_Angeles | B197: Los Angeles | C197: Residence Hall | D197: 220000
A198: Los_Angeles | B198: Los Angeles | C198: Science | D198: 750000
A199: Los_Angeles | B199: Los Angeles | C199: University Union | D199: 90000
A200: Maritime_Academy | B200: Maritime Academy | C200: Administration | D200: 10000
A201: Maritime_Academy | B201: Maritime Academy | C201: Apartments | D201: 130000
A202: Maritime_Academy | B202: Maritime Academy | C202: Classroom | D202: 30000
A203: Maritime_Academy | B203: Maritime Academy | C203: Education | D203: 20000
A204: Maritime_Academy | B204: Maritime Academy | C204: Engineering | D204: 50000
A205: Maritime_Academy | B205: Maritime Academy | C205: Faculty Office | D205: 10000
A206: Maritime_Academy | B206: Maritime Academy | C206: Food Service | D206: 40000
A207: Maritime_Academy | B207: Maritime Academy | C207: Library | D207: 10000
A208: Maritime_Academy | B208: Maritime Academy | C208: Little Theater | D208: 20000
A209: Maritime_Academy | B209: Maritime Academy | C209: Residence Hall | D209: 30000
A210: Monterey_Bay | B210: Monterey Bay | C210: Administration | D210: 180000
A211: Monterey_Bay | B211: Monterey Bay | C211: Classroom | D211: 110000
A212: Monterey_Bay | B212: Monterey Bay | C212: Faculty Office | D212: 50000
A213: Monterey_Bay | B213: Monterey Bay | C213: Food Service | D213: 10000
A214: Monterey_Bay | B214: Monterey Bay | C214: Library | D214: 140000
A215: Monterey_Bay | B215: Monterey Bay | C215: Residence Hall | D215: 380000
A216: Monterey_Bay | B216: Monterey Bay | C216: Science | D216: 90000
A217: Monterey_Bay | B217: Monterey Bay | C217: Student Health Center | D217: 10000
A218: Monterey_Bay | B218: Monterey Bay | C218: Student Services | D218: 80000
A219: Monterey_Bay | B219: Monterey Bay | C219: Theater Arts | D219: 30000
A220: Northridge | B220: Northridge | C220: Administration | D220: 220000
A221: Northridge | B221: Northridge | C221: Classroom | D221: 320000
A222: Northridge | B222: Northridge | C222: Engineering | D222: 240000
A223: Northridge | B223: Northridge | C223: Faculty Office | D223: 150000
A224: Northridge | B224: Northridge | C224: Library | D224: 300000
A225: Northridge | B225: Northridge | C225: Military Science | D225: 180000
A226: Northridge | B226: Northridge | C226: Performing Arts | D226: 170000
A227: Northridge | B227: Northridge | C227: Residence Hall | D227: 1130000
A228: Northridge | B228: Northridge | C228: Science | D228: 330000
A229: Northridge | B229: Northridge | C229: University Union | D229: 260000
A230: Pomona | B230: Pomona | C230: Business Administration | D230: 120000
A231: Pomona | B231: Pomona | C231: Classroom | D231: 320000
A232: Pomona | B232: Pomona | C232: Commercial Office Building | D232: 450000
A233: Pomona | B233: Pomona | C233: Engineering | D233: 310000
A234: Pomona | B234: Pomona | C234: Library | D234: 320000
A235: Pomona | B235: Pomona | C235: Music | D235: 90000
A236: Pomona | B236: Pomona | C236: Recreation Center | D236: 120000
A237: Pomona | B237: Pomona | C237: Residence Hall | D237: 930000
A238: Pomona | B238: Pomona | C238: Science | D238: 330000
A239: Pomona | B239: Pomona | C239: University Union | D239: 130000
A240: Sacramento | B240: Sacramento | C240: Classroom | D240: 650000
A241: Sacramento | B241: Sacramento | C241: Engineering | D241: 150000
A242: Sacramento | B242: Sacramento | C242: Library | D242: 380000
A243: Sacramento | B243: Sacramento | C243: Music | D243: 80000
A244: Sacramento | B244: Sacramento | C244: Psychology | D244: 70000
A245: Sacramento | B245: Sacramento | C245: Residence Hall | D245: 380000
A246: Sacramento | B246: Sacramento | C246: Science | D246: 290000
A247: Sacramento | B247: Sacramento | C247: Student Services | D247: 110000
A248: Sacramento | B248: Sacramento | C248: Theater Arts | D248: 60000
A249: Sacramento | B249: Sacramento | C249: University Union | D249: 160000
A250: San_Bernardino | B250: San Bernardino | C250: Administration | D250: 80000
A251: San_Bernardino | B251: San Bernardino | C251: Apartments | D251: 380000
A252: San_Bernardino | B252: San Bernardino | C252: Business Administration | D252: 130000
A253: San_Bernardino | B253: San Bernardino | C253: Education | D253: 130000
A254: San_Bernardino | B254: San Bernardino | C254: Library | D254: 300000
A255: San_Bernardino | B255: San Bernardino | C255: Performing Arts | D255: 60000
A256: San_Bernardino | B256: San Bernardino | C256: Residence Hall | D256: 110000
A257: San_Bernardino | B257: San Bernardino | C257: Science | D257: 210000
A258: San_Bernardino | B258: San Bernardino | C258: Social Science | D258: 140000
A259: San_Bernardino | B259: San Bernardino | C259: University Union | D259: 90000
A260: San_Diego | B260: San Diego | C260: Administration | D260: 180000
A261: San_Diego | B261: San Diego | C261: Apartments | D261: 340000
A262: San_Diego | B262: San Diego | C262: Business Administration | D262: 150000
A263: San_Diego | B263: San Diego | C263: Classroom | D263: 480000
A264: San_Diego | B264: San Diego | C264: Library | D264: 530000
A265: San_Diego | B265: San Diego | C265: Residence Hall | D265: 560000
A266: San_Diego | B266: San Diego | C266: Science | D266: 490000
A267: San_Diego | B267: San Diego | C267: Social Science | D267: 110000
A268: San_Diego | B268: San Diego | C268: Theater Arts | D268: 120000
A269: San_Diego | B269: San Diego | C269: University Union | D269: 270000
A270: San_Francisco | B270: San Francisco | C270: Administration | D270: 180000
A271: San_Francisco | B271: San Francisco | C271: Apartments | D271: 1170000
A272: San_Francisco | B272: San Francisco | C272: Classroom | D272: 190000
A273: San_Francisco | B273: San Francisco | C273: Education | D273: 170000
A274: San_Francisco | B274: San Francisco | C274: Humanities | D274: 130000
A275: San_Francisco | B275: San Francisco | C275: Industrial Arts | D275: 170000
A276: San_Francisco | B276: San Francisco | C276: Library | D276: 350000
... 54 more rows

Sheet CSU_pivot_energy
B2: Campus | C2: San Marcos
B3: Building Type | C3: (All)
B5: Row Labels | C5: Equipment EUI | D5: Lighting EUI | E5: Heating EUI | F5: Cooling EUI | G5: Ventilation EUI | H5: Water Heating EUI | I5: Total EUI
B6: Current | C6: 21.02436624 | D6: 13.27052081 | E6: 8.19121883 | F6: 11.97548568 | G6: 5.841624131 | H6: 9.35876018 | I6: =SUM(C6:H6) -> 69.66197587
B7: Title 24 | C7: 21.02436624 | D7: 9.507276959 | E7: 5.832143951 | F7: 8.558623611 | G7: 4.1858581 | H7: 6.572922557 | I7: =SUM(C7:H7) -> 55.68119141
B8: 10% Better Than Title 24 | C8: 21.02436624 | D8: 7.944673921 | E8: 4.96653296 | F8: 7.19278217 | G8: 3.518520683 | H8: 5.463111429 | I8: 50.1099874
B9: ZNE-Ready | C9: 19.86768241 | D9: 5.178032755 | E9: 3.353277553 | F9: 4.734754966 | G9: 2.316172792 | H9: 3.526693894 | I9: 38.97661436
B10: Grand Total | C10: 20.73519528 | D10: 8.975126112 | E10: 5.585793324 | F10: 8.115411607 | G10: 3.965543926 | H10: 6.230372015 | I10: 53.60744226

Sheet CSU_pivot_campus
B1: Building Type | C1: (All)
B3: Row Labels | C3: Equipment EUI | D3: Lighting EUI | E3: Heating EUI | F3: Cooling EUI | G3: Ventilation EUI | H3: Water Heating EUI
B4: Current | C4: 25.2004979 | D4: 14.14542004 | E4: 11.61954522 | F4: 8.671999791 | G4: 5.963947471 | H4: 13.7350995
B5: Bakersfield | C5: 19.29266178 | D5: 10.23132662 | E5: 10.94371212 | F5: 9.887609785 | G5: 4.590474848 | H5: 9.443113724
B6: Channel Islands | C6: 29.32477493 | D6: 17.13370358 | E6: 7.915292359 | F6: 11.35815995 | G6: 6.94013221 | H6: 17.13642938
B7: Chico | C7: 25.62118342 | D7: 16.07195576 | E7: 20.79096778 | F7: 14.95311709 | G7: 7.459150784 | H7: 14.6719594
B8: Dominguez Hills | C8: 30.62051215 | D8: 23.57564321 | E8: 14.81195858 | F8: 18.58357764 | G8: 10.29510409 | H8: 17.66634875
B9: East Bay | C9: 24.84458231 | D9: 15.05991747 | E9: 15.53926075 | F9: 2.818652732 | G9: 5.955302875 | H9: 13.82296875
B10: Fresno | C10: 25.46852527 | D10: 16.30917293 | E10: 20.02699792 | F10: 15.77859738 | G10: 7.185517867 | H10: 12.70378315
B11: Fullerton | C11: 20.71072269 | D11: 11.41204274 | E11: 5.675898347 | F11: 8.856538742 | G11: 4.870012033 | H11: 9.091616026
B12: Humboldt | C12: 28.35766788 | D12: 12.25499257 | E12: 20.33719697 | F12: 0.1917216265 | G12: 4.630433996 | H12: 15.37526752
B13: Long Beach | C13: 29.84795454 | D13: 15.4444139 | E13: 9.006734464 | F13: 10.23729035 | G13: 6.465374841 | H13: 13.92063646
B14: Los Angeles | C14: 33.61559667 | D14: 11.13391736 | E14: 5.365403339 | F14: 9.984568041 | G14: 4.571868966 | H14: 9.172058194
B15: Maritime Academy | C15: 42.47747612 | D15: 19.15081152 | E15: 17.12908545 | F15: 3.609576821 | G15: 7.397547504 | H15: 26.64141814
B16: Monterey Bay | C16: 27.63933152 | D16: 17.12534787 | E16: 16.00133964 | F16: 3.371009076 | G16: 6.944852011 | H16: 17.37024984
B17: Northridge | C17: 17.80169517 | D17: 11.10913601 | E17: 5.76739823 | F17: 10.12990722 | G17: 4.889127559 | H17: 10.90285067
B18: Office of the Chancellor​​​ | C18: 18.29285515 | D18: 15.15415728 | E18: 10.18244823 | F18: 13.87068404 | G18: 9.422778215 | H18: 2.687014314
B19: Pomona | C19: 18.27867294 | D19: 11.09055587 | E19: 5.997847415 | F19: 10.36928203 | G19: 5.136781758 | H19: 9.962276981
B20: Sacramento | C20: 25.3246482 | D20: 16.02118362 | E20: 22.09239222 | F20: 11.78931445 | G20: 6.91935736 | H20: 13.29107336
B21: San Bernardino | C21: 16.56885431 | D21: 9.62064397 | E21: 5.516822956 | F21: 8.666149462 | G21: 4.208410619 | H21: 8.997456828
B22: San Diego | C22: 42.64594957 | D22: 23.43922159 | E22: 8.473588246 | F22: 12.27504076 | G22: 9.610117989 | H22: 21.48981567
B23: San Francisco | C23: 17.65896034 | D23: 9.555414325 | E23: 8.7470817 | F23: 1.738170487 | G23: 3.73590615 | H23: 11.85374798
B24: San Jose | C24: 23.30535371 | D24: 13.77957937 | E24: 12.78192892 | F24: 6.984392055 | G24: 5.739480318 | H24: 15.13345099
B25: San Luis Obispo | C25: 27.92044483 | D25: 14.43867201 | E25: 13.87921984 | F25: 2.490113531 | G25: 5.633356969 | H25: 18.7955427
B26: San Marcos | C26: 21.02436624 | D26: 13.27052081 | E26: 8.19121883 | F26: 11.97548568 | G26: 5.841624131 | H26: 9.35876018
B27: Sonoma | C27: 19.23111312 | D27: 13.29187905 | E27: 17.05880867 | F27: 6.010465904 | G27: 5.532134571 | H27: 16.27019732
B28: Stanislaus | C28: 28.35222178 | D28: 13.9299641 | E28: 17.16354649 | F28: 10.35343054 | G28: 6.025274617 | H28: 12.44344644
B29: Title 24 | C29: 25.2004979 | D29: 10.14816521 | E29: 8.378134291 | F29: 6.243280642 | G29: 4.284208489 | H29: 9.607559976
B30: Bakersfield | C30: 19.29266178 | D30: 7.409368146 | E30: 7.90149794 | F30: 7.160753132 | G30: 3.323009743 | H30: 6.86796594
B31: Channel Islands | C31: 29.32477493 | D31: 12.27650987 | E31: 5.814464722 | F31: 8.168075086 | G31: 4.960028512 | H31: 11.62358126
B32: Chico | C32: 25.62118342 | D32: 11.54131856 | E32: 14.9765151 | F32: 10.75855753 | G32: 5.37608187 | H32: 10.62530749
B33: Dominguez Hills | C33: 30.62051215 | D33: 17.27034726 | E33: 10.98628774 | F33: 13.63684074 | G33: 7.545254441 | H33: 12.5723903
B34: East Bay | C34: 24.84458231 | D34: 10.63111197 | E34: 11.13512421 | F34: 1.988606103 | G34: 4.211522198 | H34: 9.4483864
B35: Fresno | C35: 25.46852527 | D35: 11.40884862 | E35: 13.95133561 | F35: 11.03928292 | G35: 5.028553317 | H35: 9.012370717
B36: Fullerton | C36: 20.71072269 | D36: 8.316414985 | E36: 4.147494287 | F36: 6.457545717 | G36: 3.528513951 | H36: 6.335975435
B37: Humboldt | C37: 28.35766788 | D37: 9.410423554 | E37: 15.54374906 | F37: 0.1441881293 | G37: 3.574126862 | H37: 11.58358877
B38: Long Beach | C38: 29.84795454 | D38: 11.32533522 | E38: 6.728267568 | F38: 7.525566899 | G38: 4.740750032 | H38: 9.823727481
B39: Los Angeles | C39: 33.61559667 | D39: 8.07950759 | E39: 3.819716757 | F39: 7.2556076 | G39: 3.296512324 | H39: 6.659752075
B40: Maritime Academy | C40: 42.47747612 | D40: 13.85117211 | E40: 12.19214425 | F40: 2.626089232 | G40: 5.349581467 | H40: 18.99959314
B41: Monterey Bay | C41: 27.63933152 | D41: 11.92072158 | E41: 11.31973486 | F41: 2.351553951 | G41: 4.859656916 | H41: 11.78794837
B42: Northridge | C42: 17.80169517 | D42: 7.886047866 | E42: 4.099898629 | F42: 7.1942607 | G42: 3.472752439 | H42: 7.659821253
B43: Office of the Chancellor​​​ | C43: 18.29285515 | D43: 12.05819326 | E43: 8.102194418 | F43: 11.03693103 | G43: 7.497723471 | H43: 2.138062664
B44: Pomona | C44: 18.27867294 | D44: 8.133340528 | E44: 4.442269906 | F44: 7.658997674 | G44: 3.820680192 | H44: 7.045462211
B45: Sacramento | C45: 25.3246482 | D45: 11.35334153 | E45: 15.64680914 | F45: 8.358030135 | G45: 4.908997641 | H45: 9.486242647
B46: San Bernardino | C46: 16.56885431 | D46: 6.837858408 | E46: 3.877847049 | F46: 6.144052139 | G46: 2.975084958 | H46: 6.290394282
B47: San Diego | C47: 42.64594957 | D47: 16.91165731 | E47: 6.252324058 | F47: 8.877859015 | G47: 6.933228688 | H47: 14.89774097
B48: San Francisco | C48: 17.65896034 | D48: 6.605993987 | E48: 6.168218673 | F48: 1.201395028 | G48: 2.588881151 | H48: 7.889966008
B49: San Jose | C49: 23.30535371 | D49: 9.704230144 | E49: 9.106271917 | F49: 4.917283881 | G49: 4.04180861 | H49: 10.36122216
B50: San Luis Obispo | C50: 27.92044483 | D50: 10.19652421 | E50: 9.94652092 | F50: 1.7767638 | G50: 3.988911261 | H50: 12.75161194
B51: San Marcos | C51: 21.02436624 | D51: 9.507276959 | E51: 5.832143951 | F51: 8.558623611 | G51: 4.1858581 | H51: 6.572922557
B52: Sonoma | C52: 19.23111312 | D52: 9.633188196 | E52: 12.45972833 | F52: 4.353055391 | G52: 4.004143327 | H52: 11.5005631
B53: Stanislaus | C53: 28.35222178 | D53: 10.05625095 | E53: 12.20223885 | F53: 7.503353874 | G53: 4.351115249 | H53: 9.203117422
B54: 10% Better Than Title 24 | C54: 25.2004979 | D54: 8.43413922 | E54: 7.118691783 | F54: 5.216876015 | G54: 3.575794175 | H54: 7.930853059
B55: Bakersfield | C55: 19.29266178 | D55: 6.206350997 | E55: 6.727412202 | F55: 6.01209716 | G55: 2.791605144 | H55: 5.729603729
B56: Channel Islands | C56: 29.32477493 | D56: 10.18548514 | E56: 4.891004839 | F56: 6.801144558 | G56: 4.127886934 | H56: 9.620394536
B57: Chico | C57: 25.62118342 | D57: 9.795844956 | E57: 12.88702023 | F57: 9.151351431 | G57: 4.575880855 | H57: 8.981615469
B58: Dominguez Hills | C58: 30.62051215 | D58: 14.67192203 | E58: 9.459420631 | F58: 11.61558974 | G58: 6.428000607 | H58: 10.5730242
B59: East Bay | C59: 24.84458231 | D59: 8.826590619 | E59: 9.429961305 | F59: 1.657857009 | G59: 3.505793434 | H59: 7.769494775
B60: Fresno | C60: 25.46852527 | D60: 9.660453312 | E60: 11.99731255 | F60: 9.366190936 | G60: 4.266927142 | H60: 7.5586156
B61: Fullerton | C61: 20.71072269 | D61: 6.877008518 | E61: 3.493035685 | F61: 5.362216057 | G61: 2.930235006 | H61: 5.173782402
B62: Humboldt | C62: 28.35766788 | D62: 7.755537617 | E62: 13.10649858 | F62: 0.1195937673 | G62: 2.944978812 | H62: 9.467546804
B63: Long Beach | C63: 29.84795454 | D63: 9.317723355 | E63: 5.674320223 | F63: 6.223586386 | G63: 3.922293361 | H63: 8.006563699
B64: Los Angeles | C64: 33.61559667 | D64: 6.340336699 | E64: 3.116654371 | F64: 5.711512137 | G64: 2.601811939 | H64: 5.066947862
B65: Maritime Academy | C65: 42.47747612 | D65: 11.32707627 | E65: 10.39418419 | F65: 2.139131708 | G65: 4.390651919 | H65: 15.21793048
B66: Monterey Bay | C66: 27.63933152 | D66: 9.918562601 | E66: 9.577171246 | F66: 1.962936914 | G66: 4.055683754 | H66: 9.738342444
B67: Northridge | C67: 17.80169517 | D67: 6.615903078 | E67: 3.487588214 | F67: 6.051146787 | G67: 2.924187421 | H67: 6.419578451
B68: Office of the Chancellor​​​ | C68: 18.29285515 | D68: 10.31217797 | E68: 6.929004123 | F68: 9.438793576 | G68: 6.412060013 | H68: 1.828473158
B69: Pomona | C69: 18.27867294 | D69: 6.82475763 | E69: 3.781145051 | F69: 6.448467726 | G69: 3.222634521 | H69: 5.884279949
B70: Sacramento | C70: 25.3246482 | D70: 9.603693755 | E70: 13.44673063 | F70: 7.084277683 | G70: 4.161925534 | H70: 7.950595049
B71: San Bernardino | C71: 16.56885431 | D71: 5.705658465 | E71: 3.286402747 | F71: 5.138659904 | G71: 2.491120937 | H71: 5.232489929
B72: San Diego | C72: 42.64594957 | D72: 13.84228257 | E72: 5.231863202 | F72: 7.316986819 | G72: 5.710232447 | H72: 12.11956904
B73: San Francisco | C73: 17.65896034 | D73: 5.440858137 | E73: 5.178013938 | F73: 0.9934756412 | G73: 2.137327733 | H73: 6.511187235
B74: San Jose | C74: 23.30535371 | D74: 8.102423582 | E74: 7.745664619 | F74: 4.120469849 | G74: 3.385437748 | H74: 8.632202826
B75: San Luis Obispo | C75: 27.92044483 | D75: 8.399303771 | E75: 8.399445475 | F75: 1.462873354 | G75: 3.294421531 | H75: 10.44621031
B76: San Marcos | C76: 21.02436624 | D76: 7.944673921 | E76: 4.96653296 | F76: 7.19278217 | G76: 3.518520683 | H76: 5.463111429
B77: Sonoma | C77: 19.23111312 | D77: 8.186837462 | E77: 10.72651333 | F77: 3.710942604 | G77: 3.412415567 | H77: 9.800193704
B78: Stanislaus | C78: 28.35222178 | D78: 8.36254673 | E78: 10.38226622 | F78: 6.244885282 | G78: 3.63004983 | H78: 7.530084849
B79: ZNE-Ready | C79: 23.65776049 | D79: 5.482539206 | E79: 4.838190377 | F79: 3.424747925 | G79: 2.341175411 | H79: 5.063891305
B80: Bakersfield | C80: 18.00543936 | D80: 4.133126586 | E80: 4.60564693 | F80: 4.017627942 | G80: 1.865852068 | H80: 3.777005264
B81: Channel Islands | C81: 27.76369274 | D81: 6.478372767 | E81: 3.211205149 | F81: 4.353012536 | G81: 2.641216611 | H81: 6.069639677
B82: Chico | C82: 24.21219456 | D82: 6.653400164 | E82: 8.958949621 | F82: 6.235461088 | G82: 3.11976775 | H82: 6.049501594
B83: Dominguez Hills | C83: 29.22279262 | D83: 9.891524153 | E83: 6.543252303 | F83: 7.866560186 | G83: 4.352702527 | H83: 6.965141158
B84: East Bay | C84: 23.34054651 | D84: 5.684470632 | E84: 6.321003273 | F84: 1.074090012 | G84: 2.269492849 | H84: 4.895306387
B85: Fresno | C85: 23.92657619 | D85: 6.548623555 | E85: 8.349673685 | F85: 6.371289731 | G85: 2.903625643 | H85: 5.03645271
B86: Fullerton | C86: 19.41539301 | D86: 4.389191115 | E86: 2.31311177 | F86: 3.447144667 | G86: 1.882629098 | H86: 3.212389817
B87: Humboldt | C87: 26.09011374 | D87: 5.042928445 | E87: 8.878923403 | F87: 0.0782962683 | G87: 1.915966965 | H87: 6.023302615
B88: Long Beach | C88: 27.84474185 | D88: 5.911926459 | E88: 3.780861441 | F88: 3.986263137 | G88: 2.513286791 | H88: 4.956882899
B89: Los Angeles | C89: 30.72278426 | D89: 3.812104346 | E89: 2.054982688 | F89: 3.45870181 | G89: 1.582042235 | H89: 2.790513563
B90: Maritime Academy | C90: 39.73023968 | D90: 7.0351836 | E90: 7.024304194 | F90: 1.318375772 | G90: 2.7495625 | H90: 8.989573673
B91: Monterey Bay | C91: 26.24830659 | D91: 6.335540327 | E91: 6.336499404 | F91: 1.258682745 | G91: 2.605099959 | H91: 6.133666753
B92: Northridge | C92: 16.89524948 | D92: 4.350375872 | E92: 2.355754499 | F92: 3.996205082 | G92: 1.932649994 | H92: 4.186191535
B93: Office of the Chancellor​​​ | C93: 18.29285515 | D93: 6.8201474 | E93: 4.582623534 | F93: 6.242518666 | G93: 4.240733098 | H93: 1.209294146
B94: Pomona | C94: 17.3457384 | D94: 4.48824965 | E94: 2.55319987 | F94: 4.263572683 | G94: 2.134407046 | H94: 3.815447781
B95: Sacramento | C95: 23.81100609 | D95: 6.493602852 | E95: 9.34103558 | F95: 4.805345526 | G95: 2.823597919 | H95: 5.279956655
B96: San Bernardino | C96: 15.60675328 | D96: 3.840626075 | E96: 2.300985318 | F96: 3.475948509 | G96: 1.682977975 | H96: 3.430718733
B97: San Diego | C97: 39.95520811 | D97: 8.601252798 | E97: 3.415195855 | F97: 4.606427588 | G97: 3.591460087 | H97: 7.392679391
B98: San Francisco | C98: 16.55302703 | D98: 3.640203191 | E98: 3.609762486 | F98: 0.6706223578 | G98: 1.43790232 | H98: 4.359758833
B99: San Jose | C99: 21.95931443 | D99: 5.294570216 | E99: 5.243140083 | F99: 2.708543219 | G99: 2.224087339 | H99: 5.575664009
B100: San Luis Obispo | C100: 26.1711355 | D100: 5.323686115 | E100: 5.600741588 | F100: 0.9273120564 | G100: 2.099466669 | H100: 6.484128524
B101: San Marcos | C101: 19.86768241 | D101: 5.178032755 | E101: 3.353277553 | F101: 4.734754966 | G101: 2.316172792 | H101: 3.526693894
B102: Sonoma | C102: 18.4228387 | D102: 5.532224327 | E102: 7.425254888 | F102: 2.520796986 | G102: 2.315796046 | H102: 6.610343077
B103: Stanislaus | C103: 26.34352633 | D103: 5.476110723 | E103: 7.077191878 | F103: 4.09386294 | G103: 2.388829991 | H103: 4.788073899
B104: Grand Total | C104: 24.81481355 | D104: 9.552565918 | E104: 7.988640417 | F104: 5.889226093 | G104: 4.041281387 | H104: 9.084350959

Sheet CSU_data_summary
K1: 9 | L1: 10 | M1: 11
C2: Current | K2: 24 | L2: 25 | M2: 26
C3: Title 24 | K3: 34 | L3: 35 | M3: 36
C4: 10% Better Than Title 24 | K4: 45 | L4: 46 | M4: 47
C5: ZNE-Ready | K5: 56 | L5: 57 | M5: 58
B7: Unique Identifier | C7: Energy Criteria | D7: Campus | E7: Building Type | F7: Area | G7: Heating | H7: Cooling | I7: Ventilation | J7: Water Heating | K7: Lighting | L7: Equipment | M7: Total EUI | N7: Total kBtu | O7: Weighted Heating | P7: Weighted Cooling | Q7: Weighted Ventilation | R7: Weighted Water Heating | S7: Weighted Lighting | T7: Weighted Equipment
B8: Current-Bakersfield-Administration | C8: Current | D8: Bakersfield | E8: Administration | F8: 33221 | G8: 9.034854744 | H8: 8.791968485 | I8: 4.503369235 | J8: 1.462466804 | K8: 8.703902256 | L8: 9.786908849 | M8: 42.28347037 | N8: 1404699.169 | O8: =CSU_data_summary[[#This Row],[Heating]]*CSU_data_summary[[#This Row],[Area]] -> 300146.9095 | P8: =CSU_data_summary[[#This Row],[Cooling]]*CSU_data_summary[[#This Row],[Area]] -> 292077.985 | Q8: =CSU_data_summary[[#This Row],[Ventilation]]*CSU_data_summary[[#This Row],[Area]] -> 149606.4294 | R8: =CSU_data_summary[[#This Row],[Water Heating]]*CSU_data_summary[[#This Row],[Area]] -> 48584.60969 | S8: =CSU_data_summary[[#This Row],[Lighting]]*CSU_data_summary[[#This Row],[Area]] -> 289152.3368 | T8: =CSU_data_summary[[#This Row],[Equipment]]*CSU_data_summary[[#This Row],[Area]] -> 325130.8989
B9: Current-Bakersfield-Business Administration | C9: Current | D9: Bakersfield | E9: Business Administration | F9: 39000 | G9: 5.457576453 | H9: 6.919982265 | I9: 2.402587761 | J9: 1.295950064 | K9: 8.564369563 | L9: 7.468399848 | M9: 32.10886595 | N9: 1252245.772 | O9: =CSU_data_summary[[#This Row],[Heating]]*CSU_data_summary[[#This Row],[Area]] -> 212845.4817 | P9: =CSU_data_summary[[#This Row],[Cooling]]*CSU_data_summary[[#This Row],[Area]] -> 269879.3083 | Q9: =CSU_data_summary[[#This Row],[Ventilation]]*CSU_data_summary[[#This Row],[Area]] -> 93700.92268 | R9: =CSU_data_summary[[#This Row],[Water Heating]]*CSU_data_summary[[#This Row],[Area]] -> 50542.0525 | S9: =CSU_data_summary[[#This Row],[Lighting]]*CSU_data_summary[[#This Row],[Area]] -> 334010.413 | T9: =CSU_data_summary[[#This Row],[Equipment]]*CSU_data_summary[[#This Row],[Area]] -> 291267.5941
B10: Current-Bakersfield-Classroom | C10: Current | D10: Bakersfield | E10: Classroom | F10: 77294 | G10: 13.49094861 | H10: 8.562135404 | I10: 3.894430315 | J10: 4.575074263 | K10: 8.619366484 | L10: 6.343117816 | M10: 45.48507289 | N10: 3515723.224 | O10: =CSU_data_summary[[#This Row],[Heating]]*CSU_data_summary[[#This Row],[Area]] -> 1042769.382 | P10: =CSU_data_summary[[#This Row],[Cooling]]*CSU_data_summary[[#This Row],[Area]] -> 661801.6939 | Q10: =CSU_data_summary[[#This Row],[Ventilation]]*CSU_data_summary[[#This Row],[Area]] -> 301016.0967 | R10: =CSU_data_summary[[#This Row],[Water Heating]]*CSU_data_summary[[#This Row],[Area]] -> 353625.7901 | S10: =CSU_data_summary[[#This Row],[Lighting]]*CSU_data_summary[[#This Row],[Area]] -> 666225.313 | T10: =CSU_data_summary[[#This Row],[Equipment]]*CSU_data_summary[[#This Row],[Area]] -> 490284.9484
B11: Current-Bakersfield-Education | C11: Current | D11: Bakersfield | E11: Education | F11: 33074 | G11: 13.49094861 | H11: 8.562135404 | I11: 3.894430315 | J11: 4.575074263 | K11: 8.619366484 | L11: 6.343117816 | M11: 45.48507289 | N11: 1504373.301 | O11: =CSU_data_summary[[#This Row],[Heating]]*CSU_data_summary[[#This Row],[Area]] -> 446199.6342 | P11: =CSU_data_summary[[#This Row],[Cooling]]*CSU_data_summary[[#This Row],[Area]] -> 283184.0664 | Q11: =CSU_data_summary[[#This Row],[Ventilation]]*CSU_data_summary[[#This Row],[Area]] -> 128804.3882 | R11: =CSU_data_summary[[#This Row],[Water Heating]]*CSU_data_summary[[#This Row],[Area]] -> 151316.0062 | S11: =CSU_data_summary[[#This Row],[Lighting]]*CSU_data_summary[[#This Row],[Area]] -> 285076.9271 | T11: =CSU_data_summary[[#This Row],[Equipment]]*CSU_data_summary[[#This Row],[Area]] -> 209792.2786
B12: Current-Bakersfield-Library | C12: Current | D12: Bakersfield | E12: Library | F12: 153400 | G12: 13.49094861 | H12: 8.562135404 | I12: 3.894430315 | J12: 4.575074263 | K12: 8.619366484 | L12: 6.343117816 | M12: 45.48507289 | N12: 6977410.181 | O12: =CSU_data_summary[[#This Row],[Heating]]*CSU_data_summary[[#This Row],[Area]] -> 2069511.516 | P12: =CSU_data_summary[[#This Row],[Cooling]]*CSU_data_summary[[#This Row],[Area]] -> 1313431.571 | Q12: =CSU_data_summary[[#This Row],[Ventilation]]*CSU_data_summary[[#This Row],[Area]] -> 597405.6102 | R12: =CSU_data_summary[[#This Row],[Water Heating]]*CSU_data_summary[[#This Row],[Area]] -> 701816.3919 | S12: =CSU_data_summary[[#This Row],[Lighting]]*CSU_data_summary[[#This Row],[Area]] -> 1322210.819 | T12: =CSU_data_summary[[#This Row],[Equipment]]*CSU_data_summary[[#This Row],[Area]] -> 973034.2729
B13: Current-Bakersfield-Recreation Center | C13: Current | D13: Bakersfield | E13: Recreation Center | F13: 75411 | G13: 13.49094861 | H13: 8.562135404 | I13: 3.894430315 | J13: 4.575074263 | K13: 8.619366484 | L13: 6.343117816 | M13: 45.48507289 | N13: 3430074.831 | O13: =CSU_data_summary[[#This Row],[Heating]]*CSU_data_summary[[#This Row],[Area]] -> 1017365.925 | P13: =CSU_data_summary[[#This Row],[Cooling]]*CSU_data_summary[[#This Row],[Area]] -> 645679.193 | Q13: =CSU_data_summary[[#This Row],[Ventilation]]*CSU_data_summary[[#This Row],[Area]] -> 293682.8844 | R13: =CSU_data_summary[[#This Row],[Water Heating]]*CSU_data_summary[[#This Row],[Area]] -> 345010.9252 | S13: =CSU_data_summary[[#This Row],[Lighting]]*CSU_data_summary[[#This Row],[Area]] -> 649995.0459 | T13: =CSU_data_summary[[#This Row],[Equipment]]*CSU_data_summary[[#This Row],[Area]] -> 478340.8576
B14: Current-Bakersfield-Residence Hall | C14: Current | D14: Bakersfield | E14: Residence Hall | F14: 213492 | G14: 6.588156022 | H14: 7.676817895 | I14: 3.831802551 | J14: 14.85482445 | K14: 7.486104974 | L14: 9.650813509 | M14: 50.0885194 | N14: 10693498.18 | O14: =CSU_data_summary[[#This Row],[Heating]]*CSU_data_summary[[#This Row],[Area]] -> 1406518.606 | P14: =CSU_data_summary[[#This Row],[Cooling]]*CSU_data_summary[[#This Row],[Area]] -> 1638939.206 | Q14: =CSU_data_summary[[#This Row],[Ventilation]]*CSU_data_summary[[#This Row],[Area]] -> 818059.1903 | R14: =CSU_data_summary[[#This Row],[Water Heating]]*CSU_data_summary[[#This Row],[Area]] -> 3171386.18 | S14: =CSU_data_summary[[#This Row],[Lighting]]*CSU_data_summary[[#This Row],[Area]] -> 1598223.523 | T14: =CSU_data_summary[[#This Row],[Equipment]]*CSU_data_summary[[#This Row],[Area]] -> 2060371.478
B15: Current-Bakersfield-Science | C15: Current | D15: Bakersfield | E15: Science | F15: 142730 | G15: 13.26748659 | H15: 17.8975008 | I15: 8.149333995 | J15: 19.6330571 | K15: 19.61336588 | L15: 74.43677293 | M15: 152.9975173 | N15: 21837335.65 | O15: =CSU_data_summary[[#This Row],[Heating]]*CSU_data_summary[[#This Row],[Area]] -> 1893668.361 | P15: =CSU_data_summary[[#This Row],[Cooling]]*CSU_data_summary[[#This Row],[Area]] -> 2554510.29 | Q15: =CSU_data_summary[[#This Row],[Ventilation]]*CSU_data_summary[[#This Row],[Area]] -> 1163154.441 | R15: =CSU_data_summary[[#This Row],[Water Heating]]*CSU_data_summary[[#This Row],[Area]] -> 2802226.24 | S15: =CSU_data_summary[[#This Row],[Lighting]]*CSU_data_summary[[#This Row],[Area]] -> 2799415.713 | T15: =CSU_data_summary[[#This Row],[Equipment]]*CSU_data_summary[[#This Row],[Area]] -> 10624360.6
B16: Current-Bakersfield-Student Services | C16: Current | D16: Bakersfield | E16: Student Services | F16: 30406 | G16: 9.034854744 | H16: 8.791968485 | I16: 4.503369235 | J16: 1.462466804 | K16: 8.703902256 | L16: 9.786908849 | M16: 42.28347037 | N16: 1285671.2 | O16: =CSU_data_summary[[#This Row],[Heating]]*CSU_data_summary[[#This Row],[Area]] -> 274713.7933 | P16: =CSU_data_summary[[#This Row],[Cooling]]*CSU_data_summary[[#This Row],[Area]] -> 267328.5938 | Q16: =CSU_data_summary[[#This Row],[Ventilation]]*CSU_data_summary[[#This Row],[Area]] -> 136929.445 | R16: =CSU_data_summary[[#This Row],[Water Heating]]*CSU_data_summary[[#This Row],[Area]] -> 44467.76563 | S16: =CSU_data_summary[[#This Row],[Lighting]]*CSU_data_summary[[#This Row],[Area]] -> 264650.852 | T16: =CSU_data_summary[[#This Row],[Equipment]]*CSU_data_summary[[#This Row],[Area]] -> 297580.7505
B17: Current-Bakersfield-Theater Arts | C17: Current | D17: Bakersfield | E17: Theater Arts | F17: 27343 | G17: 13.49094861 | H17: 8.562135404 | I17: 3.894430315 | J17: 4.575074263 | K17: 8.619366484 | L17: 6.343117816 | M17: 45.48507289 | N17: 1243698.348 | O17: =CSU_data_summary[[#This Row],[Heating]]*CSU_data_summary[[#This Row],[Area]] -> 368883.0077 | P17: =CSU_data_summary[[#This Row],[Cooling]]*CSU_data_summary[[#This Row],[Area]] -> 234114.4684 | Q17: =CSU_data_summary[[#This Row],[Ventilation]]*CSU_data_summary[[#This Row],[Area]] -> 106485.4081 | R17: =CSU_data_summary[[#This Row],[Water Heating]]*CSU_data_summary[[#This Row],[Area]] -> 125096.2556 | S17: =CSU_data_summary[[#This Row],[Lighting]]*CSU_data_summary[[#This Row],[Area]] -> 235679.3378 | T17: =CSU_data_summary[[#This Row],[Equipment]]*CSU_data_summary[[#This Row],[Area]] -> 173439.8704
B18: Current-Channel Islands-Administration | C18: Current | D18: Channel Islands | E18: Administration | F18: 66190 | G18: 9.514015644 | H18: 14.14113507 | I18: 8.534464862 | J18: 2.902344368 | K18: 17.08175894 | L18: 18.54799892 | M18: 70.72171781 | N18: 4681070.502 | O18: =CSU_data_summary[[#This Row],[Heating]]*CSU_data_summary[[#This Row],[Area]] -> 629732.6954 | P18: =CSU_data_summary[[#This Row],[Cooling]]*CSU_data_summary[[#This Row],[Area]] -> 936001.7306 | Q18: =CSU_data_summary[[#This Row],[Ventilation]]*CSU_data_summary[[#This Row],[Area]] -> 564896.2292 | R18: =CSU_data_summary[[#This Row],[Water Heating]]*CSU_data_summary[[#This Row],[Area]] -> 192106.1737 | S18: =CSU_data_summary[[#This Row],[Lighting]]*CSU_data_summary[[#This Row],[Area]] -> 1130641.624 | T18: =CSU_data_summary[[#This Row],[Equipment]]*CSU_data_summary[[#This Row],[Area]] -> 1227692.049
B19: Current-Channel Islands-Business Administration | C19: Current | D19: Channel Islands | E19: Business Administration | F19: 33625 | G19: 5.576895658 | H19: 10.8007306 | I19: 4.418430241 | J19: 2.495750666 | K19: 16.35162006 | L19: 14.06063579 | M19: 53.70406301 | N19: 1805799.119 | O19: =CSU_data_summary[[#This Row],[Heating]]*CSU_data_summary[[#This Row],[Area]] -> 187523.1165 | P19: =CSU_data_summary[[#This Row],[Cooling]]*CSU_data_summary[[#This Row],[Area]] -> 363174.5663 | Q19: =CSU_data_summary[[#This Row],[Ventilation]]*CSU_data_summary[[#This Row],[Area]] -> 148569.7169 | R19: =CSU_data_summary[[#This Row],[Water Heating]]*CSU_data_summary[[#This Row],[Area]] -> 83919.61615 | S19: =CSU_data_summary[[#This Row],[Lighting]]*CSU_data_summary[[#This Row],[Area]] -> 549823.2246 | T19: =CSU_data_summary[[#This Row],[Equipment]]*CSU_data_summary[[#This Row],[Area]] -> 472788.8783
B20: Current-Channel Islands-Classroom | C20: Current | D20: Channel Islands | E20: Classroom | F20: 127081 | G20: 14.17299848 | H20: 11.40008556 | I20: 7.07880814 | J20: 8.854530413 | K20: 16.50327248 | L20: 11.94072765 | M20: 69.95042272 | N20: 8889369.67 | O20: =CSU_data_summary[[#This Row],[Heating]]*CSU_data_summary[[#This Row],[Area]] -> 1801118.819 | P20: =CSU_data_summary[[#This Row],[Cooling]]*CSU_data_summary[[#This Row],[Area]] -> 1448734.274 | Q20: =CSU_data_summary[[#This Row],[Ventilation]]*CSU_data_summary[[#This Row],[Area]] -> 899582.0173 | R20: =CSU_data_summary[[#This Row],[Water Heating]]*CSU_data_summary[[#This Row],[Area]] -> 1125242.579 | S20: =CSU_data_summary[[#This Row],[Lighting]]*CSU_data_summary[[#This Row],[Area]] -> 2097252.37 | T20: =CSU_data_summary[[#This Row],[Equipment]]*CSU_data_summary[[#This Row],[Area]] -> 1517439.611
B21: Current-Channel Islands-Faculty Office | C21: Current | D21: Channel Islands | E21: Faculty Office | F21: 131243 | G21: 5.576895658 | H21: 10.8007306 | I21: 4.418430241 | J21: 2.495750666 | K21: 16.35162006 | L21: 14.06063579 | M21: 53.70406301 | N21: 7048282.342 | O21: =CSU_data_summary[[#This Row],[Heating]]*CSU_data_summary[[#This Row],[Area]] -> 731928.5169 | P21: =CSU_data_summary[[#This Row],[Cooling]]*CSU_data_summary[[#This Row],[Area]] -> 1417520.286 | Q21: =CSU_data_summary[[#This Row],[Ventilation]]*CSU_data_summary[[#This Row],[Area]] -> 579888.0402 | R21: =CSU_data_summary[[#This Row],[Water Heating]]*CSU_data_summary[[#This Row],[Area]] -> 327549.8047 | S21: =CSU_data_summary[[#This Row],[Lighting]]*CSU_data_summary[[#This Row],[Area]] -> 2146035.672 | T21: =CSU_data_summary[[#This Row],[Equipment]]*CSU_data_summary[[#This Row],[Area]] -> 1845360.022
B22: Current-Channel Islands-Library | C22: Current | D22: Channel Islands | E22: Library | F22: 152518 | G22: 14.17299848 | H22: 11.40008556 | I22: 7.07880814 | J22: 8.854530413 | K22: 16.50327248 | L22: 11.94072765 | M22: 69.95042272 | N22: 10668698.57 | O22: =CSU_data_summary[[#This Row],[Heating]]*CSU_data_summary[[#This Row],[Area]] -> 2161637.381 | P22: =CSU_data_summary[[#This Row],[Cooling]]*CSU_data_summary[[#This Row],[Area]] -> 1738718.25 | Q22: =CSU_data_summary[[#This Row],[Ventilation]]*CSU_data_summary[[#This Row],[Area]] -> 1079645.66 | R22: =CSU_data_summary[[#This Row],[Water Heating]]*CSU_data_summary[[#This Row],[Area]] -> 1350475.269 | S22: =CSU_data_summary[[#This Row],[Lighting]]*CSU_data_summary[[#This Row],[Area]] -> 2517046.112 | T22: =CSU_data_summary[[#This Row],[Equipment]]*CSU_data_summary[[#This Row],[Area]] -> 1821175.9
B23: Current-Channel Islands-Residence Hall | C23: Current | D23: Channel Islands | E23: Residence Hall | F23: 417028 | G23: 2.79958702 | H23: 8.612641147 | I23: 6.012257565 | J23: 30.36747099 | K23: 14.03032904 | L23: 17.72807589 | M23: 79.55036165 | N23: 33174728.22 | O23: =CSU_data_summary[[#This Row],[Heating]]*CSU_data_summary[[#This Row],[Area]] -> 1167506.176 | P23: =CSU_data_summary[[#This Row],[Cooling]]*CSU_data_summary[[#This Row],[Area]] -> 3591712.512 | Q23: =CSU_data_summary[[#This Row],[Ventilation]]*CSU_data_summary[[#This Row],[Area]] -> 2507279.748 | R23: =CSU_data_summary[[#This Row],[Water Heating]]*CSU_data_summary[[#This Row],[Area]] -> 12664085.69 | S23: =CSU_data_summary[[#This Row],[Lighting]]*CSU_data_summary[[#This Row],[Area]] -> 5851040.06 | T23: =CSU_data_summary[[#This Row],[Equipment]]*CSU_data_summary[[#This Row],[Area]] -> 7393104.032
B24: Current-Channel Islands-Science | C24: Current | D24: Channel Islands | E24: Science | F24: 131622 | G24: 10.32875868 | H24: 17.65869603 | I24: 10.97687056 | J24: 28.15759362 | K24: 29.35198156 | L24: 138.8173794 | M24: 235.2912798 | N24: 30969508.83 | O24: =CSU_data_summary[[#This Row],[Heating]]*CSU_data_summary[[#This Row],[Area]] -> 1359491.875 | P24: =CSU_data_summary[[#This Row],[Cooling]]*CSU_data_summary[[#This Row],[Area]] -> 2324272.889 | Q24: =CSU_data_summary[[#This Row],[Ventilation]]*CSU_data_summary[[#This Row],[Area]] -> 1444797.656 | R24: =CSU_data_summary[[#This Row],[Water Heating]]*CSU_data_summary[[#This Row],[Area]] -> 3706158.787 | S24: =CSU_data_summary[[#This Row],[Lighting]]*CSU_data_summary[[#This Row],[Area]] -> 3863366.517 | T24: =CSU_data_summary[[#This Row],[Equipment]]*CSU_data_summary[[#This Row],[Area]] -> 18271421.11
B25: Current-Channel Islands-Student Services | C25: Current | D25: Channel Islands | E25: Student Services | F25: 67082 | G25: 9.514015644 | H25: 14.14113507 | I25: 8.534464862 | J25: 2.902344368 | K25: 17.08175894 | L25: 18.54799892 | M25: 70.72171781 | N25: 4744154.274 | O25: =CSU_data_summary[[#This Row],[Heating]]*CSU_data_summary[[#This Row],[Area]] -> 638219.1974 | P25: =CSU_data_summary[[#This Row],[Cooling]]*CSU_data_summary[[#This Row],[Area]] -> 948615.623 | Q25: =CSU_data_summary[[#This Row],[Ventilation]]*CSU_data_summary[[#This Row],[Area]] -> 572508.9718 | R25: =CSU_data_summary[[#This Row],[Water Heating]]*CSU_data_summary[[#This Row],[Area]] -> 194695.0649 | S25: =CSU_data_summary[[#This Row],[Lighting]]*CSU_data_summary[[#This Row],[Area]] -> 1145878.553 | T25: =CSU_data_summary[[#This Row],[Equipment]]*CSU_data_summary[[#This Row],[Area]] -> 1244236.864
B26: Current-Channel Islands-Theater Arts | C26: Current | D26: Channel Islands | E26: Theater Arts | F26: 19401 | G26: 14.17299848 | H26: 11.40008556 | I26: 7.07880814 | J26: 8.854530413 | K26: 16.50327248 | L26: 11.94072765 | M26: 69.95042272 | N26: 1357108.151 | O26: =CSU_data_summary[[#This Row],[Heating]]*CSU_data_summary[[#This Row],[Area]] -> 274970.3434 | P26: =CSU_data_summary[[#This Row],[Cooling]]*CSU_data_summary[[#This Row],[Area]] -> 221173.06 | Q26: =CSU_data_summary[[#This Row],[Ventilation]]*CSU_data_summary[[#This Row],[Area]] -> 137335.9567 | R26: =CSU_data_summary[[#This Row],[Water Heating]]*CSU_data_summary[[#This Row],[Area]] -> 171786.7445 | S26: =CSU_data_summary[[#This Row],[Lighting]]*CSU_data_summary[[#This Row],[Area]] -> 320179.9893 | T26: =CSU_data_summary[[#This Row],[Equipment]]*CSU_data_summary[[#This Row],[Area]] -> 231662.0572
B27: Current-Channel Islands-University Union | C27: Current | D27: Channel Islands | E27: University Union | F27: 24643 | G27: 12.66855738 | H27: 12.33786624 | I27: 7.647436075 | J27: 9.780575469 | K27: 17.55419224 | L27: 12.08472084 | M27: 72.07334824 | N27: 1776103.521 | O27: =CSU_data_summary[[#This Row],[Heating]]*CSU_data_summary[[#This Row],[Area]] -> 312191.2595 | P27: =CSU_data_summary[[#This Row],[Cooling]]*CSU_data_summary[[#This Row],[Area]] -> 304042.0377 | Q27: =CSU_data_summary[[#This Row],[Ventilation]]*CSU_data_summary[[#This Row],[Area]] -> 188455.7672 | R27: =CSU_data_summary[[#This Row],[Water Heating]]*CSU_data_summary[[#This Row],[Area]] -> 241022.7213 | S27: =CSU_data_summary[[#This Row],[Lighting]]*CSU_data_summary[[#This Row],[Area]] -> 432587.9594 | T27: =CSU_data_summary[[#This Row],[Equipment]]*CSU_data_summary[[#This Row],[Area]] -> 297803.7756
B28: Current-Chico-Administration | C28: Current | D28: Chico | E28: Administration | F28: 200561 | G28: 16.75929545 | H28: 14.22424307 | I28: 7.560632788 | J28: 2.435854864 | K28: 14.42290201 | L28: 16.50727359 | M28: 71.91020177 | N28: 14422381.98 | O28: =CSU_data_summary[[#This Row],[Heating]]*CSU_data_summary[[#This Row],[Area]] -> 3361261.054 | P28: =CSU_data_summary[[#This Row],[Cooling]]*CSU_data_summary[[#This Row],[Area]] -> 2852828.415 | Q28: =CSU_data_summary[[#This Row],[Ventilation]]*CSU_data_summary[[#This Row],[Area]] -> 1516368.073 | R28: =CSU_data_summary[[#This Row],[Water Heating]]*CSU_data_summary[[#This Row],[Area]] -> 488537.4875 | S28: =CSU_data_summary[[#This Row],[Lighting]]*CSU_data_summary[[#This Row],[Area]] -> 2892671.651 | T28: =CSU_data_summary[[#This Row],[Equipment]]*CSU_data_summary[[#This Row],[Area]] -> 3310715.298
B29: Current-Chico-Apartments | C29: Current | D29: Chico | E29: Apartments | F29: 140740 | G29: 13.18558532 | H29: 12.44584191 | I29: 6.600246061 | J29: 24.99225036 | K29: 12.59629712 | L29: 16.27158883 | M29: 86.0918096 | N29: 12116561.28 | O29: =CSU_data_summary[[#This Row],[Heating]]*CSU_data_summary[[#This Row],[Area]] -> 1855739.277 | P29: =CSU_data_summary[[#This Row],[Cooling]]*CSU_data_summary[[#This Row],[Area]] -> 1751627.79 | Q29: =CSU_data_summary[[#This Row],[Ventilation]]*CSU_data_summary[[#This Row],[Area]] -> 928918.6307 | R29: =CSU_data_summary[[#This Row],[Water Heating]]*CSU_data_summary[[#This Row],[Area]] -> 3517409.316 | S29: =CSU_data_summary[[#This Row],[Lighting]]*CSU_data_summary[[#This Row],[Area]] -> 1772802.857 | T29: =CSU_data_summary[[#This Row],[Equipment]]*CSU_data_summary[[#This Row],[Area]] -> 2290063.411
B30: Current-Chico-Classroom | C30: Current | D30: Chico | E30: Classroom | F30: 293348 | G30: 24.33772569 | H30: 13.48243966 | I30: 6.511274387 | J30: 7.785056389 | K30: 14.49127659 | L30: 10.72036861 | M30: 77.32814133 | N30: 22684055.6 | O30: =CSU_data_summary[[#This Row],[Heating]]*CSU_data_summary[[#This Row],[Area]] -> 7139423.155 | P30: =CSU_data_summary[[#This Row],[Cooling]]*CSU_data_summary[[#This Row],[Area]] -> 3955046.71 | Q30: =CSU_data_summary[[#This Row],[Ventilation]]*CSU_data_summary[[#This Row],[Area]] -> 1910069.319 | R30: =CSU_data_summary[[#This Row],[Water Heating]]*CSU_data_summary[[#This Row],[Area]] -> 2283730.721 | S30: =CSU_data_summary[[#This Row],[Lighting]]*CSU_data_summary[[#This Row],[Area]] -> 4250987.005 | T30: =CSU_data_summary[[#This Row],[Equipment]]*CSU_data_summary[[#This Row],[Area]] -> 3144798.692
B31: Current-Chico-Engineering | C31: Current | D31: Chico | E31: Engineering | F31: 132815 | G31: 24.33772569 | H31: 13.48243966 | I31: 6.511274387 | J31: 7.785056389 | K31: 14.49127659 | L31: 10.72036861 | M31: 77.32814133 | N31: 10270337.09 | O31: =CSU_data_summary[[#This Row],[Heating]]*CSU_data_summary[[#This Row],[Area]] -> 3232415.037 | P31: =CSU_data_summary[[#This Row],[Cooling]]*CSU_data_summary[[#This Row],[Area]] -> 1790670.224 | Q31: =CSU_data_summary[[#This Row],[Ventilation]]*CSU_data_summary[[#This Row],[Area]] -> 864794.9077 | R31: =CSU_data_summary[[#This Row],[Water Heating]]*CSU_data_summary[[#This Row],[Area]] -> 1033972.264 | S31: =CSU_data_summary[[#This Row],[Lighting]]*CSU_data_summary[[#This Row],[Area]] -> 1924658.9 | T31: =CSU_data_summary[[#This Row],[Equipment]]*CSU_data_summary[[#This Row],[Area]] -> 1423825.758
B32: Current-Chico-Library | C32: Current | D32: Chico | E32: Library | F32: 269018 | G32: 24.33772569 | H32: 13.48243966 | I32: 6.511274387 | J32: 7.785056389 | K32: 14.49127659 | L32: 10.72036861 | M32: 77.32814133 | N32: 20802661.92 | O32: =CSU_data_summary[[#This Row],[Heating]]*CSU_data_summary[[#This Row],[Area]] -> 6547286.289 | P32: =CSU_data_summary[[#This Row],[Cooling]]*CSU_data_summary[[#This Row],[Area]] -> 3627018.953 | Q32: =CSU_data_summary[[#This Row],[Ventilation]]*CSU_data_summary[[#This Row],[Area]] -> 1751650.013 | R32: =CSU_data_summary[[#This Row],[Water Heating]]*CSU_data_summary[[#This Row],[Area]] -> 2094320.3 | S32: =CSU_data_summary[[#This Row],[Lighting]]*CSU_data_summary[[#This Row],[Area]] -> 3898414.245 | T32: =CSU_data_summary[[#This Row],[Equipment]]*CSU_data_summary[[#This Row],[Area]] -> 2883972.124
B33: Current-Chico-Recreation Center | C33: Current | D33: Chico | E33: Recreation Center | F33: 109000 | G33: 24.33772569 | H33: 13.48243966 | I33: 6.511274387 | J33: 7.785056389 | K33: 14.49127659 | L33: 10.72036861 | M33: 77.32814133 | N33: 8428767.405 | O33: =CSU_data_summary[[#This Row],[Heating]]*CSU_data_summary[[#This Row],[Area]] -> 2652812.1 | P33: =CSU_data_summary[[#This Row],[Cooling]]*CSU_data_summary[[#This Row],[Area]] -> 1469585.923 | Q33: =CSU_data_summary[[#This Row],[Ventilation]]*CSU_data_summary[[#This Row],[Area]] -> 709728.9082 | R33: =CSU_data_summary[[#This Row],[Water Heating]]*CSU_data_summary[[#This Row],[Area]] -> 848571.1464 | S33: =CSU_data_summary[[#This Row],[Lighting]]*CSU_data_summary[[#This Row],[Area]] -> 1579549.148 | T33: =CSU_data_summary[[#This Row],[Equipment]]*CSU_data_summary[[#This Row],[Area]] -> 1168520.179
B34: Current-Chico-Residence Hall | C34: Current | D34: Chico | E34: Residence Hall | F34: 395616 | G34: 13.18558532 | H34: 12.44584191 | I34: 6.600246061 | J34: 24.99225036 | K34: 12.59629712 | L34: 16.27158883 | M34: 86.0918096 | N34: 34059297.34 | O34: =CSU_data_summary[[#This Row],[Heating]]*CSU_data_summary[[#This Row],[Area]] -> 5216428.52 | P34: =CSU_data_summary[[#This Row],[Cooling]]*CSU_data_summary[[#This Row],[Area]] -> 4923774.192 | Q34: =CSU_data_summary[[#This Row],[Ventilation]]*CSU_data_summary[[#This Row],[Area]] -> 2611162.946 | R34: =CSU_data_summary[[#This Row],[Water Heating]]*CSU_data_summary[[#This Row],[Area]] -> 9887334.12 | S34: =CSU_data_summary[[#This Row],[Lighting]]*CSU_data_summary[[#This Row],[Area]] -> 4983296.682 | T34: =CSU_data_summary[[#This Row],[Equipment]]*CSU_data_summary[[#This Row],[Area]] -> 6437300.885
B35: Current-Chico-Science | C35: Current | D35: Chico | E35: Science | F35: 230299 | G35: 24.37060578 | H35: 28.69584037 | I35: 13.87344576 | J35: 34.01666302 | K35: 33.47876086 | L35: 125.4470506 | M35: 259.8823664 | N35: 59850649.09 | O35: =CSU_data_summary[[#This Row],[Heating]]*CSU_data_summary[[#This Row],[Area]] -> 5612526.142 | P35: =CSU_data_summary[[#This Row],[Cooling]]*CSU_data_summary[[#This Row],[Area]] -> 6608623.342 | Q35: =CSU_data_summary[[#This Row],[Ventilation]]*CSU_data_summary[[#This Row],[Area]] -> 3195040.686 | R35: =CSU_data_summary[[#This Row],[Water Heating]]*CSU_data_summary[[#This Row],[Area]] -> 7834003.477 | S35: =CSU_data_summary[[#This Row],[Lighting]]*CSU_data_summary[[#This Row],[Area]] -> 7710125.148 | T35: =CSU_data_summary[[#This Row],[Equipment]]*CSU_data_summary[[#This Row],[Area]] -> 28890330.3
B36: Current-Chico-Theater Arts | C36: Current | D36: Chico | E36: Theater Arts | F36: 144224 | G36: 24.33772569 | H36: 13.48243966 | I36: 6.511274387 | J36: 7.785056389 | K36: 14.49127659 | L36: 10.72036861 | M36: 77.32814133 | N36: 11152573.85 | O36: =CSU_data_summary[[#This Row],[Heating]]*CSU_data_summary[[#This Row],[Area]] -> 3510084.149 | P36: =CSU_data_summary[[#This Row],[Cooling]]*CSU_data_summary[[#This Row],[Area]] -> 1944491.378 | Q36: =CSU_data_summary[[#This Row],[Ventilation]]*CSU_data_summary[[#This Row],[Area]] -> 939082.0372 | R36: =CSU_data_summary[[#This Row],[Water Heating]]*CSU_data_summary[[#This Row],[Area]] -> 1122791.973 | S36: =CSU_data_summary[[#This Row],[Lighting]]*CSU_data_summary[[#This Row],[Area]] -> 2089989.875 | T36: =CSU_data_summary[[#This Row],[Equipment]]*CSU_data_summary[[#This Row],[Area]] -> 1546134.443
B37: Current-Chico-University Union | C37: Current | D37: Chico | E37: University Union | F37: 134809 | G37: 25.98081984 | H37: 12.88232203 | I37: 6.436150569 | J37: 7.2187681 | K37: 13.73739693 | L37: 10.67274467 | M37: 76.92820214 | N37: 10370614 | O37: =CSU_data_summary[[#This Row],[Heating]]*CSU_data_summary[[#This Row],[Area]] -> 3502448.342 | P37: =CSU_data_summary[[#This Row],[Cooling]]*CSU_data_summary[[#This Row],[Area]] -> 1736652.95 | Q37: =CSU_data_summary[[#This Row],[Ventilation]]*CSU_data_summary[[#This Row],[Area]] -> 867651.022 | R37: =CSU_data_summary[[#This Row],[Water Heating]]*CSU_data_summary[[#This Row],[Area]] -> 973154.9088 | S37: =CSU_data_summary[[#This Row],[Lighting]]*CSU_data_summary[[#This Row],[Area]] -> 1851924.743 | T37: =CSU_data_summary[[#This Row],[Equipment]]*CSU_data_summary[[#This Row],[Area]] -> 1438782.036
B38: Current-Dominguez Hills-Administration | C38: Current | D38: Dominguez Hills | E38: Administration | F38: 47159 | G38: 11.32103717 | H38: 21.00382279 | I38: 12.01037254 | J38: 3.943295788 | K38: 23.45505219 | L38: 25.07919328 | M38: 96.81277376 | N38: 4565593.598 | O38: =CSU_data_summary[[#This Row],[Heating]]*CSU_data_summary[[#This Row],[Area]] -> 533888.7921 | P38: =CSU_data_summary[[#This Row],[Cooling]]*CSU_data_summary[[#This Row],[Area]] -> 990519.2789 | Q38: =CSU_data_summary[[#This Row],[Ventilation]]*CSU_data_summary[[#This Row],[Area]] -> 566397.1588 | R38: =CSU_data_summary[[#This Row],[Water Heating]]*CSU_data_summary[[#This Row],[Area]] -> 185961.8861 | S38: =CSU_data_summary[[#This Row],[Lighting]]*CSU_data_summary[[#This Row],[Area]] -> 1106116.806 | T38: =CSU_data_summary[[#This Row],[Equipment]]*CSU_data_summary[[#This Row],[Area]] -> 1182709.676
B39: Current-Dominguez Hills-Classroom | C39: Current | D39: Dominguez Hills | E39: Classroom | F39: 66542 | G39: 18.00769853 | H39: 18.07219733 | I39: 9.793699064 | J39: 11.7231308 | K39: 22.43325496 | L39: 16.25938363 | M39: 96.2893643 | N39: 6407286.879 | O39: =CSU_data_summary[[#This Row],[Heating]]*CSU_data_summary[[#This Row],[Area]] -> 1198268.276 | P39: =CSU_data_summary[[#This Row],[Cooling]]*CSU_data_summary[[#This Row],[Area]] -> 1202560.155 | Q39: =CSU_data_summary[[#This Row],[Ventilation]]*CSU_data_summary[[#This Row],[Area]] -> 651692.3231 | R39: =CSU_data_summary[[#This Row],[Water Heating]]*CSU_data_summary[[#This Row],[Area]] -> 780080.5694 | S39: =CSU_data_summary[[#This Row],[Lighting]]*CSU_data_summary[[#This Row],[Area]] -> 1492753.651 | T39: =CSU_data_summary[[#This Row],[Equipment]]*CSU_data_summary[[#This Row],[Area]] -> 1081931.905
B40: Current-Dominguez Hills-Education | C40: Current | D40: Dominguez Hills | E40: Education | F40: 27875 | G40: 18.00769853 | H40: 18.07219733 | I40: 9.793699064 | J40: 11.7231308 | K40: 22.43325496 | L40: 16.25938363 | M40: 96.2893643 | N40: 2684066.03 | O40: =CSU_data_summary[[#This Row],[Heating]]*CSU_data_summary[[#This Row],[Area]] -> 501964.5965 | P40: =CSU_data_summary[[#This Row],[Cooling]]*CSU_data_summary[[#This Row],[Area]] -> 503762.5005 | Q40: =CSU_data_summary[[#This Row],[Ventilation]]*CSU_data_summary[[#This Row],[Area]] -> 272999.3614 | R40: =CSU_data_summary[[#This Row],[Water Heating]]*CSU_data_summary[[#This Row],[Area]] -> 326782.2709 | S40: =CSU_data_summary[[#This Row],[Lighting]]*CSU_data_summary[[#This Row],[Area]] -> 625326.982 | T40: =CSU_data_summary[[#This Row],[Equipment]]*CSU_data_summary[[#This Row],[Area]] -> 453230.3186
B41: Current-Dominguez Hills-Humanities | C41: Current | D41: Dominguez Hills | E41: Humanities | F41: 70331 | G41: 18.00769853 | H41: 18.07219733 | I41: 9.793699064 | J41: 11.7231308 | K41: 22.43325496 | L41: 16.25938363 | M41: 96.2893643 | N41: 6772127.281 | O41: =CSU_data_summary[[#This Row],[Heating]]*CSU_data_summary[[#This Row],[Area]] -> 1266499.445 | P41: =CSU_data_summary[[#This Row],[Cooling]]*CSU_data_summary[[#This Row],[Area]] -> 1271035.71 | Q41: =CSU_data_summary[[#This Row],[Ventilation]]*CSU_data_summary[[#This Row],[Area]] -> 688800.6488 | R41: =CSU_data_summary[[#This Row],[Water Heating]]*CSU_data_summary[[#This Row],[Area]] -> 824499.512 | S41: =CSU_data_summary[[#This Row],[Lighting]]*CSU_data_summary[[#This Row],[Area]] -> 1577753.254 | T41: =CSU_data_summary[[#This Row],[Equipment]]*CSU_data_summary[[#This Row],[Area]] -> 1143538.71
B42: Current-Dominguez Hills-Library | C42: Current | D42: Dominguez Hills | E42: Library | F42: 291575 | G42: 18.00769853 | H42: 18.07219733 | I42: 9.793699064 | J42: 11.7231308 | K42: 22.43325496 | L42: 16.25938363 | M42: 96.2893643 | N42: 28075571.4 | O42: =CSU_data_summary[[#This Row],[Heating]]*CSU_data_summary[[#This Row],[Area]] -> 5250594.699 | P42: =CSU_data_summary[[#This Row],[Cooling]]*CSU_data_summary[[#This Row],[Area]] -> 5269400.936 | Q42: =CSU_data_summary[[#This Row],[Ventilation]]*CSU_data_summary[[#This Row],[Area]] -> 2855597.804 | R42: =CSU_data_summary[[#This Row],[Water Heating]]*CSU_data_summary[[#This Row],[Area]] -> 3418171.862 | S42: =CSU_data_summary[[#This Row],[Lighting]]*CSU_data_summary[[#This Row],[Area]] -> 6540976.314 | T42: =CSU_data_summary[[#This Row],[Equipment]]*CSU_data_summary[[#This Row],[Area]] -> 4740829.781
B43: Current-Dominguez Hills-Multi-Use Facility | C43: Current | D43: Dominguez Hills | E43: Multi-Use Facility | F43: 179222 | G43: 18.00769853 | H43: 18.07219733 | I43: 9.793699064 | J43: 11.7231308 | K43: 22.43325496 | L43: 16.25938363 | M43: 96.2893643 | N43: 17257172.45 | O43: =CSU_data_summary[[#This Row],[Heating]]*CSU_data_summary[[#This Row],[Area]] -> 3227375.746 | P43: =CSU_data_summary[[#This Row],[Cooling]]*CSU_data_summary[[#This Row],[Area]] -> 3238935.349 | Q43: =CSU_data_summary[[#This Row],[Ventilation]]*CSU_data_summary[[#This Row],[Area]] -> 1755246.334 | R43: =CSU_data_summary[[#This Row],[Water Heating]]*CSU_data_summary[[#This Row],[Area]] -> 2101042.947 | S43: =CSU_data_summary[[#This Row],[Lighting]]*CSU_data_summary[[#This Row],[Area]] -> 4020532.82 | T43: =CSU_data_summary[[#This Row],[Equipment]]*CSU_data_summary[[#This Row],[Area]] -> 2914039.252
B44: Current-Dominguez Hills-Residence Hall | C44: Current | D44: Dominguez Hills | E44: Residence Hall | F44: 174501 | G44: 3.032258203 | H44: 14.51739413 | I44: 8.932317888 | J44: 39.13129762 | K44: 19.6041814 | L44: 24.19809674 | M44: 109.415546 | N44: 19093122.19 | O44: =CSU_data_summary[[#This Row],[Heating]]*CSU_data_summary[[#This Row],[Area]] -> 529132.0887 | P44: =CSU_data_summary[[#This Row],[Cooling]]*CSU_data_summary[[#This Row],[Area]] -> 2533299.793 | Q44: =CSU_data_summary[[#This Row],[Ventilation]]*CSU_data_summary[[#This Row],[Area]] -> 1558698.404 | R44: =CSU_data_summary[[#This Row],[Water Heating]]*CSU_data_summary[[#This Row],[Area]] -> 6828450.567 | S44: =CSU_data_summary[[#This Row],[Lighting]]*CSU_data_summary[[#This Row],[Area]] -> 3420949.259 | T44: =CSU_data_summary[[#This Row],[Equipment]]*CSU_data_summary[[#This Row],[Area]] -> 4222592.079
B45: Current-Dominguez Hills-Science | C45: Current | D45: Dominguez Hills | E45: Science | F45: 85450 | G45: 13.42005546 | H45: 28.62669353 | I45: 15.53012191 | J45: 38.12267106 | K45: 40.62205683 | L45: 187.5656184 | M45: 323.8872172 | N45: 27676162.71 | O45: =CSU_data_summary[[#This Row],[Heating]]*CSU_data_summary[[#This Row],[Area]] -> 1146743.739 | P45: =CSU_data_summary[[#This Row],[Cooling]]*CSU_data_summary[[#This Row],[Area]] -> 2446150.962 | Q45: =CSU_data_summary[[#This Row],[Ventilation]]*CSU_data_summary[[#This Row],[Area]] -> 1327048.917 | R45: =CSU_data_summary[[#This Row],[Water Heating]]*CSU_data_summary[[#This Row],[Area]] -> 3257582.242 | S45: =CSU_data_summary[[#This Row],[Lighting]]*CSU_data_summary[[#This Row],[Area]] -> 3471154.756 | T45: =CSU_data_summary[[#This Row],[Equipment]]*CSU_data_summary[[#This Row],[Area]] -> 16027482.09
B46: Current-Dominguez Hills-Social Science | C46: Current | D46: Dominguez Hills | E46: Social Science | F46: 81000 | G46: 18.00769853 | H46: 18.07219733 | I46: 9.793699064 | J46: 11.7231308 | K46: 22.43325496 | L46: 16.25938363 | M46: 96.2893643 | N46: 7799438.508 | O46: =CSU_data_summary[[#This Row],[Heating]]*CSU_data_summary[[#This Row],[Area]] -> 1458623.581 | P46: =CSU_data_summary[[#This Row],[Cooling]]*CSU_data_summary[[#This Row],[Area]] -> 1463847.983 | Q46: =CSU_data_summary[[#This Row],[Ventilation]]*CSU_data_summary[[#This Row],[Area]] -> 793289.6241 | R46: =CSU_data_summary[[#This Row],[Water Heating]]*CSU_data_summary[[#This Row],[Area]] -> 949573.5944 | S46: =CSU_data_summary[[#This Row],[Lighting]]*CSU_data_summary[[#This Row],[Area]] -> 1817093.652 | T46: =CSU_data_summary[[#This Row],[Equipment]]*CSU_data_summary[[#This Row],[Area]] -> 1317010.074
B47: Current-Dominguez Hills-University Union | C47: Current | D47: Dominguez Hills | E47: University Union | F47: 123033 | G47: 15.21221296 | H47: 19.42611176 | I47: 10.8548255 | J47: 12.88796231 | K47: 24.06874311 | L47: 16.4899657 | M47: 98.93982135 | N47: 12172863.04 | O47: =CSU_data_summary[[#This Row],[Heating]]*CSU_data_summary[[#This Row],[Area]] -> 1871604.198 | P47: =CSU_data_summary[[#This Row],[Cooling]]*CSU_data_summary[[#This Row],[Area]] -> 2390052.809 | Q47: =CSU_data_summary[[#This Row],[Ventilation]]*CSU_data_summary[[#This Row],[Area]] -> 1335501.746 | R47: =CSU_data_summary[[#This Row],[Water Heating]]*CSU_data_summary[[#This Row],[Area]] -> 1585644.667 | S47: =CSU_data_summary[[#This Row],[Lighting]]*CSU_data_summary[[#This Row],[Area]] -> 2961249.671 | T47: =CSU_data_summary[[#This Row],[Equipment]]*CSU_data_summary[[#This Row],[Area]] -> 2028809.95
B48: Current-East Bay-Administration | C48: Current | D48: East Bay | E48: Administration | F48: 167743 | G48: 14.35355137 | H48: 3.500747366 | I48: 6.789893138 | J48: 2.512693721 | K48: 14.37874183 | L48: 14.45995141 | M48: 55.99557884 | N48: 9392866.381 | O48: =CSU_data_summary[[#This Row],[Heating]]*CSU_data_summary[[#This Row],[Area]] -> 2407707.767 | P48: =CSU_data_summary[[#This Row],[Cooling]]*CSU_data_summary[[#This Row],[Area]] -> 587225.8654 | Q48: =CSU_data_summary[[#This Row],[Ventilation]]*CSU_data_summary[[#This Row],[Area]] -> 1138957.045 | R48: =CSU_data_summary[[#This Row],[Water Heating]]*CSU_data_summary[[#This Row],[Area]] -> 421486.7829 | S48: =CSU_data_summary[[#This Row],[Lighting]]*CSU_data_summary[[#This Row],[Area]] -> 2411933.291 | T48: =CSU_data_summary[[#This Row],[Equipment]]*CSU_data_summary[[#This Row],[Area]] -> 2425555.629
B49: Current-East Bay-Business Administration | C49: Current | D49: East Bay | E49: Business Administration | F49: 82455 | G49: 8.680617705 | H49: 2.758622272 | I49: 3.626746927 | J49: 2.229227613 | K49: 14.06936406 | L49: 11.15687293 | M49: 42.5214515 | N49: 3506106.284 | O49: =CSU_data_summary[[#This Row],[Heating]]*CSU_data_summary[[#This Row],[Area]] -> 715760.3328 | P49: =CSU_data_summary[[#This Row],[Cooling]]*CSU_data_summary[[#This Row],[Area]] -> 227462.1994 | Q49: =CSU_data_summary[[#This Row],[Ventilation]]*CSU_data_summary[[#This Row],[Area]] -> 299043.4179 | R49: =CSU_data_summary[[#This Row],[Water Heating]]*CSU_data_summary[[#This Row],[Area]] -> 183810.9628 | S49: =CSU_data_summary[[#This Row],[Lighting]]*CSU_data_summary[[#This Row],[Area]] -> 1160089.414 | T49: =CSU_data_summary[[#This Row],[Equipment]]*CSU_data_summary[[#This Row],[Area]] -> 919939.9573
B50: Current-East Bay-Classroom | C50: Current | D50: East Bay | E50: Classroom | F50: 179534 | G50: 20.80925666 | H50: 2.524483878 | I50: 5.685889184 | J50: 7.659947535 | K50: 13.58180758 | L50: 9.154604516 | M50: 59.41598935 | N50: 10667190.23 | O50: =CSU_data_summary[[#This Row],[Heating]]*CSU_data_summary[[#This Row],[Area]] -> 3735969.085 | P50: =CSU_data_summary[[#This Row],[Cooling]]*CSU_data_summary[[#This Row],[Area]] -> 453230.6886 | Q50: =CSU_data_summary[[#This Row],[Ventilation]]*CSU_data_summary[[#This Row],[Area]] -> 1020810.429 | R50: =CSU_data_summary[[#This Row],[Water Heating]]*CSU_data_summary[[#This Row],[Area]] -> 1375221.021 | S50: =CSU_data_summary[[#This Row],[Lighting]]*CSU_data_summary[[#This Row],[Area]] -> 2438396.242 | T50: =CSU_data_summary[[#This Row],[Equipment]]*CSU_data_summary[[#This Row],[Area]] -> 1643562.767
B51: Current-East Bay-Education | C51: Current | D51: East Bay | E51: Education | F51: 106947 | G51: 20.80925666 | H51: 2.524483878 | I51: 5.685889184 | J51: 7.659947535 | K51: 13.58180758 | L51: 9.154604516 | M51: 59.41598935 | N51: 6354361.813 | O51: =CSU_data_summary[[#This Row],[Heating]]*CSU_data_summary[[#This Row],[Area]] -> 2225487.572 | P51: =CSU_data_summary[[#This Row],[Cooling]]*CSU_data_summary[[#This Row],[Area]] -> 269985.9773 | Q51: =CSU_data_summary[[#This Row],[Ventilation]]*CSU_data_summary[[#This Row],[Area]] -> 608088.7905 | R51: =CSU_data_summary[[#This Row],[Water Heating]]*CSU_data_summary[[#This Row],[Area]] -> 819208.409 | S51: =CSU_data_summary[[#This Row],[Lighting]]*CSU_data_summary[[#This Row],[Area]] -> 1452533.575 | T51: =CSU_data_summary[[#This Row],[Equipment]]*CSU_data_summary[[#This Row],[Area]] -> 979057.4892
B52: Current-East Bay-Library | C52: Current | D52: East Bay | E52: Library | F52: 229220 | G52: 20.80925666 | H52: 2.524483878 | I52: 5.685889184 | J52: 7.659947535 | K52: 13.58180758 | L52: 9.154604516 | M52: 59.41598935 | N52: 13619333.08 | O52: =CSU_data_summary[[#This Row],[Heating]]*CSU_data_summary[[#This Row],[Area]] -> 4769897.811 | P52: =CSU_data_summary[[#This Row],[Cooling]]*CSU_data_summary[[#This Row],[Area]] -> 578662.1946 | Q52: =CSU_data_summary[[#This Row],[Ventilation]]*CSU_data_summary[[#This Row],[Area]] -> 1303319.519 | R52: =CSU_data_summary[[#This Row],[Water Heating]]*CSU_data_summary[[#This Row],[Area]] -> 1755813.174 | S52: =CSU_data_summary[[#This Row],[Lighting]]*CSU_data_summary[[#This Row],[Area]] -> 3113221.933 | T52: =CSU_data_summary[[#This Row],[Equipment]]*CSU_data_summary[[#This Row],[Area]] -> 2098418.447
B53: Current-East Bay-Recreation Center | C53: Current | D53: East Bay | E53: Recreation Center | F53: 54548 | G53: 20.80925666 | H53: 2.524483878 | I53: 5.685889184 | J53: 7.659947535 | K53: 13.58180758 | L53: 9.154604516 | M53: 59.41598935 | N53: 3241023.387 | O53: =CSU_data_summary[[#This Row],[Heating]]*CSU_data_summary[[#This Row],[Area]] -> 1135103.332 | P53: =CSU_data_summary[[#This Row],[Cooling]]*CSU_data_summary[[#This Row],[Area]] -> 137705.5466 | Q53: =CSU_data_summary[[#This Row],[Ventilation]]*CSU_data_summary[[#This Row],[Area]] -> 310153.8832 | R53: =CSU_data_summary[[#This Row],[Water Heating]]*CSU_data_summary[[#This Row],[Area]] -> 417834.8181 | S53: =CSU_data_summary[[#This Row],[Lighting]]*CSU_data_summary[[#This Row],[Area]] -> 740860.4398 | T53: =CSU_data_summary[[#This Row],[Equipment]]*CSU_data_summary[[#This Row],[Area]] -> 499365.3672
B54: Current-East Bay-Residence Hall | C54: Current | D54: East Bay | E54: Residence Hall | F54: 372126 | G54: 6.665156959 | H54: 2.080697806 | I54: 4.255663436 | J54: 25.05775751 | K54: 11.53783139 | L54: 14.06456079 | M54: 63.66166789 | N54: 23690161.82 | O54: =CSU_data_summary[[#This Row],[Heating]]*CSU_data_summary[[#This Row],[Area]] -> 2480278.198 | P54: =CSU_data_summary[[#This Row],[Cooling]]*CSU_data_summary[[#This Row],[Area]] -> 774281.7518 | Q54: =CSU_data_summary[[#This Row],[Ventilation]]*CSU_data_summary[[#This Row],[Area]] -> 1583643.012 | R54: =CSU_data_summary[[#This Row],[Water Heating]]*CSU_data_summary[[#This Row],[Area]] -> 9324643.072 | S54: =CSU_data_summary[[#This Row],[Lighting]]*CSU_data_summary[[#This Row],[Area]] -> 4293527.042 | T54: =CSU_data_summary[[#This Row],[Equipment]]*CSU_data_summary[[#This Row],[Area]] -> 5233788.747
B55: Current-East Bay-Science | C55: Current | D55: East Bay | E55: Science | F55: 206370 | G55: 17.65423562 | H55: 4.552281219 | I55: 10.26414441 | J55: 28.35709637 | K55: 27.35102388 | L55: 111.6451963 | M55: 199.8239778 | N55: 41237674.3 | O55: =CSU_data_summary[[#This Row],[Heating]]*CSU_data_summary[[#This Row],[Area]] -> 3643304.605 | P55: =CSU_data_summary[[#This Row],[Cooling]]*CSU_data_summary[[#This Row],[Area]] -> 939454.2752 | Q55: =CSU_data_summary[[#This Row],[Ventilation]]*CSU_data_summary[[#This Row],[Area]] -> 2118211.483 | R55: =CSU_data_summary[[#This Row],[Water Heating]]*CSU_data_summary[[#This Row],[Area]] -> 5852053.978 | S55: =CSU_data_summary[[#This Row],[Lighting]]*CSU_data_summary[[#This Row],[Area]] -> 5644430.799 | T55: =CSU_data_summary[[#This Row],[Equipment]]*CSU_data_summary[[#This Row],[Area]] -> 23040219.16
B56: Current-East Bay-Theater Arts | C56: Current | D56: East Bay | E56: Theater Arts | F56: 60500 | G56: 20.80925666 | H56: 2.524483878 | I56: 5.685889184 | J56: 7.659947535 | K56: 13.58180758 | L56: 9.154604516 | M56: 59.41598935 | N56: 3594667.356 | O56: =CSU_data_summary[[#This Row],[Heating]]*CSU_data_summary[[#This Row],[Area]] -> 1258960.028 | P56: =CSU_data_summary[[#This Row],[Cooling]]*CSU_data_summary[[#This Row],[Area]] -> 152731.2746 | Q56: =CSU_data_summary[[#This Row],[Ventilation]]*CSU_data_summary[[#This Row],[Area]] -> 343996.2956 | R56: =CSU_data_summary[[#This Row],[Water Heating]]*CSU_data_summary[[#This Row],[Area]] -> 463426.8259 | S56: =CSU_data_summary[[#This Row],[Lighting]]*CSU_data_summary[[#This Row],[Area]] -> 821699.3585 | T56: =CSU_data_summary[[#This Row],[Equipment]]*CSU_data_summary[[#This Row],[Area]] -> 553853.5732
B57: Current-East Bay-University Union | C57: Current | D57: East Bay | E57: University Union | F57: 72450 | G57: 19.76557683 | H57: 2.720974678 | I57: 5.474988447 | J57: 7.754451728 | K57: 13.71276815 | L57: 9.185377362 | M57: 58.6141372 | N57: 4246594.24 | O57: =CSU_data_summary[[#This Row],[Heating]]*CSU_data_summary[[#This Row],[Area]] -> 1432016.041 | P57: =CSU_data_summary[[#This Row],[Cooling]]*CSU_data_summary[[#This Row],[Area]] -> 197134.6154 | Q57: =CSU_data_summary[[#This Row],[Ventilation]]*CSU_data_summary[[#This Row],[Area]] -> 396662.913 | R57: =CSU_data_summary[[#This Row],[Water Heating]]*CSU_data_summary[[#This Row],[Area]] -> 561810.0277 | S57: =CSU_data_summary[[#This Row],[Lighting]]*CSU_data_summary[[#This Row],[Area]] -> 993490.0528 | T57: =CSU_data_summary[[#This Row],[Equipment]]*CSU_data_summary[[#This Row],[Area]] -> 665480.5898
B58: Current-Fresno-Business Administration | C58: Current | D58: Fresno | E58: Business Administration | F58: 94803 | G58: 9.048663866 | H58: 11.47333327 | I58: 3.983491435 | J58: 2.148685706 | K58: 14.19972804 | L58: 12.38260983 | M58: 53.23651214 | N58: 5046981.061 | O58: =CSU_data_summary[[#This Row],[Heating]]*CSU_data_summary[[#This Row],[Area]] -> 857840.4805 | P58: =CSU_data_summary[[#This Row],[Cooling]]*CSU_data_summary[[#This Row],[Area]] -> 1087706.414 | Q58: =CSU_data_summary[[#This Row],[Ventilation]]*CSU_data_summary[[#This Row],[Area]] -> 377646.9385 | R58: =CSU_data_summary[[#This Row],[Water Heating]]*CSU_data_summary[[#This Row],[Area]] -> 203701.851 | S58: =CSU_data_summary[[#This Row],[Lighting]]*CSU_data_summary[[#This Row],[Area]] -> 1346176.817 | T58: =CSU_data_summary[[#This Row],[Equipment]]*CSU_data_summary[[#This Row],[Area]] -> 1173908.56
B59: Current-Fresno-Classroom | C59: Current | D59: Fresno | E59: Classroom | F59: 287352 | G59: 22.36799799 | H59: 14.1960238 | I59: 6.456966964 | J59: 7.585474893 | K59: 14.29091296 | L59: 10.51689179 | M59: 75.4142684 | N59: 21670440.85 | O59: =CSU_data_summary[[#This Row],[Heating]]*CSU_data_summary[[#This Row],[Area]] -> 6427488.96 | P59: =CSU_data_summary[[#This Row],[Cooling]]*CSU_data_summary[[#This Row],[Area]] -> 4079255.832 | Q59: =CSU_data_summary[[#This Row],[Ventilation]]*CSU_data_summary[[#This Row],[Area]] -> 1855422.371 | R59: =CSU_data_summary[[#This Row],[Water Heating]]*CSU_data_summary[[#This Row],[Area]] -> 2179701.382 | S59: =CSU_data_summary[[#This Row],[Lighting]]*CSU_data_summary[[#This Row],[Area]] -> 4106522.42 | T59: =CSU_data_summary[[#This Row],[Equipment]]*CSU_data_summary[[#This Row],[Area]] -> 3022049.889
B60: Current-Fresno-Education | C60: Current | D60: Fresno | E60: Education | F60: 121214 | G60: 22.36799799 | H60: 14.1960238 | I60: 6.456966964 | J60: 7.585474893 | K60: 14.29091296 | L60: 10.51689179 | M60: 75.4142684 | N60: 9141265.13 | O60: =CSU_data_summary[[#This Row],[Heating]]*CSU_data_summary[[#This Row],[Area]] -> 2711314.509 | P60: =CSU_data_summary[[#This Row],[Cooling]]*CSU_data_summary[[#This Row],[Area]] -> 1720756.829 | Q60: =CSU_data_summary[[#This Row],[Ventilation]]*CSU_data_summary[[#This Row],[Area]] -> 782674.7936 | R60: =CSU_data_summary[[#This Row],[Water Heating]]*CSU_data_summary[[#This Row],[Area]] -> 919465.7537 | S60: =CSU_data_summary[[#This Row],[Lighting]]*CSU_data_summary[[#This Row],[Area]] -> 1732258.723 | T60: =CSU_data_summary[[#This Row],[Equipment]]*CSU_data_summary[[#This Row],[Area]] -> 1274794.521
B61: Current-Fresno-Engineering | C61: Current | D61: Fresno | E61: Engineering | F61: 125839 | G61: 22.36799799 | H61: 14.1960238 | I61: 6.456966964 | J61: 7.585474893 | K61: 14.29091296 | L61: 10.51689179 | M61: 75.4142684 | N61: 9490056.121 | O61: =CSU_data_summary[[#This Row],[Heating]]*CSU_data_summary[[#This Row],[Area]] -> 2814766.5 | P61: =CSU_data_summary[[#This Row],[Cooling]]*CSU_data_summary[[#This Row],[Area]] -> 1786413.439 | Q61: =CSU_data_summary[[#This Row],[Ventilation]]*CSU_data_summary[[#This Row],[Area]] -> 812538.2658 | R61: =CSU_data_summary[[#This Row],[Water Heating]]*CSU_data_summary[[#This Row],[Area]] -> 954548.5751 | S61: =CSU_data_summary[[#This Row],[Lighting]]*CSU_data_summary[[#This Row],[Area]] -> 1798354.195 | T61: =CSU_data_summary[[#This Row],[Equipment]]*CSU_data_summary[[#This Row],[Area]] -> 1323435.145
B62: Current-Fresno-Industrial Arts | C62: Current | D62: Fresno | E62: Industrial Arts | F62: 96421 | G62: 22.36799799 | H62: 14.1960238 | I62: 6.456966964 | J62: 7.585474893 | K62: 14.29091296 | L62: 10.51689179 | M62: 75.4142684 | N62: 7271519.173 | O62: =CSU_data_summary[[#This Row],[Heating]]*CSU_data_summary[[#This Row],[Area]] -> 2156744.735 | P62: =CSU_data_summary[[#This Row],[Cooling]]*CSU_data_summary[[#This Row],[Area]] -> 1368794.811 | Q62: =CSU_data_summary[[#This Row],[Ventilation]]*CSU_data_summary[[#This Row],[Area]] -> 622587.2117 | R62: =CSU_data_summary[[#This Row],[Water Heating]]*CSU_data_summary[[#This Row],[Area]] -> 731399.0747 | S62: =CSU_data_summary[[#This Row],[Lighting]]*CSU_data_summary[[#This Row],[Area]] -> 1377944.118 | T62: =CSU_data_summary[[#This Row],[Equipment]]*CSU_data_summary[[#This Row],[Area]] -> 1014049.223
B63: Current-Fresno-Library | C63: Current | D63: Fresno | E63: Library | F63: 339984 | G63: 22.36799799 | H63: 14.1960238 | I63: 6.456966964 | J63: 7.585474893 | K63: 14.29091296 | L63: 10.51689179 | M63: 75.4142684 | N63: 25639644.63 | O63: =CSU_data_summary[[#This Row],[Heating]]*CSU_data_summary[[#This Row],[Area]] -> 7604761.43 | P63: =CSU_data_summary[[#This Row],[Cooling]]*CSU_data_summary[[#This Row],[Area]] -> 4826420.957 | Q63: =CSU_data_summary[[#This Row],[Ventilation]]*CSU_data_summary[[#This Row],[Area]] -> 2195265.456 | R63: =CSU_data_summary[[#This Row],[Water Heating]]*CSU_data_summary[[#This Row],[Area]] -> 2578940.096 | S63: =CSU_data_summary[[#This Row],[Lighting]]*CSU_data_summary[[#This Row],[Area]] -> 4858681.75 | T63: =CSU_data_summary[[#This Row],[Equipment]]*CSU_data_summary[[#This Row],[Area]] -> 3575574.937
B64: Current-Fresno-Music | C64: Current | D64: Fresno | E64: Music | F64: 93969 | G64: 22.36799799 | H64: 14.1960238 | I64: 6.456966964 | J64: 7.585474893 | K64: 14.29091296 | L64: 10.51689179 | M64: 75.4142684 | N64: 7086603.387 | O64: =CSU_data_summary[[#This Row],[Heating]]*CSU_data_summary[[#This Row],[Area]] -> 2101898.404 | P64: =CSU_data_summary[[#This Row],[Cooling]]*CSU_data_summary[[#This Row],[Area]] -> 1333986.161 | Q64: =CSU_data_summary[[#This Row],[Ventilation]]*CSU_data_summary[[#This Row],[Area]] -> 606754.7287 | R64: =CSU_data_summary[[#This Row],[Water Heating]]*CSU_data_summary[[#This Row],[Area]] -> 712799.4903 | S64: =CSU_data_summary[[#This Row],[Lighting]]*CSU_data_summary[[#This Row],[Area]] -> 1342902.8 | T64: =CSU_data_summary[[#This Row],[Equipment]]*CSU_data_summary[[#This Row],[Area]] -> 988261.8042
B65: Current-Fresno-Recreation Center | C65: Current | D65: Fresno | E65: Recreation Center | F65: 90290 | G65: 22.36799799 | H65: 14.1960238 | I65: 6.456966964 | J65: 7.585474893 | K65: 14.29091296 | L65: 10.51689179 | M65: 75.4142684 | N65: 6809154.294 | O65: =CSU_data_summary[[#This Row],[Heating]]*CSU_data_summary[[#This Row],[Area]] -> 2019606.539 | P65: =CSU_data_summary[[#This Row],[Cooling]]*CSU_data_summary[[#This Row],[Area]] -> 1281758.989 | Q65: =CSU_data_summary[[#This Row],[Ventilation]]*CSU_data_summary[[#This Row],[Area]] -> 582999.5472 | R65: =CSU_data_summary[[#This Row],[Water Heating]]*CSU_data_summary[[#This Row],[Area]] -> 684892.5281 | S65: =CSU_data_summary[[#This Row],[Lighting]]*CSU_data_summary[[#This Row],[Area]] -> 1290326.531 | T65: =CSU_data_summary[[#This Row],[Equipment]]*CSU_data_summary[[#This Row],[Area]] -> 949570.1594
B66: Current-Fresno-Residence Hall | C66: Current | D66: Fresno | E66: Residence Hall | F66: 228380 | G66: 10.92316523 | H66: 12.72816703 | I66: 6.353130109 | J66: 24.62930466 | K66: 12.41196494 | L66: 16.00105252 | M66: 83.04678449 | N66: 18966224.64 | O66: =CSU_data_summary[[#This Row],[Heating]]*CSU_data_summary[[#This Row],[Area]] -> 2494632.475 | P66: =CSU_data_summary[[#This Row],[Cooling]]*CSU_data_summary[[#This Row],[Area]] -> 2906858.787 | Q66: =CSU_data_summary[[#This Row],[Ventilation]]*CSU_data_summary[[#This Row],[Area]] -> 1450927.854 | R66: =CSU_data_summary[[#This Row],[Water Heating]]*CSU_data_summary[[#This Row],[Area]] -> 5624840.599 | S66: =CSU_data_summary[[#This Row],[Lighting]]*CSU_data_summary[[#This Row],[Area]] -> 2834644.552 | T66: =CSU_data_summary[[#This Row],[Equipment]]*CSU_data_summary[[#This Row],[Area]] -> 3654320.375
B67: Current-Fresno-Science | C67: Current | D67: Fresno | E67: Science | F67: 211061 | G67: 21.99749788 | H67: 29.67406324 | I67: 13.51159891 | J67: 32.55161625 | K67: 32.51896821 | L67: 123.4161982 | M67: 253.6699427 | N67: 53539831.78 | O67: =CSU_data_summary[[#This Row],[Heating]]*CSU_data_summary[[#This Row],[Area]] -> 4642813.901 | P67: =CSU_data_summary[[#This Row],[Cooling]]*CSU_data_summary[[#This Row],[Area]] -> 6263037.462 | Q67: =CSU_data_summary[[#This Row],[Ventilation]]*CSU_data_summary[[#This Row],[Area]] -> 2851771.577 | R67: =CSU_data_summary[[#This Row],[Water Heating]]*CSU_data_summary[[#This Row],[Area]] -> 6870376.678 | S67: =CSU_data_summary[[#This Row],[Lighting]]*CSU_data_summary[[#This Row],[Area]] -> 6863485.948 | T67: =CSU_data_summary[[#This Row],[Equipment]]*CSU_data_summary[[#This Row],[Area]] -> 26048346.22
B68: Current-Fullerton-Administration | C68: Current | D68: Fullerton | E68: Administration | F68: 377958 | G68: 5.206949805 | H68: 9.66040914 | I68: 5.523999791 | J68: 1.813662734 | K68: 10.78781719 | L68: 11.53481775 | M68: 44.52765641 | N68: 16829583.96 | O68: =CSU_data_summary[[#This Row],[Heating]]*CSU_data_summary[[#This Row],[Area]] -> 1968008.335 | P68: =CSU_data_summary[[#This Row],[Cooling]]*CSU_data_summary[[#This Row],[Area]] -> 3651228.918 | Q68: =CSU_data_summary[[#This Row],[Ventilation]]*CSU_data_summary[[#This Row],[Area]] -> 2087839.913 | R68: =CSU_data_summary[[#This Row],[Water Heating]]*CSU_data_summary[[#This Row],[Area]] -> 685488.3397 | S68: =CSU_data_summary[[#This Row],[Lighting]]*CSU_data_summary[[#This Row],[Area]] -> 4077341.81 | T68: =CSU_data_summary[[#This Row],[Equipment]]*CSU_data_summary[[#This Row],[Area]] -> 4359676.648
B69: Current-Fullerton-Apartments | C69: Current | D69: Fullerton | E69: Apartments | F69: 316287 | G69: 1.394643973 | H69: 6.677068662 | I69: 4.108292392 | J69: 17.99788301 | K69: 9.016664019 | L69: 11.12956995 | M69: 50.324122 | N69: 15916865.57 | O69: =CSU_data_summary[[#This Row],[Heating]]*CSU_data_summary[[#This Row],[Area]] -> 441107.7583 | P69: =CSU_data_summary[[#This Row],[Cooling]]*CSU_data_summary[[#This Row],[Area]] -> 2111870.016 | Q69: =CSU_data_summary[[#This Row],[Ventilation]]*CSU_data_summary[[#This Row],[Area]] -> 1299399.476 | R69: =CSU_data_summary[[#This Row],[Water Heating]]*CSU_data_summary[[#This Row],[Area]] -> 5692496.422 | S69: =CSU_data_summary[[#This Row],[Lighting]]*CSU_data_summary[[#This Row],[Area]] -> 2851853.613 | T69: =CSU_data_summary[[#This Row],[Equipment]]*CSU_data_summary[[#This Row],[Area]] -> 3520138.29
B70: Current-Fullerton-Business Administration | C70: Current | D70: Fullerton | E70: Business Administration | F70: 196229 | G70: 3.041197727 | H70: 7.351855989 | I70: 2.849561075 | J70: 1.553965571 | K70: 10.28266192 | L70: 8.733794779 | M70: 33.81303707 | N70: 6635098.451 | O70: =CSU_data_summary[[#This Row],[Heating]]*CSU_data_summary[[#This Row],[Area]] -> 596771.1888 | P70: =CSU_data_summary[[#This Row],[Cooling]]*CSU_data_summary[[#This Row],[Area]] -> 1442647.349 | Q70: =CSU_data_summary[[#This Row],[Ventilation]]*CSU_data_summary[[#This Row],[Area]] -> 559166.5202 | R70: =CSU_data_summary[[#This Row],[Water Heating]]*CSU_data_summary[[#This Row],[Area]] -> 304933.1101 | S70: =CSU_data_summary[[#This Row],[Lighting]]*CSU_data_summary[[#This Row],[Area]] -> 2017756.467 | T70: =CSU_data_summary[[#This Row],[Equipment]]*CSU_data_summary[[#This Row],[Area]] -> 1713823.816
B71: Current-Fullerton-Classroom | C71: Current | D71: Fullerton | E71: Classroom | F71: 225250 | G71: 8.28238446 | H71: 8.312049763 | I71: 4.504472395 | J71: 5.39188704 | K71: 10.31785611 | L71: 7.478271921 | M71: 44.28692169 | N71: 9975629.11 | O71: =CSU_data_summary[[#This Row],[Heating]]*CSU_data_summary[[#This Row],[Area]] -> 1865607.1 | P71: =CSU_data_summary[[#This Row],[Cooling]]*CSU_data_summary[[#This Row],[Area]] -> 1872289.209 | Q71: =CSU_data_summary[[#This Row],[Ventilation]]*CSU_data_summary[[#This Row],[Area]] -> 1014632.407 | R71: =CSU_data_summary[[#This Row],[Water Heating]]*CSU_data_summary[[#This Row],[Area]] -> 1214522.556 | S71: =CSU_data_summary[[#This Row],[Lighting]]*CSU_data_summary[[#This Row],[Area]] -> 2324097.088 | T71: =CSU_data_summary[[#This Row],[Equipment]]*CSU_data_summary[[#This Row],[Area]] -> 1684480.75
B72: Current-Fullerton-Humanities | C72: Current | D72: Fullerton | E72: Humanities | F72: 147047 | G72: 8.28238446 | H72: 8.312049763 | I72: 4.504472395 | J72: 5.39188704 | K72: 10.31785611 | L72: 7.478271921 | M72: 44.28692169 | N72: 6512258.973 | O72: =CSU_data_summary[[#This Row],[Heating]]*CSU_data_summary[[#This Row],[Area]] -> 1217899.788 | P72: =CSU_data_summary[[#This Row],[Cooling]]*CSU_data_summary[[#This Row],[Area]] -> 1222261.981 | Q72: =CSU_data_summary[[#This Row],[Ventilation]]*CSU_data_summary[[#This Row],[Area]] -> 662369.1523 | R72: =CSU_data_summary[[#This Row],[Water Heating]]*CSU_data_summary[[#This Row],[Area]] -> 792860.8135 | S72: =CSU_data_summary[[#This Row],[Lighting]]*CSU_data_summary[[#This Row],[Area]] -> 1517209.787 | T72: =CSU_data_summary[[#This Row],[Equipment]]*CSU_data_summary[[#This Row],[Area]] -> 1099657.451
B73: Current-Fullerton-Library | C73: Current | D73: Fullerton | E73: Library | F73: 414388 | G73: 8.28238446 | H73: 8.312049763 | I73: 4.504472395 | J73: 5.39188704 | K73: 10.31785611 | L73: 7.478271921 | M73: 44.28692169 | N73: 18351968.9 | O73: =CSU_data_summary[[#This Row],[Heating]]*CSU_data_summary[[#This Row],[Area]] -> 3432120.732 | P73: =CSU_data_summary[[#This Row],[Cooling]]*CSU_data_summary[[#This Row],[Area]] -> 3444413.677 | Q73: =CSU_data_summary[[#This Row],[Ventilation]]*CSU_data_summary[[#This Row],[Area]] -> 1866599.307 | R73: =CSU_data_summary[[#This Row],[Water Heating]]*CSU_data_summary[[#This Row],[Area]] -> 2234333.287 | S73: =CSU_data_summary[[#This Row],[Lighting]]*CSU_data_summary[[#This Row],[Area]] -> 4275595.756 | T73: =CSU_data_summary[[#This Row],[Equipment]]*CSU_data_summary[[#This Row],[Area]] -> 3098906.145
B74: Current-Fullerton-Performing Arts | C74: Current | D74: Fullerton | E74: Performing Arts | F74: 256727 | G74: 8.28238446 | H74: 8.312049763 | I74: 4.504472395 | J74: 5.39188704 | K74: 10.31785611 | L74: 7.478271921 | M74: 44.28692169 | N74: 11369648.54 | O74: =CSU_data_summary[[#This Row],[Heating]]*CSU_data_summary[[#This Row],[Area]] -> 2126311.715 | P74: =CSU_data_summary[[#This Row],[Cooling]]*CSU_data_summary[[#This Row],[Area]] -> 2133927.599 | Q74: =CSU_data_summary[[#This Row],[Ventilation]]*CSU_data_summary[[#This Row],[Area]] -> 1156419.685 | R74: =CSU_data_summary[[#This Row],[Water Heating]]*CSU_data_summary[[#This Row],[Area]] -> 1384242.984 | S74: =CSU_data_summary[[#This Row],[Lighting]]*CSU_data_summary[[#This Row],[Area]] -> 2648872.245 | T74: =CSU_data_summary[[#This Row],[Equipment]]*CSU_data_summary[[#This Row],[Area]] -> 1919874.315
B75: Current-Fullerton-Residence Hall | C75: Current | D75: Fullerton | E75: Residence Hall | F75: 256563 | G75: 1.394643973 | H75: 6.677068662 | I75: 4.108292392 | J75: 17.99788301 | K75: 9.016664019 | L75: 11.12956995 | M75: 50.324122 | N75: 12911307.71 | O75: =CSU_data_summary[[#This Row],[Heating]]*CSU_data_summary[[#This Row],[Area]] -> 357814.0416 | P75: =CSU_data_summary[[#This Row],[Cooling]]*CSU_data_summary[[#This Row],[Area]] -> 1713088.767 | Q75: =CSU_data_summary[[#This Row],[Ventilation]]*CSU_data_summary[[#This Row],[Area]] -> 1054035.821 | R75: =CSU_data_summary[[#This Row],[Water Heating]]*CSU_data_summary[[#This Row],[Area]] -> 4617590.857 | S75: =CSU_data_summary[[#This Row],[Lighting]]*CSU_data_summary[[#This Row],[Area]] -> 2313342.371 | T75: =CSU_data_summary[[#This Row],[Equipment]]*CSU_data_summary[[#This Row],[Area]] -> 2855435.854
B76: Current-Fullerton-Science | C76: Current | D76: Fullerton | E76: Science | F76: 416487 | G76: 6.172363369 | H76: 13.16643996 | I76: 7.142858382 | J76: 17.53397958 | K76: 18.68353647 | L76: 86.26813474 | M76: 148.9673125 | N76: 62042949.08 | O76: =CSU_data_summary[[#This Row],[Heating]]*CSU_data_summary[[#This Row],[Area]] -> 2570709.102 | P76: =CSU_data_summary[[#This Row],[Cooling]]*CSU_data_summary[[#This Row],[Area]] -> 5483651.081 | Q76: =CSU_data_summary[[#This Row],[Ventilation]]*CSU_data_summary[[#This Row],[Area]] -> 2974907.659 | R76: =CSU_data_summary[[#This Row],[Water Heating]]*CSU_data_summary[[#This Row],[Area]] -> 7302674.555 | S76: =CSU_data_summary[[#This Row],[Lighting]]*CSU_data_summary[[#This Row],[Area]] -> 7781450.054 | T76: =CSU_data_summary[[#This Row],[Equipment]]*CSU_data_summary[[#This Row],[Area]] -> 35929556.63
B77: Current-Fullerton-University Union | C77: Current | D77: Fullerton | E77: University Union | F77: 166841 | G77: 6.996640689 | H77: 8.934763424 | I77: 4.992522387 | J77: 5.927634704 | K77: 11.07007559 | L77: 7.584324862 | M77: 45.50596166 | N77: 7592260.149 | O77: =CSU_data_summary[[#This Row],[Heating]]*CSU_data_summary[[#This Row],[Area]] -> 1167326.529 | P77: =CSU_data_summary[[#This Row],[Cooling]]*CSU_data_summary[[#This Row],[Area]] -> 1490684.864 | Q77: =CSU_data_summary[[#This Row],[Ventilation]]*CSU_data_summary[[#This Row],[Area]] -> 832957.4276 | R77: =CSU_data_summary[[#This Row],[Water Heating]]*CSU_data_summary[[#This Row],[Area]] -> 988972.5017 | S77: =CSU_data_summary[[#This Row],[Lighting]]*CSU_data_summary[[#This Row],[Area]] -> 1846942.481 | T77: =CSU_data_summary[[#This Row],[Equipment]]*CSU_data_summary[[#This Row],[Area]] -> 1265376.344
B78: Current-Humboldt-Apartments | C78: Current | D78: Humboldt | E78: Apartments | F78: 106885 | G78: 11.05765689 | H78: 0.1841068026 | I78: 2.592128954 | J78: 16.7427257 | K78: 7.748756581 | L78: 9.56880614 | M78: 47.89418107 | N78: 5119169.544 | O78: =CSU_data_summary[[#This Row],[Heating]]*CSU_data_summary[[#This Row],[Area]] -> 1181897.657 | P78: =CSU_data_summary[[#This Row],[Cooling]]*CSU_data_summary[[#This Row],[Area]] -> 19678.25559 | Q78: =CSU_data_summary[[#This Row],[Ventilation]]*CSU_data_summary[[#This Row],[Area]] -> 277059.7033 | R78: =CSU_data_summary[[#This Row],[Water Heating]]*CSU_data_summary[[#This Row],[Area]] -> 1789546.236 | S78: =CSU_data_summary[[#This Row],[Lighting]]*CSU_data_summary[[#This Row],[Area]] -> 828225.8472 | T78: =CSU_data_summary[[#This Row],[Equipment]]*CSU_data_summary[[#This Row],[Area]] -> 1022761.844
B79: Current-Humboldt-Classroom | C79: Current | D79: Humboldt | E79: Classroom | F79: 67385 | G79: 24.57532466 | H79: 0.1181038233 | I79: 3.617804852 | J79: 5.199714283 | K79: 8.928139403 | L79: 6.215865481 | M79: 48.6549525 | N79: 3278613.974 | O79: =CSU_data_summary[[#This Row],[Heating]]*CSU_data_summary[[#This Row],[Area]] -> 1656008.252 | P79: =CSU_data_summary[[#This Row],[Cooling]]*CSU_data_summary[[#This Row],[Area]] -> 7958.426133 | Q79: =CSU_data_summary[[#This Row],[Ventilation]]*CSU_data_summary[[#This Row],[Area]] -> 243785.78 | R79: =CSU_data_summary[[#This Row],[Water Heating]]*CSU_data_summary[[#This Row],[Area]] -> 350382.7469 | S79: =CSU_data_summary[[#This Row],[Lighting]]*CSU_data_summary[[#This Row],[Area]] -> 601622.6736 | T79: =CSU_data_summary[[#This Row],[Equipment]]*CSU_data_summary[[#This Row],[Area]] -> 418856.0954
B80: Current-Humboldt-Food Service | C80: Current | D80: Humboldt | E80: Food Service | F80: 54677 | G80: 13.64600992 | H80: 0.3662786992 | I80: 9.00207702 | J80: 46.32358642 | K80: 22.86549223 | L80: 129.7554511 | M80: 221.9588954 | N80: 12136046.52 | O80: =CSU_data_summary[[#This Row],[Heating]]*CSU_data_summary[[#This Row],[Area]] -> 746122.8842 | P80: =CSU_data_summary[[#This Row],[Cooling]]*CSU_data_summary[[#This Row],[Area]] -> 20027.02043 | Q80: =CSU_data_summary[[#This Row],[Ventilation]]*CSU_data_summary[[#This Row],[Area]] -> 492206.5652 | R80: =CSU_data_summary[[#This Row],[Water Heating]]*CSU_data_summary[[#This Row],[Area]] -> 2532834.735 | S80: =CSU_data_summary[[#This Row],[Lighting]]*CSU_data_summary[[#This Row],[Area]] -> 1250216.519 | T80: =CSU_data_summary[[#This Row],[Equipment]]*CSU_data_summary[[#This Row],[Area]] -> 7094638.799
B81: Current-Humboldt-Humanities | C81: Current | D81: Humboldt | E81: Humanities | F81: 92078 | G81: 24.57532466 | H81: 0.1181038233 | I81: 3.617804852 | J81: 5.199714283 | K81: 8.928139403 | L81: 6.215865481 | M81: 48.6549525 | N81: 4480050.716 | O81: =CSU_data_summary[[#This Row],[Heating]]*CSU_data_summary[[#This Row],[Area]] -> 2262846.744 | P81: =CSU_data_summary[[#This Row],[Cooling]]*CSU_data_summary[[#This Row],[Area]] -> 10874.76384 | Q81: =CSU_data_summary[[#This Row],[Ventilation]]*CSU_data_summary[[#This Row],[Area]] -> 333120.2352 | R81: =CSU_data_summary[[#This Row],[Water Heating]]*CSU_data_summary[[#This Row],[Area]] -> 478779.2917 | S81: =CSU_data_summary[[#This Row],[Lighting]]*CSU_data_summary[[#This Row],[Area]] -> 822085.2199 | T81: =CSU_data_summary[[#This Row],[Equipment]]*CSU_data_summary[[#This Row],[Area]] -> 572344.4617
B82: Current-Humboldt-Library | C82: Current | D82: Humboldt | E82: Library | F82: 163809 | G82: 24.57532466 | H82: 0.1181038233 | I82: 3.617804852 | J82: 5.199714283 | K82: 8.928139403 | L82: 6.215865481 | M82: 48.6549525 | N82: 7970119.114 | O82: =CSU_data_summary[[#This Row],[Heating]]*CSU_data_summary[[#This Row],[Area]] -> 4025659.357 | P82: =CSU_data_summary[[#This Row],[Cooling]]*CSU_data_summary[[#This Row],[Area]] -> 19346.46919 | Q82: =CSU_data_summary[[#This Row],[Ventilation]]*CSU_data_summary[[#This Row],[Area]] -> 592628.995 | R82: =CSU_data_summary[[#This Row],[Water Heating]]*CSU_data_summary[[#This Row],[Area]] -> 851759.9969 | S82: =CSU_data_summary[[#This Row],[Lighting]]*CSU_data_summary[[#This Row],[Area]] -> 1462509.587 | T82: =CSU_data_summary[[#This Row],[Equipment]]*CSU_data_summary[[#This Row],[Area]] -> 1018214.709
B83: Current-Humboldt-Residence Hall | C83: Current | D83: Humboldt | E83: Residence Hall | F83: 350484 | G83: 11.05765689 | H83: 0.1841068026 | I83: 2.592128954 | J83: 16.7427257 | K83: 7.748756581 | L83: 9.56880614 | M83: 47.89418107 | N83: 16786144.16 | O83: =CSU_data_summary[[#This Row],[Heating]]*CSU_data_summary[[#This Row],[Area]] -> 3875531.819 | P83: =CSU_data_summary[[#This Row],[Cooling]]*CSU_data_summary[[#This Row],[Area]] -> 64526.48859 | Q83: =CSU_data_summary[[#This Row],[Ventilation]]*CSU_data_summary[[#This Row],[Area]] -> 908499.7245 | R83: =CSU_data_summary[[#This Row],[Water Heating]]*CSU_data_summary[[#This Row],[Area]] -> 5868057.473 | S83: =CSU_data_summary[[#This Row],[Lighting]]*CSU_data_summary[[#This Row],[Area]] -> 2715815.202 | T83: =CSU_data_summary[[#This Row],[Equipment]]*CSU_data_summary[[#This Row],[Area]] -> 3353713.451
B84: Current-Humboldt-Science | C84: Current | D84: Humboldt | E84: Science | F84: 307965 | G84: 28.11490649 | H84: 0.2871874557 | I84: 8.806726867 | J84: 25.95735713 | K84: 23.0962935 | L84: 77.39752654 | M84: 163.659998 | N84: 50401551.28 | O84: =CSU_data_summary[[#This Row],[Heating]]*CSU_data_summary[[#This Row],[Area]] -> 8658407.178 | P84: =CSU_data_summary[[#This Row],[Cooling]]*CSU_data_summary[[#This Row],[Area]] -> 88443.6848 | Q84: =CSU_data_summary[[#This Row],[Ventilation]]*CSU_data_summary[[#This Row],[Area]] -> 2712163.64 | R84: =CSU_data_summary[[#This Row],[Water Heating]]*CSU_data_summary[[#This Row],[Area]] -> 7993957.487 | S84: =CSU_data_summary[[#This Row],[Lighting]]*CSU_data_summary[[#This Row],[Area]] -> 7112850.028 | T84: =CSU_data_summary[[#This Row],[Equipment]]*CSU_data_summary[[#This Row],[Area]] -> 23835729.26
B85: Current-Humboldt-Social Science | C85: Current | D85: Humboldt | E85: Social Science | F85: 96458 | G85: 24.57532466 | H85: 0.1181038233 | I85: 3.617804852 | J85: 5.199714283 | K85: 8.928139403 | L85: 6.215865481 | M85: 48.6549525 | N85: 4693159.408 | O85: =CSU_data_summary[[#This Row],[Heating]]*CSU_data_summary[[#This Row],[Area]] -> 2370486.666 | P85: =CSU_data_summary[[#This Row],[Cooling]]*CSU_data_summary[[#This Row],[Area]] -> 11392.05859 | Q85: =CSU_data_summary[[#This Row],[Ventilation]]*CSU_data_summary[[#This Row],[Area]] -> 348966.2204 | R85: =CSU_data_summary[[#This Row],[Water Heating]]*CSU_data_summary[[#This Row],[Area]] -> 501554.0403 | S85: =CSU_data_summary[[#This Row],[Lighting]]*CSU_data_summary[[#This Row],[Area]] -> 861190.4705 | T85: =CSU_data_summary[[#This Row],[Equipment]]*CSU_data_summary[[#This Row],[Area]] -> 599569.9525
B86: Current-Humboldt-Theater Arts | C86: Current | D86: Humboldt | E86: Theater Arts | F86: 60317 | G86: 24.57532466 | H86: 0.1181038233 | I86: 3.617804852 | J86: 5.199714283 | K86: 8.928139403 | L86: 6.215865481 | M86: 48.6549525 | N86: 2934720.77 | O86: =CSU_data_summary[[#This Row],[Heating]]*CSU_data_summary[[#This Row],[Area]] -> 1482309.857 | P86: =CSU_data_summary[[#This Row],[Cooling]]*CSU_data_summary[[#This Row],[Area]] -> 7123.66831 | Q86: =CSU_data_summary[[#This Row],[Ventilation]]*CSU_data_summary[[#This Row],[Area]] -> 218215.1353 | R86: =CSU_data_summary[[#This Row],[Water Heating]]*CSU_data_summary[[#This Row],[Area]] -> 313631.1664 | S86: =CSU_data_summary[[#This Row],[Lighting]]*CSU_data_summary[[#This Row],[Area]] -> 538518.5843 | T86: =CSU_data_summary[[#This Row],[Equipment]]*CSU_data_summary[[#This Row],[Area]] -> 374922.3582
B87: Current-Humboldt-University Union | C87: Current | D87: Humboldt | E87: University Union | F87: 63983 | G87: 23.15458912 | H87: 0.1898211041 | I87: 2.961033704 | J87: 4.563588869 | K87: 8.178394151 | L87: 6.099600141 | M87: 45.14702709 | N87: 2888642.235 | O87: =CSU_data_summary[[#This Row],[Heating]]*CSU_data_summary[[#This Row],[Area]] -> 1481500.076 | P87: =CSU_data_summary[[#This Row],[Cooling]]*CSU_data_summary[[#This Row],[Area]] -> 12145.3237 | Q87: =CSU_data_summary[[#This Row],[Ventilation]]*CSU_data_summary[[#This Row],[Area]] -> 189455.8195 | R87: =CSU_data_summary[[#This Row],[Water Heating]]*CSU_data_summary[[#This Row],[Area]] -> 291992.1066 | S87: =CSU_data_summary[[#This Row],[Lighting]]*CSU_data_summary[[#This Row],[Area]] -> 523278.1929 | T87: =CSU_data_summary[[#This Row],[Equipment]]*CSU_data_summary[[#This Row],[Area]] -> 390270.7159
B88: Current-Long Beach-Administration | C88: Current | D88: Long Beach | E88: Administration | F88: 176936 | G88: 8.045352095 | H88: 11.95819042 | I88: 7.217013018 | J88: 2.454314058 | K88: 14.44487483 | L88: 15.68477366 | M88: 59.80451808 | N88: 10581572.21 | O88: =CSU_data_summary[[#This Row],[Heating]]*CSU_data_summary[[#This Row],[Area]] -> 1423512.418 | P88: =CSU_data_summary[[#This Row],[Cooling]]*CSU_data_summary[[#This Row],[Area]] -> 2115834.38 | Q88: =CSU_data_summary[[#This Row],[Ventilation]]*CSU_data_summary[[#This Row],[Area]] -> 1276949.415 | R88: =CSU_data_summary[[#This Row],[Water Heating]]*CSU_data_summary[[#This Row],[Area]] -> 434256.5121 | S88: =CSU_data_summary[[#This Row],[Lighting]]*CSU_data_summary[[#This Row],[Area]] -> 2555818.372 | T88: =CSU_data_summary[[#This Row],[Equipment]]*CSU_data_summary[[#This Row],[Area]] -> 2775201.113
B89: Current-Long Beach-Engineering | C89: Current | D89: Long Beach | E89: Engineering | F89: 254299 | G89: 11.98513512 | H89: 9.640272385 | I89: 5.986063723 | J89: 7.487670557 | K89: 13.95568841 | L89: 10.09745641 | M89: 59.1522866 | N89: 15042367.33 | O89: =CSU_data_summary[[#This Row],[Heating]]*CSU_data_summary[[#This Row],[Area]] -> 3047807.875 | P89: =CSU_data_summary[[#This Row],[Cooling]]*CSU_data_summary[[#This Row],[Area]] -> 2451511.627 | Q89: =CSU_data_summary[[#This Row],[Ventilation]]*CSU_data_summary[[#This Row],[Area]] -> 1522250.019 | R89: =CSU_data_summary[[#This Row],[Water Heating]]*CSU_data_summary[[#This Row],[Area]] -> 1904107.135 | S89: =CSU_data_summary[[#This Row],[Lighting]]*CSU_data_summary[[#This Row],[Area]] -> 3548917.606 | T89: =CSU_data_summary[[#This Row],[Equipment]]*CSU_data_summary[[#This Row],[Area]] -> 2567773.068
B90: Current-Long Beach-Industrial Arts | C90: Current | D90: Long Beach | E90: Industrial Arts | F90: 136211 | G90: 11.98513512 | H90: 9.640272385 | I90: 5.986063723 | J90: 7.487670557 | K90: 13.95568841 | L90: 10.09745641 | M90: 59.1522866 | N90: 8057192.11 | O90: =CSU_data_summary[[#This Row],[Heating]]*CSU_data_summary[[#This Row],[Area]] -> 1632507.239 | P90: =CSU_data_summary[[#This Row],[Cooling]]*CSU_data_summary[[#This Row],[Area]] -> 1313111.142 | Q90: =CSU_data_summary[[#This Row],[Ventilation]]*CSU_data_summary[[#This Row],[Area]] -> 815367.7258 | R90: =CSU_data_summary[[#This Row],[Water Heating]]*CSU_data_summary[[#This Row],[Area]] -> 1019903.094 | S90: =CSU_data_summary[[#This Row],[Lighting]]*CSU_data_summary[[#This Row],[Area]] -> 1900918.273 | T90: =CSU_data_summary[[#This Row],[Equipment]]*CSU_data_summary[[#This Row],[Area]] -> 1375384.635
B91: Current-Long Beach-Liberal Arts | C91: Current | D91: Long Beach | E91: Liberal Arts | F91: 147057 | G91: 11.98513512 | H91: 9.640272385 | I91: 5.986063723 | J91: 7.487670557 | K91: 13.95568841 | L91: 10.09745641 | M91: 59.1522866 | N91: 8698757.81 | O91: =CSU_data_summary[[#This Row],[Heating]]*CSU_data_summary[[#This Row],[Area]] -> 1762498.015 | P91: =CSU_data_summary[[#This Row],[Cooling]]*CSU_data_summary[[#This Row],[Area]] -> 1417669.536 | Q91: =CSU_data_summary[[#This Row],[Ventilation]]*CSU_data_summary[[#This Row],[Area]] -> 880292.5729 | R91: =CSU_data_summary[[#This Row],[Water Heating]]*CSU_data_summary[[#This Row],[Area]] -> 1101114.369 | S91: =CSU_data_summary[[#This Row],[Lighting]]*CSU_data_summary[[#This Row],[Area]] -> 2052281.67 | T91: =CSU_data_summary[[#This Row],[Equipment]]*CSU_data_summary[[#This Row],[Area]] -> 1484901.647
B92: Current-Long Beach-Library | C92: Current | D92: Long Beach | E92: Library | F92: 406020 | G92: 11.98513512 | H92: 9.640272385 | I92: 5.986063723 | J92: 7.487670557 | K92: 13.95568841 | L92: 10.09745641 | M92: 59.1522866 | N92: 24017011.4 | O92: =CSU_data_summary[[#This Row],[Heating]]*CSU_data_summary[[#This Row],[Area]] -> 4866204.56 | P92: =CSU_data_summary[[#This Row],[Cooling]]*CSU_data_summary[[#This Row],[Area]] -> 3914143.394 | Q92: =CSU_data_summary[[#This Row],[Ventilation]]*CSU_data_summary[[#This Row],[Area]] -> 2430461.593 | R92: =CSU_data_summary[[#This Row],[Water Heating]]*CSU_data_summary[[#This Row],[Area]] -> 3040143.999 | S92: =CSU_data_summary[[#This Row],[Lighting]]*CSU_data_summary[[#This Row],[Area]] -> 5666288.606 | T92: =CSU_data_summary[[#This Row],[Equipment]]*CSU_data_summary[[#This Row],[Area]] -> 4099769.252
B93: Current-Long Beach-Recreation Center | C93: Current | D93: Long Beach | E93: Recreation Center | F93: 109727 | G93: 11.98513512 | H93: 9.640272385 | I93: 5.986063723 | J93: 7.487670557 | K93: 13.95568841 | L93: 10.09745641 | M93: 59.1522866 | N93: 6490602.951 | O93: =CSU_data_summary[[#This Row],[Heating]]*CSU_data_summary[[#This Row],[Area]] -> 1315092.921 | P93: =CSU_data_summary[[#This Row],[Cooling]]*CSU_data_summary[[#This Row],[Area]] -> 1057798.168 | Q93: =CSU_data_summary[[#This Row],[Ventilation]]*CSU_data_summary[[#This Row],[Area]] -> 656832.8141 | R93: =CSU_data_summary[[#This Row],[Water Heating]]*CSU_data_summary[[#This Row],[Area]] -> 821599.6272 | S93: =CSU_data_summary[[#This Row],[Lighting]]*CSU_data_summary[[#This Row],[Area]] -> 1531315.822 | T93: =CSU_data_summary[[#This Row],[Equipment]]*CSU_data_summary[[#This Row],[Area]] -> 1107963.6
B94: Current-Long Beach-Residence Hall | C94: Current | D94: Long Beach | E94: Residence Hall | F94: 570771 | G94: 2.3674192 | H94: 7.283121354 | I94: 5.084154873 | J94: 25.67969252 | K94: 11.86448934 | L94: 14.99142085 | M94: 67.27029813 | N94: 38395935.33 | O94: =CSU_data_summary[[#This Row],[Heating]]*CSU_data_summary[[#This Row],[Area]] -> 1351254.224 | P94: =CSU_data_summary[[#This Row],[Cooling]]*CSU_data_summary[[#This Row],[Area]] -> 4156994.458 | Q94: =CSU_data_summary[[#This Row],[Ventilation]]*CSU_data_summary[[#This Row],[Area]] -> 2901888.161 | R94: =CSU_data_summary[[#This Row],[Water Heating]]*CSU_data_summary[[#This Row],[Area]] -> 14657223.78 | S94: =CSU_data_summary[[#This Row],[Lighting]]*CSU_data_summary[[#This Row],[Area]] -> 6771906.443 | T94: =CSU_data_summary[[#This Row],[Equipment]]*CSU_data_summary[[#This Row],[Area]] -> 8556668.271
B95: Current-Long Beach-Science | C95: Current | D95: Long Beach | E95: Science | F95: 450044 | G95: 8.734324539 | H95: 14.93275105 | I95: 9.282388409 | J95: 23.81095042 | K95: 24.82096259 | L95: 117.38836 | M95: 198.9697371 | N95: 89545136.34 | O95: =CSU_data_summary[[#This Row],[Heating]]*CSU_data_summary[[#This Row],[Area]] -> 3930830.353 | P95: =CSU_data_summary[[#This Row],[Cooling]]*CSU_data_summary[[#This Row],[Area]] -> 6720395.016 | Q95: =CSU_data_summary[[#This Row],[Ventilation]]*CSU_data_summary[[#This Row],[Area]] -> 4177483.209 | R95: =CSU_data_summary[[#This Row],[Water Heating]]*CSU_data_summary[[#This Row],[Area]] -> 10715975.37 | S95: =CSU_data_summary[[#This Row],[Lighting]]*CSU_data_summary[[#This Row],[Area]] -> 11170525.29 | T95: =CSU_data_summary[[#This Row],[Equipment]]*CSU_data_summary[[#This Row],[Area]] -> 52829927.11
B96: Current-Long Beach-Theater Arts | C96: Current | D96: Long Beach | E96: Theater Arts | F96: 224895 | G96: 11.98513512 | H96: 9.640272385 | I96: 5.986063723 | J96: 7.487670557 | K96: 13.95568841 | L96: 10.09745641 | M96: 59.1522866 | N96: 13303053.49 | O96: =CSU_data_summary[[#This Row],[Heating]]*CSU_data_summary[[#This Row],[Area]] -> 2695396.962 | P96: =CSU_data_summary[[#This Row],[Cooling]]*CSU_data_summary[[#This Row],[Area]] -> 2168049.058 | Q96: =CSU_data_summary[[#This Row],[Ventilation]]*CSU_data_summary[[#This Row],[Area]] -> 1346235.801 | R96: =CSU_data_summary[[#This Row],[Water Heating]]*CSU_data_summary[[#This Row],[Area]] -> 1683939.67 | S96: =CSU_data_summary[[#This Row],[Lighting]]*CSU_data_summary[[#This Row],[Area]] -> 3138564.544 | T96: =CSU_data_summary[[#This Row],[Equipment]]*CSU_data_summary[[#This Row],[Area]] -> 2270867.459
B97: Current-Long Beach-University Union | C97: Current | D97: Long Beach | E97: University Union | F97: 161300 | G97: 10.71293221 | H97: 10.43328934 | I97: 6.466913463 | J97: 8.270763502 | K97: 14.84437935 | L97: 10.21922159 | M97: 60.94749946 | N97: 9830831.663 | O97: =CSU_data_summary[[#This Row],[Heating]]*CSU_data_summary[[#This Row],[Area]] -> 1727995.966 | P97: =CSU_data_summary[[#This Row],[Cooling]]*CSU_data_summary[[#This Row],[Area]] -> 1682889.571 | Q97: =CSU_data_summary[[#This Row],[Ventilation]]*CSU_data_summary[[#This Row],[Area]] -> 1043113.142 | R97: =CSU_data_summary[[#This Row],[Water Heating]]*CSU_data_summary[[#This Row],[Area]] -> 1334074.153 | S97: =CSU_data_summary[[#This Row],[Lighting]]*CSU_data_summary[[#This Row],[Area]] -> 2394398.389 | T97: =CSU_data_summary[[#This Row],[Equipment]]*CSU_data_summary[[#This Row],[Area]] -> 1648360.443
B98: Current-Los Angeles-Administration | C98: Current | D98: Los Angeles | E98: Administration | F98: 134893 | G98: 4.836442866 | H98: 9.028330238 | I98: 4.645830404 | J98: 1.502109981 | K98: 8.972598019 | L98: 9.86656662 | M98: 38.85187813 | N98: 5240846.396 | O98: =CSU_data_summary[[#This Row],[Heating]]*CSU_data_summary[[#This Row],[Area]] -> 652402.2875 | P98: =CSU_data_summary[[#This Row],[Cooling]]*CSU_data_summary[[#This Row],[Area]] -> 1217858.551 | Q98: =CSU_data_summary[[#This Row],[Ventilation]]*CSU_data_summary[[#This Row],[Area]] -> 626690.0007 | R98: =CSU_data_summary[[#This Row],[Water Heating]]*CSU_data_summary[[#This Row],[Area]] -> 202624.1216 | S98: =CSU_data_summary[[#This Row],[Lighting]]*CSU_data_summary[[#This Row],[Area]] -> 1210340.665 | T98: =CSU_data_summary[[#This Row],[Equipment]]*CSU_data_summary[[#This Row],[Area]] -> 1330930.771
B99: Current-Los Angeles-Business Administration | C99: Current | D99: Los Angeles | E99: Business Administration | F99: 176883 | G99: 2.835898936 | H99: 6.897827499 | I99: 2.405974887 | J99: 1.292081822 | K99: 8.59856059 | L99: 7.472668575 | M99: 29.50301231 | N99: 5218581.326 | O99: =CSU_data_summary[[#This Row],[Heating]]*CSU_data_summary[[#This Row],[Area]] -> 501622.3114 | P99: =CSU_data_summary[[#This Row],[Cooling]]*CSU_data_summary[[#This Row],[Area]] -> 1220108.422 | Q99: =CSU_data_summary[[#This Row],[Ventilation]]*CSU_data_summary[[#This Row],[Area]] -> 425576.0559 | R99: =CSU_data_summary[[#This Row],[Water Heating]]*CSU_data_summary[[#This Row],[Area]] -> 228547.3089 | S99: =CSU_data_summary[[#This Row],[Lighting]]*CSU_data_summary[[#This Row],[Area]] -> 1520939.193 | T99: =CSU_data_summary[[#This Row],[Equipment]]*CSU_data_summary[[#This Row],[Area]] -> 1321788.036
B100: Current-Los Angeles-Classroom | C100: Current | D100: Los Angeles | E100: Classroom | F100: 302284 | G100: 7.000887195 | H100: 8.301652213 | I100: 3.830037065 | J100: 4.527282456 | K100: 8.668324692 | L100: 6.477253092 | M100: 38.80543671 | N100: 11730262.63 | O100: =CSU_data_summary[[#This Row],[Heating]]*CSU_data_summary[[#This Row],[Area]] -> 2116256.185 | P100: =CSU_data_summary[[#This Row],[Cooling]]*CSU_data_summary[[#This Row],[Area]] -> 2509456.638 | Q100: =CSU_data_summary[[#This Row],[Ventilation]]*CSU_data_summary[[#This Row],[Area]] -> 1157758.924 | R100: =CSU_data_summary[[#This Row],[Water Heating]]*CSU_data_summary[[#This Row],[Area]] -> 1368525.05 | S100: =CSU_data_summary[[#This Row],[Lighting]]*CSU_data_summary[[#This Row],[Area]] -> 2620295.861 | T100: =CSU_data_summary[[#This Row],[Equipment]]*CSU_data_summary[[#This Row],[Area]] -> 1957969.974
B101: Current-Los Angeles-Engineering | C101: Current | D101: Los Angeles | E101: Engineering | F101: 201702 | G101: 7.000887195 | H101: 8.301652213 | I101: 3.830037065 | J101: 4.527282456 | K101: 8.668324692 | L101: 6.477253092 | M101: 38.80543671 | N101: 7827134.196 | O101: =CSU_data_summary[[#This Row],[Heating]]*CSU_data_summary[[#This Row],[Area]] -> 1412092.949 | P101: =CSU_data_summary[[#This Row],[Cooling]]*CSU_data_summary[[#This Row],[Area]] -> 1674459.855 | Q101: =CSU_data_summary[[#This Row],[Ventilation]]*CSU_data_summary[[#This Row],[Area]] -> 772526.136 | R101: =CSU_data_summary[[#This Row],[Water Heating]]*CSU_data_summary[[#This Row],[Area]] -> 913161.926 | S101: =CSU_data_summary[[#This Row],[Lighting]]*CSU_data_summary[[#This Row],[Area]] -> 1748418.427 | T101: =CSU_data_summary[[#This Row],[Equipment]]*CSU_data_summary[[#This Row],[Area]] -> 1306474.903
B102: Current-Los Angeles-Food Service | C102: Current | D102: Los Angeles | E102: Food Service | F102: 115822 | G102: 1.976943876 | H102: 13.09323862 | I102: 4.846580222 | J102: 20.51139166 | K102: 13.11780412 | L102: 123.4804576 | M102: 177.0264161 | N102: 20503553.57 | O102: =CSU_data_summary[[#This Row],[Heating]]*CSU_data_summary[[#This Row],[Area]] -> 228973.5936 | P102: =CSU_data_summary[[#This Row],[Cooling]]*CSU_data_summary[[#This Row],[Area]] -> 1516485.084 | Q102: =CSU_data_summary[[#This Row],[Ventilation]]*CSU_data_summary[[#This Row],[Area]] -> 561340.6145 | R102: =CSU_data_summary[[#This Row],[Water Heating]]*CSU_data_summary[[#This Row],[Area]] -> 2375670.405 | S102: =CSU_data_summary[[#This Row],[Lighting]]*CSU_data_summary[[#This Row],[Area]] -> 1519330.308 | T102: =CSU_data_summary[[#This Row],[Equipment]]*CSU_data_summary[[#This Row],[Area]] -> 14301753.56
B103: Current-Los Angeles-Library | C103: Current | D103: Los Angeles | E103: Library | F103: 347287 | G103: 7.000887195 | H103: 8.301652213 | I103: 3.830037065 | J103: 4.527282456 | K103: 8.668324692 | L103: 6.477253092 | M103: 38.80543671 | N103: 13476623.7 | O103: =CSU_data_summary[[#This Row],[Heating]]*CSU_data_summary[[#This Row],[Area]] -> 2431317.111 | P103: =CSU_data_summary[[#This Row],[Cooling]]*CSU_data_summary[[#This Row],[Area]] -> 2883055.892 | Q103: =CSU_data_summary[[#This Row],[Ventilation]]*CSU_data_summary[[#This Row],[Area]] -> 1330122.082 | R103: =CSU_data_summary[[#This Row],[Water Heating]]*CSU_data_summary[[#This Row],[Area]] -> 1572266.342 | S103: =CSU_data_summary[[#This Row],[Lighting]]*CSU_data_summary[[#This Row],[Area]] -> 3010396.477 | T103: =CSU_data_summary[[#This Row],[Equipment]]*CSU_data_summary[[#This Row],[Area]] -> 2249465.794
B104: Current-Los Angeles-Music | C104: Current | D104: Los Angeles | E104: Music | F104: 79100 | G104: 7.000887195 | H104: 8.301652213 | I104: 3.830037065 | J104: 4.527282456 | K104: 8.668324692 | L104: 6.477253092 | M104: 38.80543671 | N104: 3069510.044 | O104: =CSU_data_summary[[#This Row],[Heating]]*CSU_data_summary[[#This Row],[Area]] -> 553770.1771 | P104: =CSU_data_summary[[#This Row],[Cooling]]*CSU_data_summary[[#This Row],[Area]] -> 656660.6901 | Q104: =CSU_data_summary[[#This Row],[Ventilation]]*CSU_data_summary[[#This Row],[Area]] -> 302955.9318 | R104: =CSU_data_summary[[#This Row],[Water Heating]]*CSU_data_summary[[#This Row],[Area]] -> 358108.0423 | S104: =CSU_data_summary[[#This Row],[Lighting]]*CSU_data_summary[[#This Row],[Area]] -> 685664.4831 | T104: =CSU_data_summary[[#This Row],[Equipment]]*CSU_data_summary[[#This Row],[Area]] -> 512350.7196
B105: Current-Los Angeles-Residence Hall | C105: Current | D105: Los Angeles | E105: Residence Hall | F105: 216498 | G105: 1.891928906 | H105: 6.722031791 | I105: 3.570213486 | J105: 15.09896396 | K105: 7.585930036 | L105: 9.545348577 | M105: 44.41441675 | N105: 9615632.398 | O105: =CSU_data_summary[[#This Row],[Heating]]*CSU_data_summary[[#This Row],[Area]] -> 409598.8243 | P105: =CSU_data_summary[[#This Row],[Cooling]]*CSU_data_summary[[#This Row],[Area]] -> 1455306.439 | Q105: =CSU_data_summary[[#This Row],[Ventilation]]*CSU_data_summary[[#This Row],[Area]] -> 772944.0793 | R105: =CSU_data_summary[[#This Row],[Water Heating]]*CSU_data_summary[[#This Row],[Area]] -> 3268895.499 | S105: =CSU_data_summary[[#This Row],[Lighting]]*CSU_data_summary[[#This Row],[Area]] -> 1642338.681 | T105: =CSU_data_summary[[#This Row],[Equipment]]*CSU_data_summary[[#This Row],[Area]] -> 2066548.876
B106: Current-Los Angeles-Science | C106: Current | D106: Los Angeles | E106: Science | F106: 753981 | G106: 5.391362718 | H106: 13.58858189 | I106: 6.275964218 | J106: 15.21341367 | K106: 16.11881417 | L106: 73.94117984 | M106: 130.5293165 | N106: 98416624.59 | O106: =CSU_data_summary[[#This Row],[Heating]]*CSU_data_summary[[#This Row],[Area]] -> 4064985.054 | P106: =CSU_data_summary[[#This Row],[Cooling]]*CSU_data_summary[[#This Row],[Area]] -> 10245532.56 | Q106: =CSU_data_summary[[#This Row],[Ventilation]]*CSU_data_summary[[#This Row],[Area]] -> 4731957.777 | R106: =CSU_data_summary[[#This Row],[Water Heating]]*CSU_data_summary[[#This Row],[Area]] -> 11470624.85 | S106: =CSU_data_summary[[#This Row],[Lighting]]*CSU_data_summary[[#This Row],[Area]] -> 12153279.63 | T106: =CSU_data_summary[[#This Row],[Equipment]]*CSU_data_summary[[#This Row],[Area]] -> 55750244.71
B107: Current-Los Angeles-University Union | C107: Current | D107: Los Angeles | E107: University Union | F107: 93138 | G107: 6.675877174 | H107: 8.584960185 | I107: 4.179941849 | J107: 4.858623873 | K107: 9.134369985 | L107: 6.502159874 | M107: 39.93593294 | N107: 3719552.922 | O107: =CSU_data_summary[[#This Row],[Heating]]*CSU_data_summary[[#This Row],[Area]] -> 621777.8482 | P107: =CSU_data_summary[[#This Row],[Cooling]]*CSU_data_summary[[#This Row],[Area]] -> 799586.0217 | Q107: =CSU_data_summary[[#This Row],[Ventilation]]*CSU_data_summary[[#This Row],[Area]] -> 389311.424 | R107: =CSU_data_summary[[#This Row],[Water Heating]]*CSU_data_summary[[#This Row],[Area]] -> 452522.5103 | S107: =CSU_data_summary[[#This Row],[Lighting]]*CSU_data_summary[[#This Row],[Area]] -> 850756.9517 | T107: =CSU_data_summary[[#This Row],[Equipment]]*CSU_data_summary[[#This Row],[Area]] -> 605598.1663
B108: Current-Maritime Academy-Administration | C108: Current | D108: Maritime Academy | E108: Administration | F108: 8800 | G108: 20.13799554 | H108: 4.911539524 | I108: 9.526202558 | J108: 3.525302809 | K108: 20.1733377 | L108: 20.28727453 | M108: 78.56165267 | N108: 691342.5435 | O108: =CSU_data_summary[[#This Row],[Heating]]*CSU_data_summary[[#This Row],[Area]] -> 177214.3608 | P108: =CSU_data_summary[[#This Row],[Cooling]]*CSU_data_summary[[#This Row],[Area]] -> 43221.54781 | Q108: =CSU_data_summary[[#This Row],[Ventilation]]*CSU_data_summary[[#This Row],[Area]] -> 83830.58251 | R108: =CSU_data_summary[[#This Row],[Water Heating]]*CSU_data_summary[[#This Row],[Area]] -> 31022.66472 | S108: =CSU_data_summary[[#This Row],[Lighting]]*CSU_data_summary[[#This Row],[Area]] -> 177525.3718 | T108: =CSU_data_summary[[#This Row],[Equipment]]*CSU_data_summary[[#This Row],[Area]] -> 178528.0158
B109: Current-Maritime Academy-Apartments | C109: Current | D109: Maritime Academy | E109: Apartments | F109: 131906 | G109: 9.36167261 | H109: 2.922483564 | I109: 5.977372787 | J109: 35.19534853 | K109: 16.2030089 | L109: 19.73419435 | M109: 89.39408074 | N109: 11791615.61 | O109: =CSU_data_summary[[#This Row],[Heating]]*CSU_data_summary[[#This Row],[Area]] -> 1234860.787 | P109: =CSU_data_summary[[#This Row],[Cooling]]*CSU_data_summary[[#This Row],[Area]] -> 385493.117 | Q109: =CSU_data_summary[[#This Row],[Ventilation]]*CSU_data_summary[[#This Row],[Area]] -> 788451.3349 | R109: =CSU_data_summary[[#This Row],[Water Heating]]*CSU_data_summary[[#This Row],[Area]] -> 4642477.643 | S109: =CSU_data_summary[[#This Row],[Lighting]]*CSU_data_summary[[#This Row],[Area]] -> 2137274.093 | T109: =CSU_data_summary[[#This Row],[Equipment]]*CSU_data_summary[[#This Row],[Area]] -> 2603058.64
B110: Current-Maritime Academy-Classroom | C110: Current | D110: Maritime Academy | E110: Classroom | F110: 31668 | G110: 29.19533341 | H110: 3.541844369 | I110: 7.977287858 | J110: 10.74688663 | K110: 19.055241 | L110: 12.84388652 | M110: 83.36047979 | N110: 2639859.674 | O110: =CSU_data_summary[[#This Row],[Heating]]*CSU_data_summary[[#This Row],[Area]] -> 924557.8185 | P110: =CSU_data_summary[[#This Row],[Cooling]]*CSU_data_summary[[#This Row],[Area]] -> 112163.1275 | Q110: =CSU_data_summary[[#This Row],[Ventilation]]*CSU_data_summary[[#This Row],[Area]] -> 252624.7519 | R110: =CSU_data_summary[[#This Row],[Water Heating]]*CSU_data_summary[[#This Row],[Area]] -> 340332.4059 | S110: =CSU_data_summary[[#This Row],[Lighting]]*CSU_data_summary[[#This Row],[Area]] -> 603441.3719 | T110: =CSU_data_summary[[#This Row],[Equipment]]*CSU_data_summary[[#This Row],[Area]] -> 406740.1984
B111: Current-Maritime Academy-Education | C111: Current | D111: Maritime Academy | E111: Education | F111: 20551 | G111: 29.19533341 | H111: 3.541844369 | I111: 7.977287858 | J111: 10.74688663 | K111: 19.055241 | L111: 12.84388652 | M111: 83.36047979 | N111: 1713141.22 | O111: =CSU_data_summary[[#This Row],[Heating]]*CSU_data_summary[[#This Row],[Area]] -> 599993.297 | P111: =CSU_data_summary[[#This Row],[Cooling]]*CSU_data_summary[[#This Row],[Area]] -> 72788.44364 | Q111: =CSU_data_summary[[#This Row],[Ventilation]]*CSU_data_summary[[#This Row],[Area]] -> 163941.2428 | R111: =CSU_data_summary[[#This Row],[Water Heating]]*CSU_data_summary[[#This Row],[Area]] -> 220859.2672 | S111: =CSU_data_summary[[#This Row],[Lighting]]*CSU_data_summary[[#This Row],[Area]] -> 391604.2577 | T111: =CSU_data_summary[[#This Row],[Equipment]]*CSU_data_summary[[#This Row],[Area]] -> 263954.7119
B112: Current-Maritime Academy-Engineering | C112: Current | D112: Maritime Academy | E112: Engineering | F112: 50153 | G112: 29.19533341 | H112: 3.541844369 | I112: 7.977287858 | J112: 10.74688663 | K112: 19.055241 | L112: 12.84388652 | M112: 83.36047979 | N112: 4180778.143 | O112: =CSU_data_summary[[#This Row],[Heating]]*CSU_data_summary[[#This Row],[Area]] -> 1464233.557 | P112: =CSU_data_summary[[#This Row],[Cooling]]*CSU_data_summary[[#This Row],[Area]] -> 177634.1207 | Q112: =CSU_data_summary[[#This Row],[Ventilation]]*CSU_data_summary[[#This Row],[Area]] -> 400084.9179 | R112: =CSU_data_summary[[#This Row],[Water Heating]]*CSU_data_summary[[#This Row],[Area]] -> 538988.6053 | S112: =CSU_data_summary[[#This Row],[Lighting]]*CSU_data_summary[[#This Row],[Area]] -> 955677.5017 | T112: =CSU_data_summary[[#This Row],[Equipment]]*CSU_data_summary[[#This Row],[Area]] -> 644159.4407
B113: Current-Maritime Academy-Faculty Office | C113: Current | D113: Maritime Academy | E113: Faculty Office | F113: 9908 | G113: 12.17888425 | H113: 3.870339931 | I113: 5.088316584 | J113: 3.12760059 | K113: 19.73928148 | L113: 15.65306394 | M113: 59.65748678 | N113: 591086.379 | O113: =CSU_data_summary[[#This Row],[Heating]]*CSU_data_summary[[#This Row],[Area]] -> 120668.3851 | P113: =CSU_data_summary[[#This Row],[Cooling]]*CSU_data_summary[[#This Row],[Area]] -> 38347.32804 | Q113: =CSU_data_summary[[#This Row],[Ventilation]]*CSU_data_summary[[#This Row],[Area]] -> 50415.04071 | R113: =CSU_data_summary[[#This Row],[Water Heating]]*CSU_data_summary[[#This Row],[Area]] -> 30988.26665 | S113: =CSU_data_summary[[#This Row],[Lighting]]*CSU_data_summary[[#This Row],[Area]] -> 195576.8009 | T113: =CSU_data_summary[[#This Row],[Equipment]]*CSU_data_summary[[#This Row],[Area]] -> 155090.5575
B114: Current-Maritime Academy-Food Service | C114: Current | D114: Maritime Academy | E114: Food Service | F114: 35829 | G114: 9.655732801 | H114: 6.542482378 | I114: 11.82274255 | J114: 57.02571563 | K114: 32.30674935 | L114: 262.9285232 | M114: 380.2819459 | N114: 13625121.84 | O114: =CSU_data_summary[[#This Row],[Heating]]*CSU_data_summary[[#This Row],[Area]] -> 345955.2505 | P114: =CSU_data_summary[[#This Row],[Cooling]]*CSU_data_summary[[#This Row],[Area]] -> 234410.6011 | Q114: =CSU_data_summary[[#This Row],[Ventilation]]*CSU_data_summary[[#This Row],[Area]] -> 423597.0427 | R114: =CSU_data_summary[[#This Row],[Water Heating]]*CSU_data_summary[[#This Row],[Area]] -> 2043174.365 | S114: =CSU_data_summary[[#This Row],[Lighting]]*CSU_data_summary[[#This Row],[Area]] -> 1157518.522 | T114: =CSU_data_summary[[#This Row],[Equipment]]*CSU_data_summary[[#This Row],[Area]] -> 9420466.058
B115: Current-Maritime Academy-Library | C115: Current | D115: Maritime Academy | E115: Library | F115: 10200 | G115: 29.19533341 | H115: 3.541844369 | I115: 7.977287858 | J115: 10.74688663 | K115: 19.055241 | L115: 12.84388652 | M115: 83.36047979 | N115: 850276.8939 | O115: =CSU_data_summary[[#This Row],[Heating]]*CSU_data_summary[[#This Row],[Area]] -> 297792.4008 | P115: =CSU_data_summary[[#This Row],[Cooling]]*CSU_data_summary[[#This Row],[Area]] -> 36126.81257 | Q115: =CSU_data_summary[[#This Row],[Ventilation]]*CSU_data_summary[[#This Row],[Area]] -> 81368.33615 | R115: =CSU_data_summary[[#This Row],[Water Heating]]*CSU_data_summary[[#This Row],[Area]] -> 109618.2436 | S115: =CSU_data_summary[[#This Row],[Lighting]]*CSU_data_summary[[#This Row],[Area]] -> 194363.4582 | T115: =CSU_data_summary[[#This Row],[Equipment]]*CSU_data_summary[[#This Row],[Area]] -> 131007.6425
B116: Current-Maritime Academy-Little Theater | C116: Current | D116: Maritime Academy | E116: Little Theater | F116: 15000 | G116: 29.19533341 | H116: 3.541844369 | I116: 7.977287858 | J116: 10.74688663 | K116: 19.055241 | L116: 12.84388652 | M116: 83.36047979 | N116: 1250407.197 | O116: =CSU_data_summary[[#This Row],[Heating]]*CSU_data_summary[[#This Row],[Area]] -> 437930.0012 | P116: =CSU_data_summary[[#This Row],[Cooling]]*CSU_data_summary[[#This Row],[Area]] -> 53127.66554 | Q116: =CSU_data_summary[[#This Row],[Ventilation]]*CSU_data_summary[[#This Row],[Area]] -> 119659.3179 | R116: =CSU_data_summary[[#This Row],[Water Heating]]*CSU_data_summary[[#This Row],[Area]] -> 161203.2995 | S116: =CSU_data_summary[[#This Row],[Lighting]]*CSU_data_summary[[#This Row],[Area]] -> 285828.615 | T116: =CSU_data_summary[[#This Row],[Equipment]]*CSU_data_summary[[#This Row],[Area]] -> 192658.2978
B117: Current-Maritime Academy-Residence Hall | C117: Current | D117: Maritime Academy | E117: Residence Hall | F117: 28892 | G117: 9.36167261 | H117: 2.922483564 | I117: 5.977372787 | J117: 35.19534853 | K117: 16.2030089 | L117: 19.73419435 | M117: 89.39408074 | N117: 2582773.781 | O117: =CSU_data_summary[[#This Row],[Heating]]*CSU_data_summary[[#This Row],[Area]] -> 270477.4451 | P117: =CSU_data_summary[[#This Row],[Cooling]]*CSU_data_summary[[#This Row],[Area]] -> 84436.39512 | Q117: =CSU_data_summary[[#This Row],[Ventilation]]*CSU_data_summary[[#This Row],[Area]] -> 172698.2546 | R117: =CSU_data_summary[[#This Row],[Water Heating]]*CSU_data_summary[[#This Row],[Area]] -> 1016864.01 | S117: =CSU_data_summary[[#This Row],[Lighting]]*CSU_data_summary[[#This Row],[Area]] -> 468137.3333 | T117: =CSU_data_summary[[#This Row],[Equipment]]*CSU_data_summary[[#This Row],[Area]] -> 570160.3431
B118: Current-Monterey Bay-Administration | C118: Current | D118: Monterey Bay | E118: Administration | F118: 183729 | G118: 17.10710701 | H118: 4.172323508 | I118: 8.09245221 | J118: 2.994723693 | K118: 17.13712996 | L118: 17.23391861 | M118: 66.73765499 | N118: 12261642.61 | O118: =CSU_data_summary[[#This Row],[Heating]]*CSU_data_summary[[#This Row],[Area]] -> 3143071.663 | P118: =CSU_data_summary[[#This Row],[Cooling]]*CSU_data_summary[[#This Row],[Area]] -> 766576.8257 | Q118: =CSU_data_summary[[#This Row],[Ventilation]]*CSU_data_summary[[#This Row],[Area]] -> 1486818.152 | R118: =CSU_data_summary[[#This Row],[Water Heating]]*CSU_data_summary[[#This Row],[Area]] -> 550217.5895 | S118: =CSU_data_summary[[#This Row],[Lighting]]*CSU_data_summary[[#This Row],[Area]] -> 3148587.75 | T118: =CSU_data_summary[[#This Row],[Equipment]]*CSU_data_summary[[#This Row],[Area]] -> 3166370.633
B119: Current-Monterey Bay-Classroom | C119: Current | D119: Monterey Bay | E119: Classroom | F119: 113279 | G119: 24.80126146 | H119: 3.00877565 | I119: 6.776658417 | J119: 9.129416044 | K119: 16.18731348 | L119: 10.91080493 | M119: 70.81422999 | N119: 8021765.159 | O119: =CSU_data_summary[[#This Row],[Heating]]*CSU_data_summary[[#This Row],[Area]] -> 2809462.097 | P119: =CSU_data_summary[[#This Row],[Cooling]]*CSU_data_summary[[#This Row],[Area]] -> 340831.0968 | Q119: =CSU_data_summary[[#This Row],[Ventilation]]*CSU_data_summary[[#This Row],[Area]] -> 767653.0889 | R119: =CSU_data_summary[[#This Row],[Water Heating]]*CSU_data_summary[[#This Row],[Area]] -> 1034171.12 | S119: =CSU_data_summary[[#This Row],[Lighting]]*CSU_data_summary[[#This Row],[Area]] -> 1833682.684 | T119: =CSU_data_summary[[#This Row],[Equipment]]*CSU_data_summary[[#This Row],[Area]] -> 1235965.072
B120: Current-Monterey Bay-Faculty Office | C120: Current | D120: Monterey Bay | E120: Faculty Office | F120: 52358 | G120: 10.34588947 | H120: 3.287830669 | I120: 4.322494565 | J120: 2.656878032 | K120: 16.76840179 | L120: 13.29718438 | M120: 50.67867891 | N120: 2653434.27 | O120: =CSU_data_summary[[#This Row],[Heating]]*CSU_data_summary[[#This Row],[Area]] -> 541690.0809 | P120: =CSU_data_summary[[#This Row],[Cooling]]*CSU_data_summary[[#This Row],[Area]] -> 172144.2382 | Q120: =CSU_data_summary[[#This Row],[Ventilation]]*CSU_data_summary[[#This Row],[Area]] -> 226317.1704 | R120: =CSU_data_summary[[#This Row],[Water Heating]]*CSU_data_summary[[#This Row],[Area]] -> 139108.82 | S120: =CSU_data_summary[[#This Row],[Lighting]]*CSU_data_summary[[#This Row],[Area]] -> 877959.9811 | T120: =CSU_data_summary[[#This Row],[Equipment]]*CSU_data_summary[[#This Row],[Area]] -> 696213.9798
B121: Current-Monterey Bay-Food Service | C121: Current | D121: Monterey Bay | E121: Food Service | F121: 14080 | G121: 8.202487378 | H121: 5.557799727 | I121: 10.04334922 | J121: 48.44300503 | K121: 27.44439072 | L121: 223.356211 | M121: 323.0472431 | N121: 4548505.182 | O121: =CSU_data_summary[[#This Row],[Heating]]*CSU_data_summary[[#This Row],[Area]] -> 115491.0223 | P121: =CSU_data_summary[[#This Row],[Cooling]]*CSU_data_summary[[#This Row],[Area]] -> 78253.82015 | Q121: =CSU_data_summary[[#This Row],[Ventilation]]*CSU_data_summary[[#This Row],[Area]] -> 141410.357 | R121: =CSU_data_summary[[#This Row],[Water Heating]]*CSU_data_summary[[#This Row],[Area]] -> 682077.5108 | S121: =CSU_data_summary[[#This Row],[Lighting]]*CSU_data_summary[[#This Row],[Area]] -> 386417.0214 | T121: =CSU_data_summary[[#This Row],[Equipment]]*CSU_data_summary[[#This Row],[Area]] -> 3144855.451
B122: Current-Monterey Bay-Library | C122: Current | D122: Monterey Bay | E122: Library | F122: 136151 | G122: 24.80126146 | H122: 3.00877565 | I122: 6.776658417 | J122: 9.129416044 | K122: 16.18731348 | L122: 10.91080493 | M122: 70.81422999 | N122: 9641428.227 | O122: =CSU_data_summary[[#This Row],[Heating]]*CSU_data_summary[[#This Row],[Area]] -> 3376716.549 | P122: =CSU_data_summary[[#This Row],[Cooling]]*CSU_data_summary[[#This Row],[Area]] -> 409647.8135 | Q122: =CSU_data_summary[[#This Row],[Ventilation]]*CSU_data_summary[[#This Row],[Area]] -> 922648.8202 | R122: =CSU_data_summary[[#This Row],[Water Heating]]*CSU_data_summary[[#This Row],[Area]] -> 1242979.124 | S122: =CSU_data_summary[[#This Row],[Lighting]]*CSU_data_summary[[#This Row],[Area]] -> 2203918.918 | T122: =CSU_data_summary[[#This Row],[Equipment]]*CSU_data_summary[[#This Row],[Area]] -> 1485517.002
B123: Current-Monterey Bay-Residence Hall | C123: Current | D123: Monterey Bay | E123: Residence Hall | F123: 379481 | G123: 7.943786899 | H123: 2.479854574 | I123: 5.072061117 | J123: 29.86478594 | K123: 13.75122512 | L123: 16.76267707 | M123: 75.87439072 | N123: 28792889.67 | O123: =CSU_data_summary[[#This Row],[Heating]]*CSU_data_summary[[#This Row],[Area]] -> 3014516.196 | P123: =CSU_data_summary[[#This Row],[Cooling]]*CSU_data_summary[[#This Row],[Area]] -> 941057.6938 | Q123: =CSU_data_summary[[#This Row],[Ventilation]]*CSU_data_summary[[#This Row],[Area]] -> 1924750.825 | R123: =CSU_data_summary[[#This Row],[Water Heating]]*CSU_data_summary[[#This Row],[Area]] -> 11333118.83 | S123: =CSU_data_summary[[#This Row],[Lighting]]*CSU_data_summary[[#This Row],[Area]] -> 5218328.66 | T123: =CSU_data_summary[[#This Row],[Equipment]]*CSU_data_summary[[#This Row],[Area]] -> 6361117.457
B124: Current-Monterey Bay-Science | C124: Current | D124: Monterey Bay | E124: Science | F124: 90525 | G124: 21.04098771 | H124: 5.425581443 | I124: 12.23319667 | J124: 33.79706315 | K124: 32.5979878 | L124: 133.0629801 | M124: 238.1577968 | N124: 21559234.56 | O124: =CSU_data_summary[[#This Row],[Heating]]*CSU_data_summary[[#This Row],[Area]] -> 1904735.412 | P124: =CSU_data_summary[[#This Row],[Cooling]]*CSU_data_summary[[#This Row],[Area]] -> 491150.7601 | Q124: =CSU_data_summary[[#This Row],[Ventilation]]*CSU_data_summary[[#This Row],[Area]] -> 1107410.129 | R124: =CSU_data_summary[[#This Row],[Water Heating]]*CSU_data_summary[[#This Row],[Area]] -> 3059479.142 | S124: =CSU_data_summary[[#This Row],[Lighting]]*CSU_data_summary[[#This Row],[Area]] -> 2950932.845 | T124: =CSU_data_summary[[#This Row],[Equipment]]*CSU_data_summary[[#This Row],[Area]] -> 12045526.27
B125: Current-Monterey Bay-Student Health Center | C125: Current | D125: Monterey Bay | E125: Student Health Center | F125: 12789 | G125: 35.81394085 | H125: 4.661968075 | I125: 12.5004287 | J125: 32.23299819 | K125: 18.11335501 | L125: 27.42483034 | M125: 130.7475212 | N125: 1672130.048 | O125: =CSU_data_summary[[#This Row],[Heating]]*CSU_data_summary[[#This Row],[Area]] -> 458024.4895 | P125: =CSU_data_summary[[#This Row],[Cooling]]*CSU_data_summary[[#This Row],[Area]] -> 59621.90971 | Q125: =CSU_data_summary[[#This Row],[Ventilation]]*CSU_data_summary[[#This Row],[Area]] -> 159867.9827 | R125: =CSU_data_summary[[#This Row],[Water Heating]]*CSU_data_summary[[#This Row],[Area]] -> 412227.8139 | S125: =CSU_data_summary[[#This Row],[Lighting]]*CSU_data_summary[[#This Row],[Area]] -> 231651.6972 | T125: =CSU_data_summary[[#This Row],[Equipment]]*CSU_data_summary[[#This Row],[Area]] -> 350736.1552
B126: Current-Monterey Bay-Student Services | C126: Current | D126: Monterey Bay | E126: Student Services | F126: 79139 | G126: 17.10710701 | H126: 4.172323508 | I126: 8.09245221 | J126: 2.994723693 | K126: 17.13712996 | L126: 17.23391861 | M126: 66.73765499 | N126: 5281551.278 | O126: =CSU_data_summary[[#This Row],[Heating]]*CSU_data_summary[[#This Row],[Area]] -> 1353839.341 | P126: =CSU_data_summary[[#This Row],[Cooling]]*CSU_data_summary[[#This Row],[Area]] -> 330193.5101 | Q126: =CSU_data_summary[[#This Row],[Ventilation]]*CSU_data_summary[[#This Row],[Area]] -> 640428.5754 | R126: =CSU_data_summary[[#This Row],[Water Heating]]*CSU_data_summary[[#This Row],[Area]] -> 236999.4384 | S126: =CSU_data_summary[[#This Row],[Lighting]]*CSU_data_summary[[#This Row],[Area]] -> 1356215.328 | T126: =CSU_data_summary[[#This Row],[Equipment]]*CSU_data_summary[[#This Row],[Area]] -> 1363875.085
B127: Current-Monterey Bay-Theater Arts | C127: Current | D127: Monterey Bay | E127: Theater Arts | F127: 30497 | G127: 24.80126146 | H127: 3.00877565 | I127: 6.776658417 | J127: 9.129416044 | K127: 16.18731348 | L127: 10.91080493 | M127: 70.81422999 | N127: 2159621.572 | O127: =CSU_data_summary[[#This Row],[Heating]]*CSU_data_summary[[#This Row],[Area]] -> 756364.0708 | P127: =CSU_data_summary[[#This Row],[Cooling]]*CSU_data_summary[[#This Row],[Area]] -> 91758.63099 | Q127: =CSU_data_summary[[#This Row],[Ventilation]]*CSU_data_summary[[#This Row],[Area]] -> 206667.7518 | R127: =CSU_data_summary[[#This Row],[Water Heating]]*CSU_data_summary[[#This Row],[Area]] -> 278419.8011 | S127: =CSU_data_summary[[#This Row],[Lighting]]*CSU_data_summary[[#This Row],[Area]] -> 493664.4993 | T127: =CSU_data_summary[[#This Row],[Equipment]]*CSU_data_summary[[#This Row],[Area]] -> 332746.818
B128: Current-Northridge-Administration | C128: Current | D128: Northridge | E128: Administration | F128: 216368 | G128: 5.906336033 | H128: 11.0255313 | I128: 5.673557257 | J128: 1.834399072 | K128: 10.95747029 | L128: 12.04919805 | M128: 47.446492 | N128: 10265902.58 | O128: =CSU_data_summary[[#This Row],[Heating]]*CSU_data_summary[[#This Row],[Area]] -> 1277942.115 | P128: =CSU_data_summary[[#This Row],[Cooling]]*CSU_data_summary[[#This Row],[Area]] -> 2385572.157 | Q128: =CSU_data_summary[[#This Row],[Ventilation]]*CSU_data_summary[[#This Row],[Area]] -> 1227576.237 | R128: =CSU_data_summary[[#This Row],[Water Heating]]*CSU_data_summary[[#This Row],[Area]] -> 396905.2584 | S128: =CSU_data_summary[[#This Row],[Lighting]]*CSU_data_summary[[#This Row],[Area]] -> 2370845.931 | T128: =CSU_data_summary[[#This Row],[Equipment]]*CSU_data_summary[[#This Row],[Area]] -> 2607060.884
B129: Current-Northridge-Classroom | C129: Current | D129: Northridge | E129: Classroom | F129: 319303 | G129: 8.549587672 | H129: 10.13810128 | I129: 4.677298285 | J129: 5.528784738 | K129: 10.58588717 | L129: 7.910117909 | M129: 47.38977705 | N129: 15131697.98 | O129: =CSU_data_summary[[#This Row],[Heating]]*CSU_data_summary[[#This Row],[Area]] -> 2729908.992 | P129: =CSU_data_summary[[#This Row],[Cooling]]*CSU_data_summary[[#This Row],[Area]] -> 3237126.152 | Q129: =CSU_data_summary[[#This Row],[Ventilation]]*CSU_data_summary[[#This Row],[Area]] -> 1493475.374 | R129: =CSU_data_summary[[#This Row],[Water Heating]]*CSU_data_summary[[#This Row],[Area]] -> 1765357.553 | S129: =CSU_data_summary[[#This Row],[Lighting]]*CSU_data_summary[[#This Row],[Area]] -> 3380105.531 | T129: =CSU_data_summary[[#This Row],[Equipment]]*CSU_data_summary[[#This Row],[Area]] -> 2525724.379
B130: Current-Northridge-Engineering | C130: Current | D130: Northridge | E130: Engineering | F130: 237540 | G130: 8.549587672 | H130: 10.13810128 | I130: 4.677298285 | J130: 5.528784738 | K130: 10.58588717 | L130: 7.910117909 | M130: 47.38977705 | N130: 11256967.64 | O130: =CSU_data_summary[[#This Row],[Heating]]*CSU_data_summary[[#This Row],[Area]] -> 2030869.056 | P130: =CSU_data_summary[[#This Row],[Cooling]]*CSU_data_summary[[#This Row],[Area]] -> 2408204.578 | Q130: =CSU_data_summary[[#This Row],[Ventilation]]*CSU_data_summary[[#This Row],[Area]] -> 1111045.435 | R130: =CSU_data_summary[[#This Row],[Water Heating]]*CSU_data_summary[[#This Row],[Area]] -> 1313307.527 | S130: =CSU_data_summary[[#This Row],[Lighting]]*CSU_data_summary[[#This Row],[Area]] -> 2514571.638 | T130: =CSU_data_summary[[#This Row],[Equipment]]*CSU_data_summary[[#This Row],[Area]] -> 1878969.408
B131: Current-Northridge-Faculty Office | C131: Current | D131: Northridge | E131: Faculty Office | F131: 147532 | G131: 3.463242001 | H131: 8.423729637 | I131: 2.938212352 | J131: 1.577909558 | K131: 10.50069021 | L131: 9.125734117 | M131: 36.02951787 | N131: 5315506.831 | O131: =CSU_data_summary[[#This Row],[Heating]]*CSU_data_summary[[#This Row],[Area]] -> 510939.0189 | P131: =CSU_data_summary[[#This Row],[Cooling]]*CSU_data_summary[[#This Row],[Area]] -> 1242769.681 | Q131: =CSU_data_summary[[#This Row],[Ventilation]]*CSU_data_summary[[#This Row],[Area]] -> 433480.3447 | R131: =CSU_data_summary[[#This Row],[Water Heating]]*CSU_data_summary[[#This Row],[Area]] -> 232792.1529 | S131: =CSU_data_summary[[#This Row],[Lighting]]*CSU_data_summary[[#This Row],[Area]] -> 1549187.828 | T131: =CSU_data_summary[[#This Row],[Equipment]]*CSU_data_summary[[#This Row],[Area]] -> 1346337.806
B132: Current-Northridge-Library | C132: Current | D132: Northridge | E132: Library | F132: 301613 | G132: 8.549587672 | H132: 10.13810128 | I132: 4.677298285 | J132: 5.528784738 | K132: 10.58588717 | L132: 7.910117909 | M132: 47.38977705 | N132: 14293372.83 | O132: =CSU_data_summary[[#This Row],[Heating]]*CSU_data_summary[[#This Row],[Area]] -> 2578666.787 | P132: =CSU_data_summary[[#This Row],[Cooling]]*CSU_data_summary[[#This Row],[Area]] -> 3057783.141 | Q132: =CSU_data_summary[[#This Row],[Ventilation]]*CSU_data_summary[[#This Row],[Area]] -> 1410733.968 | R132: =CSU_data_summary[[#This Row],[Water Heating]]*CSU_data_summary[[#This Row],[Area]] -> 1667553.351 | S132: =CSU_data_summary[[#This Row],[Lighting]]*CSU_data_summary[[#This Row],[Area]] -> 3192841.187 | T132: =CSU_data_summary[[#This Row],[Equipment]]*CSU_data_summary[[#This Row],[Area]] -> 2385794.393
B133: Current-Northridge-Military Science | C133: Current | D133: Northridge | E133: Military Science | F133: 176246 | G133: 8.549587672 | H133: 10.13810128 | I133: 4.677298285 | J133: 5.528784738 | K133: 10.58588717 | L133: 7.910117909 | M133: 47.38977705 | N133: 8352258.646 | O133: =CSU_data_summary[[#This Row],[Heating]]*CSU_data_summary[[#This Row],[Area]] -> 1506830.629 | P133: =CSU_data_summary[[#This Row],[Cooling]]*CSU_data_summary[[#This Row],[Area]] -> 1786799.798 | Q133: =CSU_data_summary[[#This Row],[Ventilation]]*CSU_data_summary[[#This Row],[Area]] -> 824355.1136 | R133: =CSU_data_summary[[#This Row],[Water Heating]]*CSU_data_summary[[#This Row],[Area]] -> 974426.1949 | S133: =CSU_data_summary[[#This Row],[Lighting]]*CSU_data_summary[[#This Row],[Area]] -> 1865720.27 | T133: =CSU_data_summary[[#This Row],[Equipment]]*CSU_data_summary[[#This Row],[Area]] -> 1394126.641
B134: Current-Northridge-Performing Arts | C134: Current | D134: Northridge | E134: Performing Arts | F134: 166000 | G134: 8.549587672 | H134: 10.13810128 | I134: 4.677298285 | J134: 5.528784738 | K134: 10.58588717 | L134: 7.910117909 | M134: 47.38977705 | N134: 7866702.99 | O134: =CSU_data_summary[[#This Row],[Heating]]*CSU_data_summary[[#This Row],[Area]] -> 1419231.554 | P134: =CSU_data_summary[[#This Row],[Cooling]]*CSU_data_summary[[#This Row],[Area]] -> 1682924.812 | Q134: =CSU_data_summary[[#This Row],[Ventilation]]*CSU_data_summary[[#This Row],[Area]] -> 776431.5153 | R134: =CSU_data_summary[[#This Row],[Water Heating]]*CSU_data_summary[[#This Row],[Area]] -> 917778.2665 | S134: =CSU_data_summary[[#This Row],[Lighting]]*CSU_data_summary[[#This Row],[Area]] -> 1757257.27 | T134: =CSU_data_summary[[#This Row],[Equipment]]*CSU_data_summary[[#This Row],[Area]] -> 1313079.573
B135: Current-Northridge-Residence Hall | C135: Current | D135: Northridge | E135: Residence Hall | F135: 1134663 | G135: 2.310451747 | H135: 8.209045301 | I135: 4.359997862 | J135: 18.43907958 | K135: 9.2640507 | L135: 11.65692179 | M135: 54.23954698 | N135: 61543607.1 | O135: =CSU_data_summary[[#This Row],[Heating]]*CSU_data_summary[[#This Row],[Area]] -> 2621584.111 | P135: =CSU_data_summary[[#This Row],[Cooling]]*CSU_data_summary[[#This Row],[Area]] -> 9314499.968 | Q135: =CSU_data_summary[[#This Row],[Ventilation]]*CSU_data_summary[[#This Row],[Area]] -> 4947128.255 | R135: =CSU_data_summary[[#This Row],[Water Heating]]*CSU_data_summary[[#This Row],[Area]] -> 20922141.35 | S135: =CSU_data_summary[[#This Row],[Lighting]]*CSU_data_summary[[#This Row],[Area]] -> 10511575.56 | T135: =CSU_data_summary[[#This Row],[Equipment]]*CSU_data_summary[[#This Row],[Area]] -> 13226677.85
B136: Current-Northridge-Science | C136: Current | D136: Northridge | E136: Science | F136: 330297 | G136: 6.584012418 | H136: 16.59457851 | I136: 7.66430094 | J136: 18.57884727 | K136: 19.68453584 | L136: 90.29806965 | M136: 159.4043446 | N136: 52650776.82 | O136: =CSU_data_summary[[#This Row],[Heating]]*CSU_data_summary[[#This Row],[Area]] -> 2174679.55 | P136: =CSU_data_summary[[#This Row],[Cooling]]*CSU_data_summary[[#This Row],[Area]] -> 5481139.499 | Q136: =CSU_data_summary[[#This Row],[Ventilation]]*CSU_data_summary[[#This Row],[Area]] -> 2531495.608 | R136: =CSU_data_summary[[#This Row],[Water Heating]]*CSU_data_summary[[#This Row],[Area]] -> 6136537.517 | S136: =CSU_data_summary[[#This Row],[Lighting]]*CSU_data_summary[[#This Row],[Area]] -> 6501743.136 | T136: =CSU_data_summary[[#This Row],[Equipment]]*CSU_data_summary[[#This Row],[Area]] -> 29825181.51
B137: Current-Northridge-University Union | C137: Current | D137: Northridge | E137: University Union | F137: 260782 | G137: 8.152680596 | H137: 10.48408119 | I137: 5.104607218 | J137: 5.933423809 | K137: 11.15502862 | L137: 7.940534442 | M137: 48.77035587 | N137: 12718430.95 | O137: =CSU_data_summary[[#This Row],[Heating]]*CSU_data_summary[[#This Row],[Area]] -> 2126072.351 | P137: =CSU_data_summary[[#This Row],[Cooling]]*CSU_data_summary[[#This Row],[Area]] -> 2734059.661 | Q137: =CSU_data_summary[[#This Row],[Ventilation]]*CSU_data_summary[[#This Row],[Area]] -> 1331189.679 | R137: =CSU_data_summary[[#This Row],[Water Heating]]*CSU_data_summary[[#This Row],[Area]] -> 1547330.128 | S137: =CSU_data_summary[[#This Row],[Lighting]]*CSU_data_summary[[#This Row],[Area]] -> 2909030.673 | T137: =CSU_data_summary[[#This Row],[Equipment]]*CSU_data_summary[[#This Row],[Area]] -> 2070748.453
B138: Current-Office of the Chancellor​​​-Commercial Office Building | C138: Current | D138: Office of the Chancellor​​​ | E138: Commercial Office Building | F138: 170000 | G138: 10.18244823 | H138: 13.87068404 | I138: 9.422778215 | J138: 2.687014314 | K138: 15.15415728 | L138: 18.29285515 | M138: 69.60993722 | N138: 11833689.33 | O138: =CSU_data_summary[[#This Row],[Heating]]*CSU_data_summary[[#This Row],[Area]] -> 1731016.198 | P138: =CSU_data_summary[[#This Row],[Cooling]]*CSU_data_summary[[#This Row],[Area]] -> 2358016.287 | Q138: =CSU_data_summary[[#This Row],[Ventilation]]*CSU_data_summary[[#This Row],[Area]] -> 1601872.296 | R138: =CSU_data_summary[[#This Row],[Water Heating]]*CSU_data_summary[[#This Row],[Area]] -> 456792.4334 | S138: =CSU_data_summary[[#This Row],[Lighting]]*CSU_data_summary[[#This Row],[Area]] -> 2576206.738 | T138: =CSU_data_summary[[#This Row],[Equipment]]*CSU_data_summary[[#This Row],[Area]] -> 3109785.375
B139: Current-Pomona-Business Administration | C139: Current | D139: Pomona | E139: Business Administration | F139: 118884 | G139: 3.414022588 | H139: 8.304012034 | I139: 2.896454632 | J139: 1.55548439 | K139: 10.35145495 | L139: 8.996039663 | M139: 35.51746826 | N139: 4222458.696 | O139: =CSU_data_summary[[#This Row],[Heating]]*CSU_data_summary[[#This Row],[Area]] -> 405872.6613 | P139: =CSU_data_summary[[#This Row],[Cooling]]*CSU_data_summary[[#This Row],[Area]] -> 987214.1666 | Q139: =CSU_data_summary[[#This Row],[Ventilation]]*CSU_data_summary[[#This Row],[Area]] -> 344342.1125 | R139: =CSU_data_summary[[#This Row],[Water Heating]]*CSU_data_summary[[#This Row],[Area]] -> 184922.2062 | S139: =CSU_data_summary[[#This Row],[Lighting]]*CSU_data_summary[[#This Row],[Area]] -> 1230622.37 | T139: =CSU_data_summary[[#This Row],[Equipment]]*CSU_data_summary[[#This Row],[Area]] -> 1069485.179
B140: Current-Pomona-Classroom | C140: Current | D140: Pomona | E140: Classroom | F140: 321762 | G140: 8.428081381 | H140: 9.994019115 | I140: 4.610824768 | J140: 5.450209939 | K140: 10.4354411 | L140: 7.797699729 | M140: 46.71627603 | N140: 15031522.41 | O140: =CSU_data_summary[[#This Row],[Heating]]*CSU_data_summary[[#This Row],[Area]] -> 2711836.321 | P140: =CSU_data_summary[[#This Row],[Cooling]]*CSU_data_summary[[#This Row],[Area]] -> 3215695.578 | Q140: =CSU_data_summary[[#This Row],[Ventilation]]*CSU_data_summary[[#This Row],[Area]] -> 1483588.199 | R140: =CSU_data_summary[[#This Row],[Water Heating]]*CSU_data_summary[[#This Row],[Area]] -> 1753670.45 | S140: =CSU_data_summary[[#This Row],[Lighting]]*CSU_data_summary[[#This Row],[Area]] -> 3357728.398 | T140: =CSU_data_summary[[#This Row],[Equipment]]*CSU_data_summary[[#This Row],[Area]] -> 2509003.46
B141: Current-Pomona-Commercial Office Building | C141: Current | D141: Pomona | E141: Commercial Office Building | F141: 447120 | G141: 7.169502202 | H141: 12.26579314 | I141: 7.104616136 | J141: 1.926182187 | K141: 11.02073716 | L141: 13.48367862 | M141: 52.97050945 | N141: 23684174.19 | O141: =CSU_data_summary[[#This Row],[Heating]]*CSU_data_summary[[#This Row],[Area]] -> 3205627.824 | P141: =CSU_data_summary[[#This Row],[Cooling]]*CSU_data_summary[[#This Row],[Area]] -> 5484281.429 | Q141: =CSU_data_summary[[#This Row],[Ventilation]]*CSU_data_summary[[#This Row],[Area]] -> 3176615.967 | R141: =CSU_data_summary[[#This Row],[Water Heating]]*CSU_data_summary[[#This Row],[Area]] -> 861234.5796 | S141: =CSU_data_summary[[#This Row],[Lighting]]*CSU_data_summary[[#This Row],[Area]] -> 4927591.999 | T141: =CSU_data_summary[[#This Row],[Equipment]]*CSU_data_summary[[#This Row],[Area]] -> 6028822.387
B142: Current-Pomona-Engineering | C142: Current | D142: Pomona | E142: Engineering | F142: 307305 | G142: 8.428081381 | H142: 9.994019115 | I142: 4.610824768 | J142: 5.450209939 | K142: 10.4354411 | L142: 7.797699729 | M142: 46.71627603 | N142: 14356145.2 | O142: =CSU_data_summary[[#This Row],[Heating]]*CSU_data_summary[[#This Row],[Area]] -> 2589991.549 | P142: =CSU_data_summary[[#This Row],[Cooling]]*CSU_data_summary[[#This Row],[Area]] -> 3071212.044 | Q142: =CSU_data_summary[[#This Row],[Ventilation]]*CSU_data_summary[[#This Row],[Area]] -> 1416929.505 | R142: =CSU_data_summary[[#This Row],[Water Heating]]*CSU_data_summary[[#This Row],[Area]] -> 1674876.765 | S142: =CSU_data_summary[[#This Row],[Lighting]]*CSU_data_summary[[#This Row],[Area]] -> 3206863.226 | T142: =CSU_data_summary[[#This Row],[Equipment]]*CSU_data_summary[[#This Row],[Area]] -> 2396272.115
B143: Current-Pomona-Library | C143: Current | D143: Pomona | E143: Library | F143: 319751 | G143: 8.428081381 | H143: 9.994019115 | I143: 4.610824768 | J143: 5.450209939 | K143: 10.4354411 | L143: 7.797699729 | M143: 46.71627603 | N143: 14937575.98 | O143: =CSU_data_summary[[#This Row],[Heating]]*CSU_data_summary[[#This Row],[Area]] -> 2694887.45 | P143: =CSU_data_summary[[#This Row],[Cooling]]*CSU_data_summary[[#This Row],[Area]] -> 3195597.606 | Q143: =CSU_data_summary[[#This Row],[Ventilation]]*CSU_data_summary[[#This Row],[Area]] -> 1474315.83 | R143: =CSU_data_summary[[#This Row],[Water Heating]]*CSU_data_summary[[#This Row],[Area]] -> 1742710.078 | S143: =CSU_data_summary[[#This Row],[Lighting]]*CSU_data_summary[[#This Row],[Area]] -> 3336742.726 | T143: =CSU_data_summary[[#This Row],[Equipment]]*CSU_data_summary[[#This Row],[Area]] -> 2493322.286
B144: Current-Pomona-Music | C144: Current | D144: Pomona | E144: Music | F144: 89227 | G144: 8.428081381 | H144: 9.994019115 | I144: 4.610824768 | J144: 5.450209939 | K144: 10.4354411 | L144: 7.797699729 | M144: 46.71627603 | N144: 4168353.161 | O144: =CSU_data_summary[[#This Row],[Heating]]*CSU_data_summary[[#This Row],[Area]] -> 752012.4174 | P144: =CSU_data_summary[[#This Row],[Cooling]]*CSU_data_summary[[#This Row],[Area]] -> 891736.3436 | Q144: =CSU_data_summary[[#This Row],[Ventilation]]*CSU_data_summary[[#This Row],[Area]] -> 411410.0615 | R144: =CSU_data_summary[[#This Row],[Water Heating]]*CSU_data_summary[[#This Row],[Area]] -> 486305.8823 | S144: =CSU_data_summary[[#This Row],[Lighting]]*CSU_data_summary[[#This Row],[Area]] -> 931123.1026 | T144: =CSU_data_summary[[#This Row],[Equipment]]*CSU_data_summary[[#This Row],[Area]] -> 695765.3537
B145: Current-Pomona-Recreation Center | C145: Current | D145: Pomona | E145: Recreation Center | F145: 119382 | G145: 8.428081381 | H145: 9.994019115 | I145: 4.610824768 | J145: 5.450209939 | K145: 10.4354411 | L145: 7.797699729 | M145: 46.71627603 | N145: 5577082.465 | O145: =CSU_data_summary[[#This Row],[Heating]]*CSU_data_summary[[#This Row],[Area]] -> 1006161.211 | P145: =CSU_data_summary[[#This Row],[Cooling]]*CSU_data_summary[[#This Row],[Area]] -> 1193105.99 | Q145: =CSU_data_summary[[#This Row],[Ventilation]]*CSU_data_summary[[#This Row],[Area]] -> 550449.4824 | R145: =CSU_data_summary[[#This Row],[Water Heating]]*CSU_data_summary[[#This Row],[Area]] -> 650656.963 | S145: =CSU_data_summary[[#This Row],[Lighting]]*CSU_data_summary[[#This Row],[Area]] -> 1245803.829 | T145: =CSU_data_summary[[#This Row],[Equipment]]*CSU_data_summary[[#This Row],[Area]] -> 930904.989
B146: Current-Pomona-Residence Hall | C146: Current | D146: Pomona | E146: Residence Hall | F146: 928674 | G146: 2.277615728 | H146: 8.09237878 | I146: 4.298033802 | J146: 18.17702435 | K146: 9.132390498 | L146: 11.49125423 | M146: 53.46869739 | N146: 49654989.08 | O146: =CSU_data_summary[[#This Row],[Heating]]*CSU_data_summary[[#This Row],[Area]] -> 2115162.509 | P146: =CSU_data_summary[[#This Row],[Cooling]]*CSU_data_summary[[#This Row],[Area]] -> 7515181.771 | Q146: =CSU_data_summary[[#This Row],[Ventilation]]*CSU_data_summary[[#This Row],[Area]] -> 3991472.243 | R146: =CSU_data_summary[[#This Row],[Water Heating]]*CSU_data_summary[[#This Row],[Area]] -> 16880529.91 | S146: =CSU_data_summary[[#This Row],[Lighting]]*CSU_data_summary[[#This Row],[Area]] -> 8481013.613 | T146: =CSU_data_summary[[#This Row],[Equipment]]*CSU_data_summary[[#This Row],[Area]] -> 10671629.03
B147: Current-Pomona-Science | C147: Current | D147: Pomona | E147: Science | F147: 325713 | G147: 6.490440779 | H147: 16.35873723 | I147: 7.555376297 | J147: 18.31480567 | K147: 19.40478025 | L147: 89.01475823 | M147: 157.1388985 | N147: 51182182.03 | O147: =CSU_data_summary[[#This Row],[Heating]]*CSU_data_summary[[#This Row],[Area]] -> 2114020.938 | P147: =CSU_data_summary[[#This Row],[Cooling]]*CSU_data_summary[[#This Row],[Area]] -> 5328253.381 | Q147: =CSU_data_summary[[#This Row],[Ventilation]]*CSU_data_summary[[#This Row],[Area]] -> 2460884.28 | R147: =CSU_data_summary[[#This Row],[Water Heating]]*CSU_data_summary[[#This Row],[Area]] -> 5965370.299 | S147: =CSU_data_summary[[#This Row],[Lighting]]*CSU_data_summary[[#This Row],[Area]] -> 6320389.191 | T147: =CSU_data_summary[[#This Row],[Equipment]]*CSU_data_summary[[#This Row],[Area]] -> 28993263.95
B148: Current-Pomona-University Union | C148: Current | D148: Pomona | E148: University Union | F148: 129931 | G148: 8.036815127 | H148: 10.33508198 | I148: 5.032060808 | J148: 5.849098302 | K148: 10.99649394 | L148: 7.827683984 | M148: 48.07723414 | N148: 6246723.109 | O148: =CSU_data_summary[[#This Row],[Heating]]*CSU_data_summary[[#This Row],[Area]] -> 1044231.426 | P148: =CSU_data_summary[[#This Row],[Cooling]]*CSU_data_summary[[#This Row],[Area]] -> 1342847.537 | Q148: =CSU_data_summary[[#This Row],[Ventilation]]*CSU_data_summary[[#This Row],[Area]] -> 653820.6928 | R148: =CSU_data_summary[[#This Row],[Water Heating]]*CSU_data_summary[[#This Row],[Area]] -> 759979.1914 | S148: =CSU_data_summary[[#This Row],[Lighting]]*CSU_data_summary[[#This Row],[Area]] -> 1428785.454 | T148: =CSU_data_summary[[#This Row],[Equipment]]*CSU_data_summary[[#This Row],[Area]] -> 1017058.808
B149: Current-Sacramento-Classroom | C149: Current | D149: Sacramento | E149: Classroom | F149: 648614 | G149: 24.69363383 | H149: 10.55804586 | I149: 6.119075558 | J149: 7.659798903 | K149: 14.06965993 | L149: 10.3434971 | M149: 73.44371119 | N149: 47636619.29 | O149: =CSU_data_summary[[#This Row],[Heating]]*CSU_data_summary[[#This Row],[Area]] -> 16016636.61 | P149: =CSU_data_summary[[#This Row],[Cooling]]*CSU_data_summary[[#This Row],[Area]] -> 6848096.36 | Q149: =CSU_data_summary[[#This Row],[Ventilation]]*CSU_data_summary[[#This Row],[Area]] -> 3968918.074 | R149: =CSU_data_summary[[#This Row],[Water Heating]]*CSU_data_summary[[#This Row],[Area]] -> 4968252.805 | S149: =CSU_data_summary[[#This Row],[Lighting]]*CSU_data_summary[[#This Row],[Area]] -> 9125778.409 | T149: =CSU_data_summary[[#This Row],[Equipment]]*CSU_data_summary[[#This Row],[Area]] -> 6708937.027
B150: Current-Sacramento-Engineering | C150: Current | D150: Sacramento | E150: Engineering | F150: 149707 | G150: 24.69363383 | H150: 10.55804586 | I150: 6.119075558 | J150: 7.659798903 | K150: 14.06965993 | L150: 10.3434971 | M150: 73.44371119 | N150: 10995037.67 | O150: =CSU_data_summary[[#This Row],[Heating]]*CSU_data_summary[[#This Row],[Area]] -> 3696809.84 | P150: =CSU_data_summary[[#This Row],[Cooling]]*CSU_data_summary[[#This Row],[Area]] -> 1580613.372 | Q150: =CSU_data_summary[[#This Row],[Ventilation]]*CSU_data_summary[[#This Row],[Area]] -> 916068.4445 | R150: =CSU_data_summary[[#This Row],[Water Heating]]*CSU_data_summary[[#This Row],[Area]] -> 1146725.514 | S150: =CSU_data_summary[[#This Row],[Lighting]]*CSU_data_summary[[#This Row],[Area]] -> 2106326.58 | T150: =CSU_data_summary[[#This Row],[Equipment]]*CSU_data_summary[[#This Row],[Area]] -> 1548493.92
B151: Current-Sacramento-Library | C151: Current | D151: Sacramento | E151: Library | F151: 377074 | G151: 24.69363383 | H151: 10.55804586 | I151: 6.119075558 | J151: 7.659798903 | K151: 14.06965993 | L151: 10.3434971 | M151: 73.44371119 | N151: 27693713.95 | O151: =CSU_data_summary[[#This Row],[Heating]]*CSU_data_summary[[#This Row],[Area]] -> 9311327.284 | P151: =CSU_data_summary[[#This Row],[Cooling]]*CSU_data_summary[[#This Row],[Area]] -> 3981164.586 | Q151: =CSU_data_summary[[#This Row],[Ventilation]]*CSU_data_summary[[#This Row],[Area]] -> 2307344.297 | R151: =CSU_data_summary[[#This Row],[Water Heating]]*CSU_data_summary[[#This Row],[Area]] -> 2888311.011 | S151: =CSU_data_summary[[#This Row],[Lighting]]*CSU_data_summary[[#This Row],[Area]] -> 5305302.95 | T151: =CSU_data_summary[[#This Row],[Equipment]]*CSU_data_summary[[#This Row],[Area]] -> 3900263.825
B152: Current-Sacramento-Music | C152: Current | D152: Sacramento | E152: Music | F152: 84722 | G152: 24.69363383 | H152: 10.55804586 | I152: 6.119075558 | J152: 7.659798903 | K152: 14.06965993 | L152: 10.3434971 | M152: 73.44371119 | N152: 6222298.099 | O152: =CSU_data_summary[[#This Row],[Heating]]*CSU_data_summary[[#This Row],[Area]] -> 2092094.046 | P152: =CSU_data_summary[[#This Row],[Cooling]]*CSU_data_summary[[#This Row],[Area]] -> 894498.7617 | Q152: =CSU_data_summary[[#This Row],[Ventilation]]*CSU_data_summary[[#This Row],[Area]] -> 518420.3194 | R152: =CSU_data_summary[[#This Row],[Water Heating]]*CSU_data_summary[[#This Row],[Area]] -> 648953.4826 | S152: =CSU_data_summary[[#This Row],[Lighting]]*CSU_data_summary[[#This Row],[Area]] -> 1192009.729 | T152: =CSU_data_summary[[#This Row],[Equipment]]*CSU_data_summary[[#This Row],[Area]] -> 876321.7612
B153: Current-Sacramento-Psychology | C153: Current | D153: Sacramento | E153: Psychology | F153: 67138 | G153: 24.69363383 | H153: 10.55804586 | I153: 6.119075558 | J153: 7.659798903 | K153: 14.06965993 | L153: 10.3434971 | M153: 73.44371119 | N153: 4930863.882 | O153: =CSU_data_summary[[#This Row],[Heating]]*CSU_data_summary[[#This Row],[Area]] -> 1657881.188 | P153: =CSU_data_summary[[#This Row],[Cooling]]*CSU_data_summary[[#This Row],[Area]] -> 708846.0832 | Q153: =CSU_data_summary[[#This Row],[Ventilation]]*CSU_data_summary[[#This Row],[Area]] -> 410822.4948 | R153: =CSU_data_summary[[#This Row],[Water Heating]]*CSU_data_summary[[#This Row],[Area]] -> 514263.5787 | S153: =CSU_data_summary[[#This Row],[Lighting]]*CSU_data_summary[[#This Row],[Area]] -> 944608.8287 | T153: =CSU_data_summary[[#This Row],[Equipment]]*CSU_data_summary[[#This Row],[Area]] -> 694441.7082
B154: Current-Sacramento-Residence Hall | C154: Current | D154: Sacramento | E154: Residence Hall | F154: 378422 | G154: 11.39728149 | H154: 9.184007806 | I154: 5.686129508 | J154: 24.68875393 | K154: 12.42307435 | L154: 15.65997547 | M154: 79.03922255 | N154: 29910180.68 | O154: =CSU_data_summary[[#This Row],[Heating]]*CSU_data_summary[[#This Row],[Area]] -> 4312982.054 | P154: =CSU_data_summary[[#This Row],[Cooling]]*CSU_data_summary[[#This Row],[Area]] -> 3475430.602 | Q154: =CSU_data_summary[[#This Row],[Ventilation]]*CSU_data_summary[[#This Row],[Area]] -> 2151756.501 | R154: =CSU_data_summary[[#This Row],[Water Heating]]*CSU_data_summary[[#This Row],[Area]] -> 9342767.639 | S154: =CSU_data_summary[[#This Row],[Lighting]]*CSU_data_summary[[#This Row],[Area]] -> 4701164.643 | T154: =CSU_data_summary[[#This Row],[Equipment]]*CSU_data_summary[[#This Row],[Area]] -> 5926079.238
B155: Current-Sacramento-Science | C155: Current | D155: Sacramento | E155: Science | F155: 288434 | G155: 24.42171984 | H155: 22.19417033 | I155: 12.87683312 | J155: 33.05614624 | K155: 32.15585691 | L155: 122.33688 | M155: 247.0416064 | N155: 71255198.71 | O155: =CSU_data_summary[[#This Row],[Heating]]*CSU_data_summary[[#This Row],[Area]] -> 7044054.34 | P155: =CSU_data_summary[[#This Row],[Cooling]]*CSU_data_summary[[#This Row],[Area]] -> 6401553.324 | Q155: =CSU_data_summary[[#This Row],[Ventilation]]*CSU_data_summary[[#This Row],[Area]] -> 3714116.485 | R155: =CSU_data_summary[[#This Row],[Water Heating]]*CSU_data_summary[[#This Row],[Area]] -> 9534516.485 | S155: =CSU_data_summary[[#This Row],[Lighting]]*CSU_data_summary[[#This Row],[Area]] -> 9274842.431 | T155: =CSU_data_summary[[#This Row],[Equipment]]*CSU_data_summary[[#This Row],[Area]] -> 35286115.64
B156: Current-Sacramento-Student Services | C156: Current | D156: Sacramento | E156: Student Services | F156: 110000 | G156: 16.04592982 | H156: 11.50675721 | I156: 7.102139253 | J156: 2.432788775 | K156: 14.29565591 | L156: 15.98952747 | M156: 67.37279844 | N156: 7411007.828 | O156: =CSU_data_summary[[#This Row],[Heating]]*CSU_data_summary[[#This Row],[Area]] -> 1765052.281 | P156: =CSU_data_summary[[#This Row],[Cooling]]*CSU_data_summary[[#This Row],[Area]] -> 1265743.293 | Q156: =CSU_data_summary[[#This Row],[Ventilation]]*CSU_data_summary[[#This Row],[Area]] -> 781235.3179 | R156: =CSU_data_summary[[#This Row],[Water Heating]]*CSU_data_summary[[#This Row],[Area]] -> 267606.7653 | S156: =CSU_data_summary[[#This Row],[Lighting]]*CSU_data_summary[[#This Row],[Area]] -> 1572522.15 | T156: =CSU_data_summary[[#This Row],[Equipment]]*CSU_data_summary[[#This Row],[Area]] -> 1758848.021
B157: Current-Sacramento-Theater Arts | C157: Current | D157: Sacramento | E157: Theater Arts | F157: 64827 | G157: 24.69363383 | H157: 10.55804586 | I157: 6.119075558 | J157: 7.659798903 | K157: 14.06965993 | L157: 10.3434971 | M157: 73.44371119 | N157: 4761135.465 | O157: =CSU_data_summary[[#This Row],[Heating]]*CSU_data_summary[[#This Row],[Area]] -> 1600814.2 | P157: =CSU_data_summary[[#This Row],[Cooling]]*CSU_data_summary[[#This Row],[Area]] -> 684446.4392 | Q157: =CSU_data_summary[[#This Row],[Ventilation]]*CSU_data_summary[[#This Row],[Area]] -> 396681.3112 | R157: =CSU_data_summary[[#This Row],[Water Heating]]*CSU_data_summary[[#This Row],[Area]] -> 496561.7835 | S157: =CSU_data_summary[[#This Row],[Lighting]]*CSU_data_summary[[#This Row],[Area]] -> 912093.8446 | T157: =CSU_data_summary[[#This Row],[Equipment]]*CSU_data_summary[[#This Row],[Area]] -> 670537.8864
B158: Current-Sacramento-University Union | C158: Current | D158: Sacramento | E158: University Union | F158: 162268 | G158: 24.67686445 | H158: 10.12477972 | I158: 5.947470546 | J158: 7.248939419 | K158: 13.64427869 | L158: 10.27271423 | M158: 71.91504705 | N158: 11669510.85 | O158: =CSU_data_summary[[#This Row],[Heating]]*CSU_data_summary[[#This Row],[Area]] -> 4004265.44 | P158: =CSU_data_summary[[#This Row],[Cooling]]*CSU_data_summary[[#This Row],[Area]] -> 1642927.755 | Q158: =CSU_data_summary[[#This Row],[Ventilation]]*CSU_data_summary[[#This Row],[Area]] -> 965084.1506 | R158: =CSU_data_summary[[#This Row],[Water Heating]]*CSU_data_summary[[#This Row],[Area]] -> 1176270.902 | S158: =CSU_data_summary[[#This Row],[Lighting]]*CSU_data_summary[[#This Row],[Area]] -> 2214029.814 | T158: =CSU_data_summary[[#This Row],[Equipment]]*CSU_data_summary[[#This Row],[Area]] -> 1666932.792
B159: Current-San Bernardino-Administration | C159: Current | D159: San Bernardino | E159: Administration | F159: 79829 | G159: 5.632216928 | H159: 9.168182079 | I159: 4.907285031 | J159: 1.532200933 | K159: 9.165335802 | L159: 10.09435622 | M159: 40.49957699 | N159: 3233040.732 | O159: =CSU_data_summary[[#This Row],[Heating]]*CSU_data_summary[[#This Row],[Area]] -> 449614.2452 | P159: =CSU_data_summary[[#This Row],[Cooling]]*CSU_data_summary[[#This Row],[Area]] -> 731886.8072 | Q159: =CSU_data_summary[[#This Row],[Ventilation]]*CSU_data_summary[[#This Row],[Area]] -> 391743.6567 | R159: =CSU_data_summary[[#This Row],[Water Heating]]*CSU_data_summary[[#This Row],[Area]] -> 122314.0683 | S159: =CSU_data_summary[[#This Row],[Lighting]]*CSU_data_summary[[#This Row],[Area]] -> 731659.5917 | T159: =CSU_data_summary[[#This Row],[Equipment]]*CSU_data_summary[[#This Row],[Area]] -> 805822.3628
B160: Current-San Bernardino-Apartments | C160: Current | D160: San Bernardino | E160: Apartments | F160: 380949 | G160: 2.504490044 | H160: 6.798334509 | I160: 3.776253813 | J160: 15.50062329 | K160: 7.774883434 | L160: 9.745245477 | M160: 46.09983057 | N160: 17561684.36 | O160: =CSU_data_summary[[#This Row],[Heating]]*CSU_data_summary[[#This Row],[Area]] -> 954082.9778 | P160: =CSU_data_summary[[#This Row],[Cooling]]*CSU_data_summary[[#This Row],[Area]] -> 2589818.733 | Q160: =CSU_data_summary[[#This Row],[Ventilation]]*CSU_data_summary[[#This Row],[Area]] -> 1438560.114 | R160: =CSU_data_summary[[#This Row],[Water Heating]]*CSU_data_summary[[#This Row],[Area]] -> 5904946.943 | S160: =CSU_data_summary[[#This Row],[Lighting]]*CSU_data_summary[[#This Row],[Area]] -> 2961834.069 | T160: =CSU_data_summary[[#This Row],[Equipment]]*CSU_data_summary[[#This Row],[Area]] -> 3712441.519
B161: Current-San Bernardino-Business Administration | C161: Current | D161: San Bernardino | E161: Business Administration | F161: 131496 | G161: 3.331761268 | H161: 7.066720855 | I161: 2.563886736 | J161: 1.329639233 | K161: 8.840954956 | L161: 7.621264962 | M161: 30.75422801 | N161: 4044057.966 | O161: =CSU_data_summary[[#This Row],[Heating]]*CSU_data_summary[[#This Row],[Area]] -> 438113.2797 | P161: =CSU_data_summary[[#This Row],[Cooling]]*CSU_data_summary[[#This Row],[Area]] -> 929245.5256 | Q161: =CSU_data_summary[[#This Row],[Ventilation]]*CSU_data_summary[[#This Row],[Area]] -> 337140.8503 | R161: =CSU_data_summary[[#This Row],[Water Heating]]*CSU_data_summary[[#This Row],[Area]] -> 174842.2405 | S161: =CSU_data_summary[[#This Row],[Lighting]]*CSU_data_summary[[#This Row],[Area]] -> 1162550.213 | T161: =CSU_data_summary[[#This Row],[Equipment]]*CSU_data_summary[[#This Row],[Area]] -> 1002165.857
B162: Current-San Bernardino-Education | C162: Current | D162: San Bernardino | E162: Education | F162: 130000 | G162: 7.781114377 | H162: 8.49971932 | I162: 3.954846699 | J162: 4.645939419 | K162: 8.885887919 | L162: 6.559674712 | M162: 40.32718245 | N162: 5242533.718 | O162: =CSU_data_summary[[#This Row],[Heating]]*CSU_data_summary[[#This Row],[Area]] -> 1011544.869 | P162: =CSU_data_summary[[#This Row],[Cooling]]*CSU_data_summary[[#This Row],[Area]] -> 1104963.512 | Q162: =CSU_data_summary[[#This Row],[Ventilation]]*CSU_data_summary[[#This Row],[Area]] -> 514130.0709 | R162: =CSU_data_summary[[#This Row],[Water Heating]]*CSU_data_summary[[#This Row],[Area]] -> 603972.1244 | S162: =CSU_data_summary[[#This Row],[Lighting]]*CSU_data_summary[[#This Row],[Area]] -> 1155165.429 | T162: =CSU_data_summary[[#This Row],[Equipment]]*CSU_data_summary[[#This Row],[Area]] -> 852757.7126
B163: Current-San Bernardino-Library | C163: Current | D163: San Bernardino | E163: Library | F163: 297416 | G163: 7.781114377 | H163: 8.49971932 | I163: 3.954846699 | J163: 4.645939419 | K163: 8.885887919 | L163: 6.559674712 | M163: 40.32718245 | N163: 11993949.29 | O163: =CSU_data_summary[[#This Row],[Heating]]*CSU_data_summary[[#This Row],[Area]] -> 2314227.914 | P163: =CSU_data_summary[[#This Row],[Cooling]]*CSU_data_summary[[#This Row],[Area]] -> 2527952.521 | Q163: =CSU_data_summary[[#This Row],[Ventilation]]*CSU_data_summary[[#This Row],[Area]] -> 1176234.686 | R163: =CSU_data_summary[[#This Row],[Water Heating]]*CSU_data_summary[[#This Row],[Area]] -> 1381776.718 | S163: =CSU_data_summary[[#This Row],[Lighting]]*CSU_data_summary[[#This Row],[Area]] -> 2642805.241 | T163: =CSU_data_summary[[#This Row],[Equipment]]*CSU_data_summary[[#This Row],[Area]] -> 1950952.214
B164: Current-San Bernardino-Performing Arts | C164: Current | D164: San Bernardino | E164: Performing Arts | F164: 55478 | G164: 7.781114377 | H164: 8.49971932 | I164: 3.954846699 | J164: 4.645939419 | K164: 8.885887919 | L164: 6.559674712 | M164: 40.32718245 | N164: 2237271.428 | O164: =CSU_data_summary[[#This Row],[Heating]]*CSU_data_summary[[#This Row],[Area]] -> 431680.6634 | P164: =CSU_data_summary[[#This Row],[Cooling]]*CSU_data_summary[[#This Row],[Area]] -> 471547.4284 | Q164: =CSU_data_summary[[#This Row],[Ventilation]]*CSU_data_summary[[#This Row],[Area]] -> 219406.9852 | R164: =CSU_data_summary[[#This Row],[Water Heating]]*CSU_data_summary[[#This Row],[Area]] -> 257747.4271 | S164: =CSU_data_summary[[#This Row],[Lighting]]*CSU_data_summary[[#This Row],[Area]] -> 492971.29 | T164: =CSU_data_summary[[#This Row],[Equipment]]*CSU_data_summary[[#This Row],[Area]] -> 363917.6337
B165: Current-San Bernardino-Residence Hall | C165: Current | D165: San Bernardino | E165: Residence Hall | F165: 107424 | G165: 2.504490044 | H165: 6.798334509 | I165: 3.776253813 | J165: 15.50062329 | K165: 7.774883434 | L165: 9.745245477 | M165: 46.09983057 | N165: 4952228.199 | O165: =CSU_data_summary[[#This Row],[Heating]]*CSU_data_summary[[#This Row],[Area]] -> 269042.3385 | P165: =CSU_data_summary[[#This Row],[Cooling]]*CSU_data_summary[[#This Row],[Area]] -> 730304.2863 | Q165: =CSU_data_summary[[#This Row],[Ventilation]]*CSU_data_summary[[#This Row],[Area]] -> 405660.2896 | R165: =CSU_data_summary[[#This Row],[Water Heating]]*CSU_data_summary[[#This Row],[Area]] -> 1665138.957 | S165: =CSU_data_summary[[#This Row],[Lighting]]*CSU_data_summary[[#This Row],[Area]] -> 835209.0781 | T165: =CSU_data_summary[[#This Row],[Equipment]]*CSU_data_summary[[#This Row],[Area]] -> 1046873.25
B166: Current-San Bernardino-Science | C166: Current | D166: San Bernardino | E166: Science | F166: 206846 | G166: 6.211660757 | H166: 14.42230395 | I166: 6.717808113 | J166: 16.18389622 | K166: 17.0148041 | L166: 75.09751866 | M166: 135.6479918 | N166: 28058244.51 | O166: =CSU_data_summary[[#This Row],[Heating]]*CSU_data_summary[[#This Row],[Area]] -> 1284857.181 | P166: =CSU_data_summary[[#This Row],[Cooling]]*CSU_data_summary[[#This Row],[Area]] -> 2983195.883 | Q166: =CSU_data_summary[[#This Row],[Ventilation]]*CSU_data_summary[[#This Row],[Area]] -> 1389551.737 | R166: =CSU_data_summary[[#This Row],[Water Heating]]*CSU_data_summary[[#This Row],[Area]] -> 3347574.197 | S166: =CSU_data_summary[[#This Row],[Lighting]]*CSU_data_summary[[#This Row],[Area]] -> 3519444.17 | T166: =CSU_data_summary[[#This Row],[Equipment]]*CSU_data_summary[[#This Row],[Area]] -> 15533621.34
B167: Current-San Bernardino-Social Science | C167: Current | D167: San Bernardino | E167: Social Science | F167: 138700 | G167: 7.781114377 | H167: 8.49971932 | I167: 3.954846699 | J167: 4.645939419 | K167: 8.885887919 | L167: 6.559674712 | M167: 40.32718245 | N167: 5593380.205 | O167: =CSU_data_summary[[#This Row],[Heating]]*CSU_data_summary[[#This Row],[Area]] -> 1079240.564 | P167: =CSU_data_summary[[#This Row],[Cooling]]*CSU_data_summary[[#This Row],[Area]] -> 1178911.07 | Q167: =CSU_data_summary[[#This Row],[Ventilation]]*CSU_data_summary[[#This Row],[Area]] -> 548537.2371 | R167: =CSU_data_summary[[#This Row],[Water Heating]]*CSU_data_summary[[#This Row],[Area]] -> 644391.7974 | S167: =CSU_data_summary[[#This Row],[Lighting]]*CSU_data_summary[[#This Row],[Area]] -> 1232472.654 | T167: =CSU_data_summary[[#This Row],[Equipment]]*CSU_data_summary[[#This Row],[Area]] -> 909826.8826
B168: Current-San Bernardino-University Union | C168: Current | D168: San Bernardino | E168: University Union | F168: 86414 | G168: 7.808844693 | H168: 8.611141485 | I168: 4.324902865 | J168: 4.908434319 | K168: 9.245240661 | L168: 6.629690603 | M168: 41.52825463 | N168: 3588622.595 | O168: =CSU_data_summary[[#This Row],[Heating]]*CSU_data_summary[[#This Row],[Area]] -> 674793.5053 | P168: =CSU_data_summary[[#This Row],[Cooling]]*CSU_data_summary[[#This Row],[Area]] -> 744123.1803 | Q168: =CSU_data_summary[[#This Row],[Ventilation]]*CSU_data_summary[[#This Row],[Area]] -> 373732.1562 | R168: =CSU_data_summary[[#This Row],[Water Heating]]*CSU_data_summary[[#This Row],[Area]] -> 424157.4433 | S168: =CSU_data_summary[[#This Row],[Lighting]]*CSU_data_summary[[#This Row],[Area]] -> 798918.2265 | T168: =CSU_data_summary[[#This Row],[Equipment]]*CSU_data_summary[[#This Row],[Area]] -> 572898.0837
B169: Current-San Diego-Administration | C169: Current | D169: San Diego | E169: Administration | F169: 178560 | G169: 7.747406807 | H169: 15.71235399 | I169: 11.75515916 | J169: 3.98267869 | K169: 23.50379149 | L169: 23.87762332 | M169: 86.57901345 | N169: 15459548.64 | O169: =CSU_data_summary[[#This Row],[Heating]]*CSU_data_summary[[#This Row],[Area]] -> 1383376.959 | P169: =CSU_data_summary[[#This Row],[Cooling]]*CSU_data_summary[[#This Row],[Area]] -> 2805597.929 | Q169: =CSU_data_summary[[#This Row],[Ventilation]]*CSU_data_summary[[#This Row],[Area]] -> 2099001.219 | R169: =CSU_data_summary[[#This Row],[Water Heating]]*CSU_data_summary[[#This Row],[Area]] -> 711147.1069 | S169: =CSU_data_summary[[#This Row],[Lighting]]*CSU_data_summary[[#This Row],[Area]] -> 4196837.008 | T169: =CSU_data_summary[[#This Row],[Equipment]]*CSU_data_summary[[#This Row],[Area]] -> 4263588.42
B170: Current-San Diego-Apartments | C170: Current | D170: San Diego | E170: Apartments | F170: 335110 | G170: 1.250626818 | H170: 9.6332811 | I170: 7.958708324 | J170: 37.92745221 | K170: 18.9428587 | L170: 22.93560579 | M170: 98.64853294 | N170: 33058109.87 | O170: =CSU_data_summary[[#This Row],[Heating]]*CSU_data_summary[[#This Row],[Area]] -> 419097.5531 | P170: =CSU_data_summary[[#This Row],[Cooling]]*CSU_data_summary[[#This Row],[Area]] -> 3228208.83 | Q170: =CSU_data_summary[[#This Row],[Ventilation]]*CSU_data_summary[[#This Row],[Area]] -> 2667042.746 | R170: =CSU_data_summary[[#This Row],[Water Heating]]*CSU_data_summary[[#This Row],[Area]] -> 12709868.51 | S170: =CSU_data_summary[[#This Row],[Lighting]]*CSU_data_summary[[#This Row],[Area]] -> 6347941.378 | T170: =CSU_data_summary[[#This Row],[Equipment]]*CSU_data_summary[[#This Row],[Area]] -> 7685950.857
B171: Current-San Diego-Business Administration | C171: Current | D171: San Diego | E171: Business Administration | F171: 149695 | G171: 4.4677823 | H171: 11.80638939 | I171: 5.987247429 | J171: 3.369259873 | K171: 22.07996153 | L171: 18.03500223 | M171: 65.74564275 | N171: 9841793.992 | O171: =CSU_data_summary[[#This Row],[Heating]]*CSU_data_summary[[#This Row],[Area]] -> 668804.6714 | P171: =CSU_data_summary[[#This Row],[Cooling]]*CSU_data_summary[[#This Row],[Area]] -> 1767357.459 | Q171: =CSU_data_summary[[#This Row],[Ventilation]]*CSU_data_summary[[#This Row],[Area]] -> 896261.0039 | R171: =CSU_data_summary[[#This Row],[Water Heating]]*CSU_data_summary[[#This Row],[Area]] -> 504361.3568 | S171: =CSU_data_summary[[#This Row],[Lighting]]*CSU_data_summary[[#This Row],[Area]] -> 3305259.841 | T171: =CSU_data_summary[[#This Row],[Equipment]]*CSU_data_summary[[#This Row],[Area]] -> 2699749.659
B172: Current-San Diego-Classroom | C172: Current | D172: San Diego | E172: Classroom | F172: 478006 | G172: 13.77524926 | H172: 11.88539506 | I172: 9.448218221 | J172: 11.68027307 | K172: 22.01661922 | L172: 15.27512384 | M172: 84.08087867 | N172: 40191164.49 | O172: =CSU_data_summary[[#This Row],[Heating]]*CSU_data_summary[[#This Row],[Area]] -> 6584651.797 | P172: =CSU_data_summary[[#This Row],[Cooling]]*CSU_data_summary[[#This Row],[Area]] -> 5681290.151 | Q172: =CSU_data_summary[[#This Row],[Ventilation]]*CSU_data_summary[[#This Row],[Area]] -> 4516304.999 | R172: =CSU_data_summary[[#This Row],[Water Heating]]*CSU_data_summary[[#This Row],[Area]] -> 5583240.61 | S172: =CSU_data_summary[[#This Row],[Lighting]]*CSU_data_summary[[#This Row],[Area]] -> 10524076.09 | T172: =CSU_data_summary[[#This Row],[Equipment]]*CSU_data_summary[[#This Row],[Area]] -> 7301600.844
B173: Current-San Diego-Library | C173: Current | D173: San Diego | E173: Library | F173: 526401 | G173: 13.77524926 | H173: 11.88539506 | I173: 9.448218221 | J173: 11.68027307 | K173: 22.01661922 | L173: 15.27512384 | M173: 84.08087867 | N173: 44260258.61 | O173: =CSU_data_summary[[#This Row],[Heating]]*CSU_data_summary[[#This Row],[Area]] -> 7251304.985 | P173: =CSU_data_summary[[#This Row],[Cooling]]*CSU_data_summary[[#This Row],[Area]] -> 6256483.845 | Q173: =CSU_data_summary[[#This Row],[Ventilation]]*CSU_data_summary[[#This Row],[Area]] -> 4973551.52 | R173: =CSU_data_summary[[#This Row],[Water Heating]]*CSU_data_summary[[#This Row],[Area]] -> 6148507.425 | S173: =CSU_data_summary[[#This Row],[Lighting]]*CSU_data_summary[[#This Row],[Area]] -> 11589570.37 | T173: =CSU_data_summary[[#This Row],[Equipment]]*CSU_data_summary[[#This Row],[Area]] -> 8040840.463
B174: Current-San Diego-Residence Hall | C174: Current | D174: San Diego | E174: Residence Hall | F174: 563682 | G174: 1.250626818 | H174: 9.6332811 | I174: 7.958708324 | J174: 37.92745221 | K174: 18.9428587 | L174: 22.93560579 | M174: 98.64853294 | N174: 55606402.34 | O174: =CSU_data_summary[[#This Row],[Heating]]*CSU_data_summary[[#This Row],[Area]] -> 704955.8263 | P174: =CSU_data_summary[[#This Row],[Cooling]]*CSU_data_summary[[#This Row],[Area]] -> 5430107.157 | Q174: =CSU_data_summary[[#This Row],[Ventilation]]*CSU_data_summary[[#This Row],[Area]] -> 4486180.625 | R174: =CSU_data_summary[[#This Row],[Water Heating]]*CSU_data_summary[[#This Row],[Area]] -> 21379022.12 | S174: =CSU_data_summary[[#This Row],[Lighting]]*CSU_data_summary[[#This Row],[Area]] -> 10677748.48 | T174: =CSU_data_summary[[#This Row],[Equipment]]*CSU_data_summary[[#This Row],[Area]] -> 12928388.14
B175: Current-San Diego-Science | C175: Current | D175: San Diego | E175: Science | F175: 488522 | G175: 8.794524927 | H175: 16.12837712 | I175: 12.8349696 | J175: 32.53939896 | K175: 35.21046044 | L175: 177.3139701 | M175: 282.8217011 | N175: 138164623.1 | O175: =CSU_data_summary[[#This Row],[Heating]]*CSU_data_summary[[#This Row],[Area]] -> 4296318.907 | P175: =CSU_data_summary[[#This Row],[Cooling]]*CSU_data_summary[[#This Row],[Area]] -> 7879067.046 | Q175: =CSU_data_summary[[#This Row],[Ventilation]]*CSU_data_summary[[#This Row],[Area]] -> 6270165.02 | R175: =CSU_data_summary[[#This Row],[Water Heating]]*CSU_data_summary[[#This Row],[Area]] -> 15896212.26 | S175: =CSU_data_summary[[#This Row],[Lighting]]*CSU_data_summary[[#This Row],[Area]] -> 17201084.56 | T175: =CSU_data_summary[[#This Row],[Equipment]]*CSU_data_summary[[#This Row],[Area]] -> 86621775.28
B176: Current-San Diego-Social Science | C176: Current | D176: San Diego | E176: Social Science | F176: 109170 | G176: 13.77524926 | H176: 11.88539506 | I176: 9.448218221 | J176: 11.68027307 | K176: 22.01661922 | L176: 15.27512384 | M176: 84.08087867 | N176: 9179109.524 | O176: =CSU_data_summary[[#This Row],[Heating]]*CSU_data_summary[[#This Row],[Area]] -> 1503843.962 | P176: =CSU_data_summary[[#This Row],[Cooling]]*CSU_data_summary[[#This Row],[Area]] -> 1297528.579 | Q176: =CSU_data_summary[[#This Row],[Ventilation]]*CSU_data_summary[[#This Row],[Area]] -> 1031461.983 | R176: =CSU_data_summary[[#This Row],[Water Heating]]*CSU_data_summary[[#This Row],[Area]] -> 1275135.411 | S176: =CSU_data_summary[[#This Row],[Lighting]]*CSU_data_summary[[#This Row],[Area]] -> 2403554.32 | T176: =CSU_data_summary[[#This Row],[Equipment]]*CSU_data_summary[[#This Row],[Area]] -> 1667585.269
B177: Current-San Diego-Theater Arts | C177: Current | D177: San Diego | E177: Theater Arts | F177: 117014 | G177: 13.77524926 | H177: 11.88539506 | I177: 9.448218221 | J177: 11.68027307 | K177: 22.01661922 | L177: 15.27512384 | M177: 84.08087867 | N177: 9838639.936 | O177: =CSU_data_summary[[#This Row],[Heating]]*CSU_data_summary[[#This Row],[Area]] -> 1611897.017 | P177: =CSU_data_summary[[#This Row],[Cooling]]*CSU_data_summary[[#This Row],[Area]] -> 1390757.618 | Q177: =CSU_data_summary[[#This Row],[Ventilation]]*CSU_data_summary[[#This Row],[Area]] -> 1105573.807 | R177: =CSU_data_summary[[#This Row],[Water Heating]]*CSU_data_summary[[#This Row],[Area]] -> 1366755.473 | S177: =CSU_data_summary[[#This Row],[Lighting]]*CSU_data_summary[[#This Row],[Area]] -> 2576252.681 | T177: =CSU_data_summary[[#This Row],[Equipment]]*CSU_data_summary[[#This Row],[Area]] -> 1787403.341
B178: Current-San Diego-University Union | C178: Current | D178: San Diego | E178: University Union | F178: 273093 | G178: 10.4520171 | H178: 13.84166996 | I178: 10.58928 | J178: 13.20760068 | K178: 24.29377433 | L178: 15.71339733 | M178: 88.09773939 | N178: 24058875.94 | O178: =CSU_data_summary[[#This Row],[Heating]]*CSU_data_summary[[#This Row],[Area]] -> 2854372.706 | P178: =CSU_data_summary[[#This Row],[Cooling]]*CSU_data_summary[[#This Row],[Area]] -> 3780063.174 | Q178: =CSU_data_summary[[#This Row],[Ventilation]]*CSU_data_summary[[#This Row],[Area]] -> 2891858.243 | R178: =CSU_data_summary[[#This Row],[Water Heating]]*CSU_data_summary[[#This Row],[Area]] -> 3606903.292 | S178: =CSU_data_summary[[#This Row],[Lighting]]*CSU_data_summary[[#This Row],[Area]] -> 6634459.713 | T178: =CSU_data_summary[[#This Row],[Equipment]]*CSU_data_summary[[#This Row],[Area]] -> 4291218.816
B179: Current-San Francisco-Administration | C179: Current | D179: San Francisco | E179: Administration | F179: 182305 | G179: 9.249223239 | H179: 2.25583154 | I179: 4.375310039 | J179: 1.619143901 | K179: 9.265455614 | L179: 9.317785903 | M179: 36.08275024 | N179: 6578065.782 | O179: =CSU_data_summary[[#This Row],[Heating]]*CSU_data_summary[[#This Row],[Area]] -> 1686179.643 | P179: =CSU_data_summary[[#This Row],[Cooling]]*CSU_data_summary[[#This Row],[Area]] -> 411249.3689 | Q179: =CSU_data_summary[[#This Row],[Ventilation]]*CSU_data_summary[[#This Row],[Area]] -> 797640.8967 | R179: =CSU_data_summary[[#This Row],[Water Heating]]*CSU_data_summary[[#This Row],[Area]] -> 295178.0289 | S179: =CSU_data_summary[[#This Row],[Lighting]]*CSU_data_summary[[#This Row],[Area]] -> 1689138.886 | T179: =CSU_data_summary[[#This Row],[Equipment]]*CSU_data_summary[[#This Row],[Area]] -> 1698678.959
B180: Current-San Francisco-Apartments | C180: Current | D180: San Francisco | E180: Apartments | F180: 1173643 | G180: 4.294931829 | H180: 1.340771911 | I180: 2.74228866 | J180: 16.1468606 | K180: 7.434813548 | L180: 9.06300184 | M180: 41.02266839 | N180: 48145967.6 | O180: =CSU_data_summary[[#This Row],[Heating]]*CSU_data_summary[[#This Row],[Area]] -> 5040716.677 | P180: =CSU_data_summary[[#This Row],[Cooling]]*CSU_data_summary[[#This Row],[Area]] -> 1573587.568 | Q180: =CSU_data_summary[[#This Row],[Ventilation]]*CSU_data_summary[[#This Row],[Area]] -> 3218467.89 | R180: =CSU_data_summary[[#This Row],[Water Heating]]*CSU_data_summary[[#This Row],[Area]] -> 18950649.92 | S180: =CSU_data_summary[[#This Row],[Lighting]]*CSU_data_summary[[#This Row],[Area]] -> 8725816.877 | T180: =CSU_data_summary[[#This Row],[Equipment]]*CSU_data_summary[[#This Row],[Area]] -> 10636728.67
B181: Current-San Francisco-Classroom | C181: Current | D181: San Francisco | E181: Classroom | F181: 193200 | G181: 13.40918741 | H181: 1.62674131 | I181: 3.663905679 | J181: 4.93596065 | K181: 8.751922576 | L181: 5.899096235 | M181: 38.28681386 | N181: 7397012.437 | O181: =CSU_data_summary[[#This Row],[Heating]]*CSU_data_summary[[#This Row],[Area]] -> 2590655.007 | P181: =CSU_data_summary[[#This Row],[Cooling]]*CSU_data_summary[[#This Row],[Area]] -> 314286.4211 | Q181: =CSU_data_summary[[#This Row],[Ventilation]]*CSU_data_summary[[#This Row],[Area]] -> 707866.5772 | R181: =CSU_data_summary[[#This Row],[Water Heating]]*CSU_data_summary[[#This Row],[Area]] -> 953627.5976 | S181: =CSU_data_summary[[#This Row],[Lighting]]*CSU_data_summary[[#This Row],[Area]] -> 1690871.442 | T181: =CSU_data_summary[[#This Row],[Equipment]]*CSU_data_summary[[#This Row],[Area]] -> 1139705.393
B182: Current-San Francisco-Education | C182: Current | D182: San Francisco | E182: Education | F182: 170925 | G182: 13.40918741 | H182: 1.62674131 | I182: 3.663905679 | J182: 4.93596065 | K182: 8.751922576 | L182: 5.899096235 | M182: 38.28681386 | N182: 6544173.659 | O182: =CSU_data_summary[[#This Row],[Heating]]*CSU_data_summary[[#This Row],[Area]] -> 2291965.358 | P182: =CSU_data_summary[[#This Row],[Cooling]]*CSU_data_summary[[#This Row],[Area]] -> 278050.7584 | Q182: =CSU_data_summary[[#This Row],[Ventilation]]*CSU_data_summary[[#This Row],[Area]] -> 626253.0782 | R182: =CSU_data_summary[[#This Row],[Water Heating]]*CSU_data_summary[[#This Row],[Area]] -> 843679.0741 | S182: =CSU_data_summary[[#This Row],[Lighting]]*CSU_data_summary[[#This Row],[Area]] -> 1495922.366 | T182: =CSU_data_summary[[#This Row],[Equipment]]*CSU_data_summary[[#This Row],[Area]] -> 1008303.024
B183: Current-San Francisco-Humanities | C183: Current | D183: San Francisco | E183: Humanities | F183: 132964 | G183: 13.40918741 | H183: 1.62674131 | I183: 3.663905679 | J183: 4.93596065 | K183: 8.751922576 | L183: 5.899096235 | M183: 38.28681386 | N183: 5090767.918 | O183: =CSU_data_summary[[#This Row],[Heating]]*CSU_data_summary[[#This Row],[Area]] -> 1782939.194 | P183: =CSU_data_summary[[#This Row],[Cooling]]*CSU_data_summary[[#This Row],[Area]] -> 216298.0315 | Q183: =CSU_data_summary[[#This Row],[Ventilation]]*CSU_data_summary[[#This Row],[Area]] -> 487167.5547 | R183: =CSU_data_summary[[#This Row],[Water Heating]]*CSU_data_summary[[#This Row],[Area]] -> 656305.0719 | S183: =CSU_data_summary[[#This Row],[Lighting]]*CSU_data_summary[[#This Row],[Area]] -> 1163690.633 | T183: =CSU_data_summary[[#This Row],[Equipment]]*CSU_data_summary[[#This Row],[Area]] -> 784367.4318
B184: Current-San Francisco-Industrial Arts | C184: Current | D184: San Francisco | E184: Industrial Arts | F184: 174558 | G184: 13.40918741 | H184: 1.62674131 | I184: 3.663905679 | J184: 4.93596065 | K184: 8.751922576 | L184: 5.899096235 | M184: 38.28681386 | N184: 6683269.653 | O184: =CSU_data_summary[[#This Row],[Heating]]*CSU_data_summary[[#This Row],[Area]] -> 2340680.935 | P184: =CSU_data_summary[[#This Row],[Cooling]]*CSU_data_summary[[#This Row],[Area]] -> 283960.7096 | Q184: =CSU_data_summary[[#This Row],[Ventilation]]*CSU_data_summary[[#This Row],[Area]] -> 639564.0475 | R184: =CSU_data_summary[[#This Row],[Water Heating]]*CSU_data_summary[[#This Row],[Area]] -> 861611.4192 | S184: =CSU_data_summary[[#This Row],[Lighting]]*CSU_data_summary[[#This Row],[Area]] -> 1527718.101 | T184: =CSU_data_summary[[#This Row],[Equipment]]*CSU_data_summary[[#This Row],[Area]] -> 1029734.441
B185: Current-San Francisco-Library | C185: Current | D185: San Francisco | E185: Library | F185: 352252 | G185: 13.40918741 | H185: 1.62674131 | I185: 3.663905679 | J185: 4.93596065 | K185: 8.751922576 | L185: 5.899096235 | M185: 38.28681386 | N185: 13486606.75 | O185: =CSU_data_summary[[#This Row],[Heating]]*CSU_data_summary[[#This Row],[Area]] -> 4723413.083 | P185: =CSU_data_summary[[#This Row],[Cooling]]*CSU_data_summary[[#This Row],[Area]] -> 573022.8799 | Q185: =CSU_data_summary[[#This Row],[Ventilation]]*CSU_data_summary[[#This Row],[Area]] -> 1290618.103 | R185: =CSU_data_summary[[#This Row],[Water Heating]]*CSU_data_summary[[#This Row],[Area]] -> 1738702.011 | S185: =CSU_data_summary[[#This Row],[Lighting]]*CSU_data_summary[[#This Row],[Area]] -> 3082882.231 | T185: =CSU_data_summary[[#This Row],[Equipment]]*CSU_data_summary[[#This Row],[Area]] -> 2077968.447
B186: Current-San Francisco-Residence Hall | C186: Current | D186: San Francisco | E186: Residence Hall | F186: 353253 | G186: 4.294931829 | H186: 1.340771911 | I186: 2.74228866 | J186: 16.1468606 | K186: 7.434813548 | L186: 9.06300184 | M186: 41.02266839 | N186: 14491380.68 | O186: =CSU_data_summary[[#This Row],[Heating]]*CSU_data_summary[[#This Row],[Area]] -> 1517197.553 | P186: =CSU_data_summary[[#This Row],[Cooling]]*CSU_data_summary[[#This Row],[Area]] -> 473631.7 | Q186: =CSU_data_summary[[#This Row],[Ventilation]]*CSU_data_summary[[#This Row],[Area]] -> 968721.6961 | R186: =CSU_data_summary[[#This Row],[Water Heating]]*CSU_data_summary[[#This Row],[Area]] -> 5703926.948 | S186: =CSU_data_summary[[#This Row],[Lighting]]*CSU_data_summary[[#This Row],[Area]] -> 2626370.19 | T186: =CSU_data_summary[[#This Row],[Equipment]]*CSU_data_summary[[#This Row],[Area]] -> 3201532.589
B187: Current-San Francisco-Science | C187: Current | D187: San Francisco | E187: Science | F187: 521890 | G187: 11.38051265 | H187: 2.93455322 | I187: 6.616611889 | J187: 18.27993581 | K187: 17.63023188 | L187: 71.94298646 | M187: 128.7848319 | N187: 67211515.92 | O187: =CSU_data_summary[[#This Row],[Heating]]*CSU_data_summary[[#This Row],[Area]] -> 5939375.745 | P187: =CSU_data_summary[[#This Row],[Cooling]]*CSU_data_summary[[#This Row],[Area]] -> 1531513.98 | Q187: =CSU_data_summary[[#This Row],[Ventilation]]*CSU_data_summary[[#This Row],[Area]] -> 3453143.579 | R187: =CSU_data_summary[[#This Row],[Water Heating]]*CSU_data_summary[[#This Row],[Area]] -> 9540115.698 | S187: =CSU_data_summary[[#This Row],[Lighting]]*CSU_data_summary[[#This Row],[Area]] -> 9201041.715 | T187: =CSU_data_summary[[#This Row],[Equipment]]*CSU_data_summary[[#This Row],[Area]] -> 37546325.21
B188: Current-San Francisco-University Union | C188: Current | D188: San Francisco | E188: University Union | F188: 140000 | G188: 12.73665505 | H188: 1.753357171 | I188: 3.52800426 | J188: 4.996857801 | K188: 8.836311699 | L188: 5.918925816 | M188: 37.7701118 | N188: 5287815.652 | O188: =CSU_data_summary[[#This Row],[Heating]]*CSU_data_summary[[#This Row],[Area]] -> 1783131.707 | P188: =CSU_data_summary[[#This Row],[Cooling]]*CSU_data_summary[[#This Row],[Area]] -> 245470.004 | Q188: =CSU_data_summary[[#This Row],[Ventilation]]*CSU_data_summary[[#This Row],[Area]] -> 493920.5964 | R188: =CSU_data_summary[[#This Row],[Water Heating]]*CSU_data_summary[[#This Row],[Area]] -> 699560.0922 | S188: =CSU_data_summary[[#This Row],[Lighting]]*CSU_data_summary[[#This Row],[Area]] -> 1237083.638 | T188: =CSU_data_summary[[#This Row],[Equipment]]*CSU_data_summary[[#This Row],[Area]] -> 828649.6143
B189: Current-San Jose-Apartments | C189: Current | D189: San Jose | E189: Apartments | F189: 959825 | G189: 6.634937437 | H189: 5.659643819 | I189: 4.559913001 | J189: 23.47684402 | K189: 10.84871061 | L189: 13.78212273 | M189: 64.96217161 | N189: 62352316.37 | O189: =CSU_data_summary[[#This Row],[Heating]]*CSU_data_summary[[#This Row],[Area]] -> 6368378.825 | P189: =CSU_data_summary[[#This Row],[Cooling]]*CSU_data_summary[[#This Row],[Area]] -> 5432267.629 | Q189: =CSU_data_summary[[#This Row],[Ventilation]]*CSU_data_summary[[#This Row],[Area]] -> 4376718.497 | R189: =CSU_data_summary[[#This Row],[Water Heating]]*CSU_data_summary[[#This Row],[Area]] -> 22533661.81 | S189: =CSU_data_summary[[#This Row],[Lighting]]*CSU_data_summary[[#This Row],[Area]] -> 10412863.66 | T189: =CSU_data_summary[[#This Row],[Equipment]]*CSU_data_summary[[#This Row],[Area]] -> 13228425.95
B190: Current-San Jose-Classroom | C190: Current | D190: San Jose | E190: Classroom | F190: 331138 | G190: 16.8466869 | H190: 6.601853243 | I190: 5.495256795 | J190: 7.114428881 | K190: 12.87148127 | L190: 9.242709059 | M190: 58.17241615 | N190: 19263097.54 | O190: =CSU_data_summary[[#This Row],[Heating]]*CSU_data_summary[[#This Row],[Area]] -> 5578578.207 | P190: =CSU_data_summary[[#This Row],[Cooling]]*CSU_data_summary[[#This Row],[Area]] -> 2186124.479 | Q190: =CSU_data_summary[[#This Row],[Ventilation]]*CSU_data_summary[[#This Row],[Area]] -> 1819688.345 | R190: =CSU_data_summary[[#This Row],[Water Heating]]*CSU_data_summary[[#This Row],[Area]] -> 2355857.751 | S190: =CSU_data_summary[[#This Row],[Lighting]]*CSU_data_summary[[#This Row],[Area]] -> 4262236.565 | T190: =CSU_data_summary[[#This Row],[Equipment]]*CSU_data_summary[[#This Row],[Area]] -> 3060612.192
B191: Current-San Jose-Engineering | C191: Current | D191: San Jose | E191: Engineering | F191: 372000 | G191: 16.8466869 | H191: 6.601853243 | I191: 5.495256795 | J191: 7.114428881 | K191: 12.87148127 | L191: 9.242709059 | M191: 58.17241615 | N191: 21640138.81 | O191: =CSU_data_summary[[#This Row],[Heating]]*CSU_data_summary[[#This Row],[Area]] -> 6266967.528 | P191: =CSU_data_summary[[#This Row],[Cooling]]*CSU_data_summary[[#This Row],[Area]] -> 2455889.406 | Q191: =CSU_data_summary[[#This Row],[Ventilation]]*CSU_data_summary[[#This Row],[Area]] -> 2044235.528 | R191: =CSU_data_summary[[#This Row],[Water Heating]]*CSU_data_summary[[#This Row],[Area]] -> 2646567.544 | S191: =CSU_data_summary[[#This Row],[Lighting]]*CSU_data_summary[[#This Row],[Area]] -> 4788191.033 | T191: =CSU_data_summary[[#This Row],[Equipment]]*CSU_data_summary[[#This Row],[Area]] -> 3438287.77
B192: Current-San Jose-Industrial Arts | C192: Current | D192: San Jose | E192: Industrial Arts | F192: 109802 | G192: 16.8466869 | H192: 6.601853243 | I192: 5.495256795 | J192: 7.114428881 | K192: 12.87148127 | L192: 9.242709059 | M192: 58.17241615 | N192: 6387447.638 | O192: =CSU_data_summary[[#This Row],[Heating]]*CSU_data_summary[[#This Row],[Area]] -> 1849799.915 | P192: =CSU_data_summary[[#This Row],[Cooling]]*CSU_data_summary[[#This Row],[Area]] -> 724896.6897 | Q192: =CSU_data_summary[[#This Row],[Ventilation]]*CSU_data_summary[[#This Row],[Area]] -> 603390.1866 | R192: =CSU_data_summary[[#This Row],[Water Heating]]*CSU_data_summary[[#This Row],[Area]] -> 781178.5199 | S192: =CSU_data_summary[[#This Row],[Lighting]]*CSU_data_summary[[#This Row],[Area]] -> 1413314.387 | T192: =CSU_data_summary[[#This Row],[Equipment]]*CSU_data_summary[[#This Row],[Area]] -> 1014867.94
B193: Current-San Jose-Library | C193: Current | D193: San Jose | E193: Library | F193: 499221 | G193: 16.8466869 | H193: 6.601853243 | I193: 5.495256795 | J193: 7.114428881 | K193: 12.87148127 | L193: 9.242709059 | M193: 58.17241615 | N193: 29040891.76 | O193: =CSU_data_summary[[#This Row],[Heating]]*CSU_data_summary[[#This Row],[Area]] -> 8410219.882 | P193: =CSU_data_summary[[#This Row],[Cooling]]*CSU_data_summary[[#This Row],[Area]] -> 3295783.778 | Q193: =CSU_data_summary[[#This Row],[Ventilation]]*CSU_data_summary[[#This Row],[Area]] -> 2743347.593 | R193: =CSU_data_summary[[#This Row],[Water Heating]]*CSU_data_summary[[#This Row],[Area]] -> 3551672.3 | S193: =CSU_data_summary[[#This Row],[Lighting]]*CSU_data_summary[[#This Row],[Area]] -> 6425713.752 | T193: =CSU_data_summary[[#This Row],[Equipment]]*CSU_data_summary[[#This Row],[Area]] -> 4614154.459
B194: Current-San Jose-Residence Hall | C194: Current | D194: San Jose | E194: Residence Hall | F194: 244996 | G194: 6.634937437 | H194: 5.659643819 | I194: 4.559913001 | J194: 23.47684402 | K194: 10.84871061 | L194: 13.78212273 | M194: 64.96217161 | N194: 15915472.2 | O194: =CSU_data_summary[[#This Row],[Heating]]*CSU_data_summary[[#This Row],[Area]] -> 1625533.132 | P194: =CSU_data_summary[[#This Row],[Cooling]]*CSU_data_summary[[#This Row],[Area]] -> 1386590.097 | Q194: =CSU_data_summary[[#This Row],[Ventilation]]*CSU_data_summary[[#This Row],[Area]] -> 1117160.446 | R194: =CSU_data_summary[[#This Row],[Water Heating]]*CSU_data_summary[[#This Row],[Area]] -> 5751732.876 | S194: =CSU_data_summary[[#This Row],[Lighting]]*CSU_data_summary[[#This Row],[Area]] -> 2657890.704 | T194: =CSU_data_summary[[#This Row],[Equipment]]*CSU_data_summary[[#This Row],[Area]] -> 3376564.94
B195: Current-San Jose-Science | C195: Current | D195: San Jose | E195: Science | F195: 425686 | G195: 14.21624729 | H195: 11.84132934 | I195: 9.867121311 | J195: 26.19715439 | K195: 25.79970637 | L195: 107.7522015 | M195: 195.6737602 | N195: 83295580.3 | O195: =CSU_data_summary[[#This Row],[Heating]]*CSU_data_summary[[#This Row],[Area]] -> 6051657.444 | P195: =CSU_data_summary[[#This Row],[Cooling]]*CSU_data_summary[[#This Row],[Area]] -> 5040688.123 | Q195: =CSU_data_summary[[#This Row],[Ventilation]]*CSU_data_summary[[#This Row],[Area]] -> 4200295.403 | R195: =CSU_data_summary[[#This Row],[Water Heating]]*CSU_data_summary[[#This Row],[Area]] -> 11151761.86 | S195: =CSU_data_summary[[#This Row],[Lighting]]*CSU_data_summary[[#This Row],[Area]] -> 10982573.8 | T195: =CSU_data_summary[[#This Row],[Equipment]]*CSU_data_summary[[#This Row],[Area]] -> 45868603.67
B196: Current-San Jose-Social Science | C196: Current | D196: San Jose | E196: Social Science | F196: 130636 | G196: 16.8466869 | H196: 6.601853243 | I196: 5.495256795 | J196: 7.114428881 | K196: 12.87148127 | L196: 9.242709059 | M196: 58.17241615 | N196: 7599411.756 | O196: =CSU_data_summary[[#This Row],[Heating]]*CSU_data_summary[[#This Row],[Area]] -> 2200783.79 | P196: =CSU_data_summary[[#This Row],[Cooling]]*CSU_data_summary[[#This Row],[Area]] -> 862439.7002 | Q196: =CSU_data_summary[[#This Row],[Ventilation]]*CSU_data_summary[[#This Row],[Area]] -> 717878.3667 | R196: =CSU_data_summary[[#This Row],[Water Heating]]*CSU_data_summary[[#This Row],[Area]] -> 929400.5312 | S196: =CSU_data_summary[[#This Row],[Lighting]]*CSU_data_summary[[#This Row],[Area]] -> 1681478.827 | T196: =CSU_data_summary[[#This Row],[Equipment]]*CSU_data_summary[[#This Row],[Area]] -> 1207430.541
B197: Current-San Jose-Student Services | C197: Current | D197: San Jose | E197: Student Services | F197: 106816 | G197: 12.01068684 | H197: 8.01013318 | I197: 6.529139149 | J197: 2.276236439 | K197: 13.2436284 | L197: 14.193709 | M197: 56.26353301 | N197: 6009845.542 | O197: =CSU_data_summary[[#This Row],[Heating]]*CSU_data_summary[[#This Row],[Area]] -> 1282933.526 | P197: =CSU_data_summary[[#This Row],[Cooling]]*CSU_data_summary[[#This Row],[Area]] -> 855610.3858 | Q197: =CSU_data_summary[[#This Row],[Ventilation]]*CSU_data_summary[[#This Row],[Area]] -> 697416.5273 | R197: =CSU_data_summary[[#This Row],[Water Heating]]*CSU_data_summary[[#This Row],[Area]] -> 243138.4715 | S197: =CSU_data_summary[[#This Row],[Lighting]]*CSU_data_summary[[#This Row],[Area]] -> 1414631.411 | T197: =CSU_data_summary[[#This Row],[Equipment]]*CSU_data_summary[[#This Row],[Area]] -> 1516115.221
B198: Current-San Jose-University Union | C198: Current | D198: San Jose | E198: University Union | F198: 227552 | G198: 17.23460589 | H198: 6.856573243 | I198: 5.441110088 | J198: 7.140633903 | K198: 12.82077345 | L198: 9.193233281 | M198: 58.68692985 | N198: 13354328.26 | O198: =CSU_data_summary[[#This Row],[Heating]]*CSU_data_summary[[#This Row],[Area]] -> 3921769.039 | P198: =CSU_data_summary[[#This Row],[Cooling]]*CSU_data_summary[[#This Row],[Area]] -> 1560226.955 | Q198: =CSU_data_summary[[#This Row],[Ventilation]]*CSU_data_summary[[#This Row],[Area]] -> 1238135.483 | R198: =CSU_data_summary[[#This Row],[Water Heating]]*CSU_data_summary[[#This Row],[Area]] -> 1624865.526 | S198: =CSU_data_summary[[#This Row],[Lighting]]*CSU_data_summary[[#This Row],[Area]] -> 2917392.639 | T198: =CSU_data_summary[[#This Row],[Equipment]]*CSU_data_summary[[#This Row],[Area]] -> 2091938.62
B199: Current-San Luis Obispo-Administration | C199: Current | D199: San Luis Obispo | E199: Administration | F199: 152728 | G199: 16.03446747 | H199: 3.530937774 | I199: 6.71129814 | J199: 2.459896865 | K199: 14.04408718 | L199: 14.38078726 | M199: 57.16147468 | N199: 8730157.705 | O199: =CSU_data_summary[[#This Row],[Heating]]*CSU_data_summary[[#This Row],[Area]] -> 2448912.147 | P199: =CSU_data_summary[[#This Row],[Cooling]]*CSU_data_summary[[#This Row],[Area]] -> 539273.0643 | Q199: =CSU_data_summary[[#This Row],[Ventilation]]*CSU_data_summary[[#This Row],[Area]] -> 1025003.142 | R199: =CSU_data_summary[[#This Row],[Water Heating]]*CSU_data_summary[[#This Row],[Area]] -> 375695.1283 | S199: =CSU_data_summary[[#This Row],[Lighting]]*CSU_data_summary[[#This Row],[Area]] -> 2144925.346 | T199: =CSU_data_summary[[#This Row],[Equipment]]*CSU_data_summary[[#This Row],[Area]] -> 2196348.877
B200: Current-San Luis Obispo-Apartments | C200: Current | D200: San Luis Obispo | E200: Apartments | F200: 1064946 | G200: 7.379904559 | H200: 1.716606634 | I200: 4.229408413 | J200: 25.04151632 | K200: 11.52535475 | L200: 14.12659132 | M200: 64.01938199 | N200: 68177184.77 | O200: =CSU_data_summary[[#This Row],[Heating]]*CSU_data_summary[[#This Row],[Area]] -> 7859199.841 | P200: =CSU_data_summary[[#This Row],[Cooling]]*CSU_data_summary[[#This Row],[Area]] -> 1828093.369 | Q200: =CSU_data_summary[[#This Row],[Ventilation]]*CSU_data_summary[[#This Row],[Area]] -> 4504091.572 | R200: =CSU_data_summary[[#This Row],[Water Heating]]*CSU_data_summary[[#This Row],[Area]] -> 26667862.64 | S200: =CSU_data_summary[[#This Row],[Lighting]]*CSU_data_summary[[#This Row],[Area]] -> 12273880.43 | T200: =CSU_data_summary[[#This Row],[Equipment]]*CSU_data_summary[[#This Row],[Area]] -> 15044056.92
B201: Current-San Luis Obispo-Classroom | C201: Current | D201: San Luis Obispo | E201: Classroom | F201: 266216 | G201: 21.26738661 | H201: 2.522228084 | I201: 5.649221185 | J201: 7.68860585 | K201: 13.50147025 | L201: 9.159793714 | M201: 59.78870569 | N201: 15916710.07 | O201: =CSU_data_summary[[#This Row],[Heating]]*CSU_data_summary[[#This Row],[Area]] -> 5661718.593 | P201: =CSU_data_summary[[#This Row],[Cooling]]*CSU_data_summary[[#This Row],[Area]] -> 671457.4715 | Q201: =CSU_data_summary[[#This Row],[Ventilation]]*CSU_data_summary[[#This Row],[Area]] -> 1503913.067 | R201: =CSU_data_summary[[#This Row],[Water Heating]]*CSU_data_summary[[#This Row],[Area]] -> 2046829.895 | S201: =CSU_data_summary[[#This Row],[Lighting]]*CSU_data_summary[[#This Row],[Area]] -> 3594307.405 | T201: =CSU_data_summary[[#This Row],[Equipment]]*CSU_data_summary[[#This Row],[Area]] -> 2438483.643
... 730 more rows

Sheet CSU_campus_data
B2: City | C2: Zip Code | D2: Campus | E2: Address | F2: CA Climate Zone | G2: ASHRAE Climate Zone | H2: DOE Climate Zone | I2: Nearest TMY3 Weather Data | J2: Solar kWh/kW Estimate
B3: Bakersfield | C3: =_xlfn.NUMBERVALUE(RIGHT(E3,5)) -> 93311 | D3: Bakersfield | E3: CSUB Stockdale Hwy, Bakersfield, CA 93311 | F3: 13 | G3: 3B | H3: 3B | I3: Bakersfield Meadows Field | J3: 1469.513672
B4: Camarillo | C4: 93012 | D4: Channel Islands | E4: 1 University Dr, Camarillo, CA 93012 | F4: 6 | G4: 3C | H4: 3C | I4: Camarillo (AWOS) | J4: 1462.687866
B5: Chico | C5: 95929 | D5: Chico | E5: 400 W 1st St, Chico, CA 95929 | F5: 11 | G5: 3B | H5: 3B | I5: Red Bluff Municipal Arpt | J5: 1394.978882
B6: Carson | C6: 90747 | D6: Dominguez Hills | E6: 1000 E Victoria St, Carson, CA 90747 | F6: 8 | G6: 3B | H6: 3B | I6: Long Beach Daugherty Fld | J6: 1450.577026
B7: Hayward | C7: 94542 | D7: East Bay | E7: 25800 Carlos Bee Blvd, Hayward, CA 94542 | F7: 3 | G7: 3C | H7: 3C | I7: Hayward Air Term | J7: 1446.992065
B8: Fresno | C8: 93740 | D8: Fresno | E8: 5241 N Maple Ave, Fresno, CA 93740 | F8: 13 | G8: 3B | H8: 3B | I8: Fresno Yosemite Intl AP | J8: 1457.718262
B9: Fullerton | C9: 92831 | D9: Fullerton | E9: 800 N State College Blvd, Fullerton, CA 92831 | F9: 8 | G9: 3B | H9: 3B | I9: Fullerton Municipal | J9: 1449.249268
B10: Arcata | C10: 95521 | D10: Humboldt | E10: 1 Harpst St, Arcata, CA 95521 | F10: 1 | G10: 4B | H10: 4C | I10: Arcata Airport | J10: 1178.966187
B11: Long Beach | C11: 90840 | D11: Long Beach | E11: 1250 Bellflower Blvd, Long Beach, CA 90840 | F11: 6 | G11: 3B | H11: 3C | I11: Long Beach Daugherty Fld | J11: 1450.577026
B12: Los Angeles | C12: 90032 | D12: Los Angeles | E12: 5151 State University Dr, Los Angeles, CA 90032 | F12: 9 | G12: 3B | H12: 3B | I12: Jack Northrop Fld H | J12: 1474.351807
B13: Vallejo | C13: 94590 | D13: Maritime Academy | E13: 200 Maritime Academy Dr, Vallejo, CA 94590 | F13: 3 | G13: 3B | H13: 3C | I13: Napa Co. Airport | J13: 1439.974243
B14: Seaside | C14: 93955 | D14: Monterey Bay | E14: 100 Campus Center, Seaside, CA 93955 | F14: 3 | G14: 3C | H14: 3C | I14: Monterey NAF | J14: 1417.883789
B15: Northridge | C15: 91330 | D15: Northridge | E15: 18111 Nordhoff St, Northridge, CA 91330 | F15: 9 | G15: 3B | H15: 3B | I15: Van Nuys Airport | J15: 1491.95105
B16: Pomona | C16: 91768 | D16: Pomona | E16: 3801 W Temple Ave, Pomona, CA 91768 | F16: 9 | G16: 3B | H16: 3B | I16: Chino Airport | J16: 1465.477295
B17: Sacramento | C17: 95819 | D17: Sacramento | E17: 6000 J Street, Sacramento, CA 95819 | F17: 12 | G17: 3B | H17: 3B | I17: Sacramento Executive Arpt | J17: 1423.875977
B18: San Bernardino | C18: 92407 | D18: San Bernardino | E18: 5500 University Pkwy, San Bernardino, CA 92407 | F18: 10 | G18: 3B | H18: 3B | I18: Riverside Muni | J18: 1491.213745
B19: San Diego | C19: 92182 | D19: San Diego | E19: 5500 Campanile Dr, San Diego, CA 92182 | F19: 7 | G19: 3B | H19: 3B | I19: San Diego/Montgomer | J19: 1516.247925
B20: San Francisco | C20: 94132 | D20: San Francisco | E20: 1600 Holloway Ave, San Francisco, CA 94132 | F20: 3 | G20: 3C | H20: 3C | I20: San Francisco Intl AP | J20: 1418.018188
B21: San Jose | C21: 95192 | D21: San Jose | E21: 1 Washington Sq, San Jose, CA 95192 | F21: 4 | G21: 3C | H21: 3C | I21: San Jose Intl AP | J21: 1455.82605
B22: San Luis Obispo | C22: 93407 | D22: San Luis Obispo | E22: 1 Grand Avenue, San Luis Obispo, CA 93407 | F22: 5 | G22: 3C | H22: 3C | I22: San Luis Co Rgnl | J22: 1506.008667
B23: San Marcos | C23: 92096 | D23: San Marcos | E23: 333 S Twin Oaks Valley Rd, San Marcos, CA 92096 | F23: 10 | G23: 3B | H23: 3B | I23: Carlsbad/Palomar | J23: 1490.309692
B24: Rohnert Park | C24: 94928 | D24: Sonoma | E24: 1801 E Cotati Ave, Rohnert Park, CA 94928 | F24: 2 | G24: 3B | H24: 3C | I24: Santa Rosa (AWOS) | J24: 1347.662964
B25: Turlock | C25: 95382 | D25: Stanislaus | E25: 1 University Cir, Turlock, CA 95382 | F25: 12 | G25: 3B | H25: 3B | I25: Modesto City-County AP | J25: 1446.027588
B26: Long Beach | C26: 90802 | D26: Office of the Chancellor​​​ | E26: 401 Golden Shore, Long Beach, CA 90802 | F26: 6 | G26: 3B | H26: 3C | I26: Long Beach Daugherty Fld | J26: 1450.577026

Sheet _assumptions
B2: Parameter | C2: Value
B3: PV Cost [$/W] | C3: 4
B4: PV Capacity [W/sf] | C4: 15
B5: Building Construction Cost [$/sf] | C5: 400
B6: PV % of Construction Cost | C6: 0.05
